Workbook

Sheet Objectives
A1: % Change & Rate
A2: Define Statistics
A3: Examples of Where Statistics are used
A4: Data & Data Sets and Terminology
A5: Excel Tables
A6: Cross Sectional and Time Series Data
A7: Scales Of Measurement
A8: Descriptive Statistics
A9: Inferential Statistics

Sheet % Change & Rate
A1: Percentage Change Formula | D1: Ending Balance Rate Formula
A2: Begin Of Year Stock Value | B2: 25 | D2: Increase Sales by 10% | G2: Increase Sales by 10% | J2: Decrease Sales by 10%
A3: End of Year Stock Value | B3: 30.25
A4: Amount of Change = End - Beg | D4: Jan | E4: Feb | G4: Jan | H4: Feb | J4: Jan | K4: Feb
A5: Amount of Change/Beg | D5: 100 | G5: 100 | J5: 100 | L5: % Change
A6: (End - Beg)/Beg | J6: 100 | L6: End Balance Rate
A7: End/Beg-1 | D7: Ending Balance Rate | E7: 1.1 | G7: % Change | H7: 0.1 | J7: % Change | K7: -0.1
E9: 100 * 10% = 10 | J9: Beg | K9: 100
E10: 100 + 10 = 110 | J10: End | K10: 90
E11: 100 + 100 * 10% | J11: % Change
E12: 100*1 + 100 * 10% | J12: End Balance Rate
E13: 100*(1 + 10%)
A14: Apply General Number Formatting (wipes away all | E14: 100*(1 + 0.1)
A15: other Number Formatting) ==> Ctrl + Shift + ~ | E15: 100*(1.1)
E16: 100*1.1

Sheet % Change & Rate (an)
A1: Percentage Change Formula | D1: Ending Balance Rate Formula
A2: Begin Of Year Stock Value | B2: 25 | D2: Increase Sales by 10% | G2: Increase Sales by 10% | J2: Decrease Sales by 10%
A3: End of Year Stock Value | B3: 30.25
A4: Amount of Change = End - Beg | B4: =B3-B2 -> 5.25 | D4: Jan | E4: Feb | G4: Jan | H4: Feb | J4: Jan | K4: Feb
A5: Amount of Change/Beg | B5: =B4/B2 -> 0.21 | D5: 100 | E5: =D5*E7 -> 110 | G5: 100 | H5: =G5*(1+H7) -> 110 | J5: 100 | K5: =J5*(1+K7) -> 90 | L5: % Change
A6: (End - Beg)/Beg | B6: =(B3-B2)/B2 -> 0.21 | J6: 100 | K6: =J6*K12 -> 90 | L6: End Balance
A7: End/Beg-1 | B7: =B3/B2-1 -> 0.21 | D7: Ending Balance Rate | E7: 1.1 | G7: % Change | H7: 0.1 | J7: % Change | K7: -0.1
E9: 100 * 10% = 10 | J9: Beg | K9: 100
E10: 100 + 10 = 110 | J10: End | K10: 90
E11: 100 + 100 * 10% | J11: % Change | K11: =K10/K9-1 -> -0.1
E12: 100*1 + 100 * 10% | J12: End Balance Rate | K12: =1+K11 -> 0.9
E13: 100*(1 + 10%)
A14: Apply General Number Formatting (wipes away all | E14: 100*(1 + 0.1)
A15: other Number Formatting) ==> Ctrl + Shift + ~ | E15: 100*(1.1)
E16: 100*1.1

Sheet WhatIsStatistics
A1: A "Statistic" can be a numerical fact, like Google has a "5%" return last month or the test average was 79 points.
A2: Statistics as a discipline = The Art And Science Of Collecting, Analyzing, Presenting, And Interpreting Data.
A3: Art because we have to be artful in the way we preset data.
A4: Science because we must use the Scientific Methods of Experiment and Probability.
A5: Statistics are used everywhere
A6: Data are small chunks such as first name, profit for month. Data is not information. Information is data presented in a useful way.
A7: Interpreting Data means that we make useful information from data (using statistics) so that we can make decisions.
A8: Because the future is always uncertain, we use statistics to interpret past data so that we can make decisions about the future (and hopefully reduce future uncertainty).

Sheet Accounting
A1: Accounting/Auditing: Taking Samples of Invoices (Chapter 7)
A5: Invoice | B5: Amount | E5: Every kth
A6: 1027 | B6: 4063 | D6: =MOD(ROW(A6),E$6)=0 -> TRUE | E6: 6
A7: 1028 | B7: 1175
A8: 1029 | B8: 550
A9: 1030 | B9: 411
A10: 1031 | B10: 4152
A11: 1032 | B11: 575
A12: 1033 | B12: 922
A13: 1034 | B13: 1249
A14: 1035 | B14: 5073
A15: 1036 | B15: 542
A16: 1037 | B16: 511
A17: 1038 | B17: 838
A18: 1039 | B18: 5431
A19: 1040 | B19: 667
A20: 1041 | B20: 665
A21: 1042 | B21: 762
A22: 1043 | B22: 3145
A23: 1044 | B23: 938
A24: 1045 | B24: 1182
A25: 1046 | B25: 981
A26: 1047 | B26: 5400
A27: 1048 | B27: 458
A28: 1049 | B28: 622
A29: 1050 | B29: 1074
A30: 1051 | B30: 5611
A31: 1052 | B31: 966
A32: 1053 | B32: 545
A33: 1054 | B33: 558
A34: 1055 | B34: 4239
A35: 1056 | B35: 1168
A36: 1057 | B36: 518
A37: 1058 | B37: 444
A38: 1059 | B38: 4048
A39: 1060 | B39: 1187
A40: 1061 | B40: 1054
A41: 1062 | B41: 777
A42: 1063 | B42: 2237
A43: 1064 | B43: 1039
A44: 1065 | B44: 405
A45: 1066 | B45: 756
A46: 1067 | B46: 4499
A47: 1068 | B47: 709
A48: 1069 | B48: 1141
A49: 1070 | B49: 1205
A50: 1071 | B50: 2273
A51: 1072 | B51: 695
A52: 1073 | B52: 988
A53: 1074 | B53: 996
A54: 1075 | B54: 4690
A55: 1076 | B55: 427
A56: 1077 | B56: 439
A57: 1078 | B57: 666
A58: 1079 | B58: 4315
A59: 1080 | B59: 1075
A60: 1081 | B60: 532
A61: 1082 | B61: 764
A62: 1083 | B62: 5505
A63: 1084 | B63: 688
A64: 1085 | B64: 673
A65: 1086 | B65: 440
A66: 1087 | B66: 4013
A67: 1088 | B67: 505
A68: 1089 | B68: 874
A69: 1090 | B69: 1121
A70: 1091 | B70: 4512
A71: 1092 | B71: 510
A72: 1093 | B72: 816
A73: 1094 | B73: 878
A74: 1095 | B74: 4265
A75: 1096 | B75: 828
A76: 1097 | B76: 471
A77: 1098 | B77: 549
A78: 1099 | B78: 5590
A79: 1100 | B79: 1211
A80: 1101 | B80: 860
A81: 1102 | B81: 1191
A82: 1103 | B82: 2323
A83: 1104 | B83: 939
A84: 1105 | B84: 895
A85: 1106 | B85: 592
A86: 1107 | B86: 4111

Sheet Accounting (an)
A1: Accounting/Auditing: Taking Samples of Invoices (Chapter 7)
A5: Invoice | B5: Amount | E5: Every kth
A6: 1027 | B6: 4063 | D6: =MOD(ROW(A6),E$6)=0 -> TRUE | E6: 6
A7: 1028 | B7: 1175
A8: 1029 | B8: 550 | D8: Invoice | E8: Amount
A9: 1030 | B9: 411 | D9: 1027 | E9: 4063
A10: 1031 | B10: 4152 | D10: 1033 | E10: 922
A11: 1032 | B11: 575 | D11: 1039 | E11: 5431
A12: 1033 | B12: 922 | D12: 1045 | E12: 1182
A13: 1034 | B13: 1249 | D13: 1051 | E13: 5611
A14: 1035 | B14: 5073 | D14: 1057 | E14: 518
A15: 1036 | B15: 542 | D15: 1063 | E15: 2237
A16: 1037 | B16: 511 | D16: 1069 | E16: 1141
A17: 1038 | B17: 838 | D17: 1075 | E17: 4690
A18: 1039 | B18: 5431 | D18: 1081 | E18: 532
A19: 1040 | B19: 667 | D19: 1087 | E19: 4013
A20: 1041 | B20: 665 | D20: 1093 | E20: 816
A21: 1042 | B21: 762 | D21: 1099 | E21: 5590
A22: 1043 | B22: 3145 | D22: 1105 | E22: 895
A23: 1044 | B23: 938
A24: 1045 | B24: 1182
A25: 1046 | B25: 981
A26: 1047 | B26: 5400
A27: 1048 | B27: 458
A28: 1049 | B28: 622
A29: 1050 | B29: 1074
A30: 1051 | B30: 5611
A31: 1052 | B31: 966
A32: 1053 | B32: 545
A33: 1054 | B33: 558
A34: 1055 | B34: 4239
A35: 1056 | B35: 1168
A36: 1057 | B36: 518
A37: 1058 | B37: 444
A38: 1059 | B38: 4048
A39: 1060 | B39: 1187
A40: 1061 | B40: 1054
A41: 1062 | B41: 777
A42: 1063 | B42: 2237
A43: 1064 | B43: 1039
A44: 1065 | B44: 405
A45: 1066 | B45: 756
A46: 1067 | B46: 4499
A47: 1068 | B47: 709
A48: 1069 | B48: 1141
A49: 1070 | B49: 1205
A50: 1071 | B50: 2273
A51: 1072 | B51: 695
A52: 1073 | B52: 988
A53: 1074 | B53: 996
A54: 1075 | B54: 4690
A55: 1076 | B55: 427
A56: 1077 | B56: 439
A57: 1078 | B57: 666
A58: 1079 | B58: 4315
A59: 1080 | B59: 1075
A60: 1081 | B60: 532
A61: 1082 | B61: 764
A62: 1083 | B62: 5505
A63: 1084 | B63: 688
A64: 1085 | B64: 673
A65: 1086 | B65: 440
A66: 1087 | B66: 4013
A67: 1088 | B67: 505
A68: 1089 | B68: 874
A69: 1090 | B69: 1121
A70: 1091 | B70: 4512
A71: 1092 | B71: 510
A72: 1093 | B72: 816
A73: 1094 | B73: 878
A74: 1095 | B74: 4265
A75: 1096 | B75: 828
A76: 1097 | B76: 471
A77: 1098 | B77: 549
A78: 1099 | B78: 5590
A79: 1100 | B79: 1211
A80: 1101 | B80: 860
A81: 1102 | B81: 1191
A82: 1103 | B82: 2323
A83: 1104 | B83: 939
A84: 1105 | B84: 895
A85: 1106 | B85: 592
A86: 1107 | B86: 4111

Sheet Finance
A1: Finance and Economics: Projecting Stock Returns (Chapter 5)
A3: Estimates For Stock A
A4: State of Economy | B4: Probability of State | C4: Stock return if state occurs
A5: Good | B5: 0.25 | C5: 0.17
A6: Fair | B6: 0.55 | C6: 0.12
A7: Poor | B7: =1-SUM(B5:B6) -> 0.2 | C7: 0.035
B9: Expected Return
B11: **Individual Number: "A Statistic"

Sheet Finance (an)
A1: Finance and Economics: Projecting Stock Returns (Chapter 5)
A3: Estimates For Stock A
A4: State of Economy | B4: Probability of State | C4: Stock return if state occurs
A5: Good | B5: 0.25 | C5: 0.17
A6: Fair | B6: 0.55 | C6: 0.12
A7: Poor | B7: =1-SUM(B5:B6) -> 0.2 | C7: 0.035
B9: Expected Return | C9: =SUMPRODUCT(B5:B7,C5:C7) -> 0.1155
B11: **Individual Number: "A Statistic"

Sheet Marketing
A1: Marketing: Frequency of Sales Tables and Pie Charts (Chapter 2)
H2: Better
A3: Car Type Sold | C3: Car Type Sold | D3: Frequency | E3: % Frequency Relative Frequency
A4: Toyota | C4: Toyota
A5: Honda | C5: Honda
A6: Toyota | C6: Ford
A7: Ford | C7: Subaru
A8: Honda | C8: Total
A9: Toyota
A10: Honda
A11: Toyota
A12: Ford
A13: Honda
A14: Toyota
A15: Subaru
A16: Subaru

Sheet Marketing (an)
A1: Marketing: Frequency of Sales Tables and Pie Charts (Chapter 2)
H2: Better
A3: Car Type Sold | C3: Car Type Sold | D3: Frequency | E3: % Frequency Relative Frequency
A4: Toyota | C4: Toyota | D4: =COUNTIF($A$4:$A$16,C4) -> 5 | E4: =D4/$D$8 -> 0.3846153846
A5: Honda | C5: Honda | D5: =COUNTIF($A$4:$A$16,C5) -> 4 | E5: =D5/$D$8 -> 0.3076923077
A6: Toyota | C6: Ford | D6: 2 | E6: 0.1538461538
A7: Ford | C7: Subaru | D7: 2 | E7: 0.1538461538
A8: Honda | C8: Total | D8: =SUM(D4:D7) -> 13 | E8: =SUM(E4:E7) -> 1
A9: Toyota
A10: Honda
A11: Toyota
A12: Ford
A13: Honda
A14: Toyota
A15: Subaru
A16: Subaru

Sheet Production
A1: Production: Sampling box weight to see if filling machine is filling accurately (chapter 9)
A2: H0 : Mu = 10 grams
A3: H1 : Mu <> 10 grams
A4: Historical Average = | B4: 10 | C4: grams
A5: Historical Standard Deviation = | B5: 0.5 | C5: grams
A6: Level of Significance = | B6: 0.05
A7: Level of Significance Divided by 2 = | B7: =B6/2 -> 0.025
A8: Sample Mean = AVERAGE = | B8: =AVERAGE(A22:A99) -> 9.906153846 | C8: grams
A9: Sample Standard Deviation = STDEV = | B9: =STDEV(A22:A99) -> 0.2385908892 | C9: grams
A10: Sample size = COUNT = | B10: =COUNT($A$22:$A$99) -> 78
A11: Standard Error | B11: =B5/SQRT(B10) -> 0.05661385171 | C11: grams
A12: z | B12: =(B8-B4)/B11 -> -1.657653578
A13: X | B13: =B12*B11+B4 -> 9.906153846 | C13: =D102 -> P(9.906) | H13: =VLOOKUP(B13,B103:C602,2) -> 0.782085388
A14: p-value = | B14: =IF(B8<B4,2*NORMDIST(B8,B4,B5/SQRT(B10),1),2*(1-NORMDIST(B8,B4,B5/SQRT(B10),1))) -> 0.09738740874
A15: p-value = | B15: =2*(1-NORMSDIST(ABS(B12))) -> 0.09738740874
A16: =IF(B15>B6,"Because the p-value is greater than our alpha, it is reasonable to assume that the machine is filling accurately"," Because the p-value is less than or equal to our alpha, it is reasonable to assume that the machine is not filling accurately") -> Because the p-value is greater than our alpha, it is reasonable to assume that the machine is filling accurately
A21: Sample data
A22: =RANDBETWEEN(9500,10300)/1000 -> 9.869
A23: 10.191
A24: 10.042
A25: 9.907
A26: 9.73
A27: 10.297
A28: 10.144
A29: 9.815
A30: 9.662
A31: 9.596
A32: 10.016
A33: 9.714
A34: 9.5
A35: 9.692
A36: 10.216
A37: 9.732
A38: 9.715
A39: 10.238
A40: 9.823
A41: 10.215
A42: 9.986
A43: 9.832
A44: 9.668
A45: 10.219
A46: 9.702
A47: 9.671
A48: 10.164
A49: 10.138
A50: 10.137
A51: 10.1
A52: 9.963
A53: 9.633
A54: 9.741
A55: 10.08
A56: 9.757
A57: 9.606
A58: 9.955
A59: 10.252
A60: 9.544
A61: 9.994
A62: 10.04
A63: 9.51
A64: 9.995
A65: 9.799
A66: 10.236
A67: 9.522
A68: 10.166
A69: 9.622
A70: 10.045
A71: 9.609
A72: 9.577
A73: 10.195
A74: 9.829
A75: 9.962
A76: 10.16
A77: 10.027
A78: 9.622
A79: 9.631
A80: 9.523
A81: 10.137
A82: 10.125
A83: 9.993
A84: 10.239
A85: 9.889
A86: =RANDBETWEEN(9500,10300)/1000 -> 10.091
A87: 9.966
A88: 9.768
A89: 9.757
A90: 9.691
A91: 9.929
A92: 10.043
A93: 10.046
A94: 9.901
A95: 9.566
A96: 10.234
A97: 10.244
A98: 10.218
A99: 9.517
A101: Chart Data:
A102: z | B102: X | C102: P(Exactly x) | D102: ="P("&ROUND(B8,3)&")" -> P(9.906) | E102: P(alpha)
A103: =(B103-B$4)/B$11 -> -35.32704347 | B103: 8 | C103: =NORMDIST(B103,B$4,B$5,0) -> 0.0002676604515 | D103: =IF(C103<=B$14/2,C103,0) -> 0.0002676604515 | E103: =IF(C103<=B$6/2,C103,0) -> 0.0002676604515
A104: -35.15040825 | B104: =B103+0.01 -> 8.01 | C104: 0.0002898951208 | D104: 0.0002898951208 | E104: 0.0002898951208
A105: -34.97377303 | B105: =B104+0.01 -> 8.02 | C105: 0.0003138512681 | D105: 0.0003138512681 | E105: 0.0003138512681
A106: -34.79713781 | B106: 8.03 | C106: 0.0003396511989 | D106: 0.0003396511989 | E106: 0.0003396511989
A107: -34.6205026 | B107: 8.04 | C107: 0.000367424996 | D107: 0.000367424996 | E107: 0.000367424996
A108: -34.44386738 | B108: 8.05 | C108: 0.0003973109428 | D108: 0.0003973109428 | E108: 0.0003973109428
A109: -34.26723216 | B109: 8.06 | C109: 0.000429455963 | D109: 0.000429455963 | E109: 0.000429455963
A110: -34.09059694 | B110: 8.07 | C110: 0.0004640160793 | D110: 0.0004640160793 | E110: 0.0004640160793
A111: -33.91396173 | B111: 8.08 | C111: 0.0005011568898 | D111: 0.0005011568898 | E111: 0.0005011568898
A112: -33.73732651 | B112: 8.09 | C112: 0.0005410540629 | D112: 0.0005410540629 | E112: 0.0005410540629
A113: -33.56069129 | B113: 8.1 | C113: 0.0005838938516 | D113: 0.0005838938516 | E113: 0.0005838938516
A114: -33.38405607 | B114: 8.11 | C114: 0.0006298736258 | D114: 0.0006298736258 | E114: 0.0006298736258
A115: -33.20742086 | B115: 8.12 | C115: 0.000679202425 | D115: 0.000679202425 | E115: 0.000679202425
A116: -33.03078564 | B116: 8.13 | C116: 0.0007321015291 | D116: 0.0007321015291 | E116: 0.0007321015291
A117: -32.85415042 | B117: 8.14 | C117: 0.0007888050499 | D117: 0.0007888050499 | E117: 0.0007888050499
A118: -32.67751521 | B118: 8.15 | C118: 0.0008495605411 | D118: 0.0008495605411 | E118: 0.0008495605411
A119: -32.50087999 | B119: 8.16 | C119: 0.0009146296281 | D119: 0.0009146296281 | E119: 0.0009146296281
A120: -32.32424477 | B120: 8.17 | C120: 0.0009842886577 | D120: 0.0009842886577 | E120: 0.0009842886577
A121: -32.14760955 | B121: 8.18 | C121: 0.001058829366 | D121: 0.001058829366 | E121: 0.001058829366
A122: -31.97097434 | B122: 8.19 | C122: 0.001138559568 | D122: 0.001138559568 | E122: 0.001138559568
A123: -31.79433912 | B123: 8.2 | C123: 0.00122380386 | D123: 0.00122380386 | E123: 0.00122380386
A124: -31.6177039 | B124: 8.21 | C124: 0.001314904351 | D124: 0.001314904351 | E124: 0.001314904351
A125: -31.44106868 | B125: 8.22 | C125: 0.001412221401 | D125: 0.001412221401 | E125: 0.001412221401
A126: -31.26443347 | B126: 8.23 | C126: 0.001516134383 | D126: 0.001516134383 | E126: 0.001516134383
A127: -31.08779825 | B127: 8.24 | C127: 0.001627042462 | D127: 0.001627042462 | E127: 0.001627042462
A128: -30.91116303 | B128: 8.25 | C128: 0.00174536539 | D128: 0.00174536539 | E128: 0.00174536539
A129: -30.73452781 | B129: 8.26 | C129: 0.001871544314 | D129: 0.001871544314 | E129: 0.001871544314
A130: -30.5578926 | B130: 8.27 | C130: 0.002006042601 | D130: 0.002006042601 | E130: 0.002006042601
A131: -30.38125738 | B131: 8.28 | C131: 0.00214934668 | D131: 0.00214934668 | E131: 0.00214934668
A132: -30.20462216 | B132: 8.29 | C132: 0.002301966888 | D132: 0.002301966888 | E132: 0.002301966888
A133: -30.02798695 | B133: 8.3 | C133: 0.002464438337 | D133: 0.002464438337 | E133: 0.002464438337
A134: -29.85135173 | B134: 8.31 | C134: 0.002637321784 | D134: 0.002637321784 | E134: 0.002637321784
A135: -29.67471651 | B135: 8.32 | C135: 0.002821204514 | D135: 0.002821204514 | E135: 0.002821204514
A136: -29.49808129 | B136: 8.33 | C136: 0.00301670123 | D136: 0.00301670123 | E136: 0.00301670123
A137: -29.32144608 | B137: 8.34 | C137: 0.003224454944 | D137: 0.003224454944 | E137: 0.003224454944
A138: -29.14481086 | B138: 8.35 | C138: 0.003445137878 | D138: 0.003445137878 | E138: 0.003445137878
A139: -28.96817564 | B139: 8.36 | C139: 0.003679452362 | D139: 0.003679452362 | E139: 0.003679452362
A140: -28.79154042 | B140: 8.37 | C140: 0.003928131731 | D140: 0.003928131731 | E140: 0.003928131731
A141: -28.61490521 | B141: 8.38 | C141: 0.004191941226 | D141: 0.004191941226 | E141: 0.004191941226
A142: -28.43826999 | B142: 8.39 | C142: 0.004471678879 | D142: 0.004471678879 | E142: 0.004471678879
A143: -28.26163477 | B143: 8.4 | C143: 0.004768176403 | D143: 0.004768176403 | E143: 0.004768176403
A144: -28.08499955 | B144: 8.41 | C144: 0.005082300057 | D144: 0.005082300057 | E144: 0.005082300057
A145: -27.90836434 | B145: 8.42 | C145: 0.005414951514 | D145: 0.005414951514 | E145: 0.005414951514
A146: -27.73172912 | B146: 8.43 | C146: 0.005767068695 | D146: 0.005767068695 | E146: 0.005767068695
A147: -27.5550939 | B147: 8.44 | C147: 0.006139626602 | D147: 0.006139626602 | E147: 0.006139626602
A148: -27.37845869 | B148: 8.45 | C148: 0.006533638112 | D148: 0.006533638112 | E148: 0.006533638112
A149: -27.20182347 | B149: 8.46 | C149: 0.006950154756 | D149: 0.006950154756 | E149: 0.006950154756
A150: -27.02518825 | B150: 8.47 | C150: 0.007390267459 | D150: 0.007390267459 | E150: 0.007390267459
A151: -26.84855303 | B151: 8.48 | C151: 0.007855107258 | D151: 0.007855107258 | E151: 0.007855107258
A152: -26.67191782 | B152: 8.49 | C152: 0.008345845969 | D152: 0.008345845969 | E152: 0.008345845969
A153: -26.4952826 | B153: 8.5 | C153: 0.008863696824 | D153: 0.008863696824 | E153: 0.008863696824
A154: -26.31864738 | B154: 8.51 | C154: 0.009409915054 | D154: 0.009409915054 | E154: 0.009409915054
A155: -26.14201216 | B155: 8.52 | C155: 0.009985798427 | D155: 0.009985798427 | E155: 0.009985798427
A156: -25.96537695 | B156: 8.53 | C156: 0.01059268773 | D156: 0.01059268773 | E156: 0.01059268773
A157: -25.78874173 | B157: 8.54 | C157: 0.01123196719 | D157: 0.01123196719 | E157: 0.01123196719
A158: -25.61210651 | B158: 8.55 | C158: 0.01190506484 | D158: 0.01190506484 | E158: 0.01190506484
A159: -25.4354713 | B159: 8.56 | C159: 0.01261345279 | D159: 0.01261345279 | E159: 0.01261345279
A160: -25.25883608 | B160: 8.57 | C160: 0.01335864748 | D160: 0.01335864748 | E160: 0.01335864748
A161: -25.08220086 | B161: 8.58 | C161: 0.01414220977 | D161: 0.01414220977 | E161: 0.01414220977
A162: -24.90556564 | B162: 8.59 | C162: 0.01496574505 | D162: 0.01496574505 | E162: 0.01496574505
A163: -24.72893043 | B163: 8.6 | C163: 0.01583090317 | D163: 0.01583090317 | E163: 0.01583090317
A164: -24.55229521 | B164: 8.61 | C164: 0.01673937831 | D164: 0.01673937831 | E164: 0.01673937831
A165: -24.37565999 | B165: 8.62 | C165: 0.0176929088 | D165: 0.0176929088 | E165: 0.0176929088
A166: -24.19902477 | B166: 8.63 | C166: 0.01869327674 | D166: 0.01869327674 | E166: 0.01869327674
A167: =(B167-B$4)/B$11 -> -24.02238956 | B167: 8.64 | C167: =NORMDIST(B167,B$4,B$5,0) -> 0.01974230759 | D167: =IF(C167<=B$14/2,C167,0) -> 0.01974230759 | E167: =IF(C167<=B$6/2,C167,0) -> 0.01974230759
A168: -23.84575434 | B168: 8.65 | C168: 0.02084186963 | D168: 0.02084186963 | E168: 0.02084186963
A169: -23.66911912 | B169: =B168+0.01 -> 8.66 | C169: 0.02199387326 | D169: 0.02199387326 | E169: 0.02199387326
A170: -23.4924839 | B170: 8.67 | C170: 0.02320027023 | D170: 0.02320027023 | E170: 0.02320027023
A171: -23.31584869 | B171: 8.68 | C171: 0.0244630527 | D171: 0.0244630527 | E171: 0.0244630527
A172: -23.13921347 | B172: 8.69 | C172: 0.02578425222 | D172: 0.02578425222 | E172: 0
A173: -22.96257825 | B173: 8.7 | C173: 0.02716593847 | D173: 0.02716593847 | E173: 0
A174: -22.78594304 | B174: 8.71 | C174: 0.02861021799 | D174: 0.02861021799 | E174: 0
A175: -22.60930782 | B175: 8.72 | C175: 0.03011923265 | D175: 0.03011923265 | E175: 0
A176: -22.4326726 | B176: 8.73 | C176: 0.03169515805 | D176: 0.03169515805 | E176: 0
A177: -22.25603738 | B177: 8.74 | C177: 0.03334020167 | D177: 0.03334020167 | E177: 0
A178: -22.07940217 | B178: 8.75 | C178: 0.03505660099 | D178: 0.03505660099 | E178: 0
A179: -21.90276695 | B179: 8.76 | C179: 0.03684662129 | D179: 0.03684662129 | E179: 0
A180: -21.72613173 | B180: 8.77 | C180: 0.03871255346 | D180: 0.03871255346 | E180: 0
A181: -21.54949651 | B181: 8.78 | C181: 0.04065671148 | D181: 0.04065671148 | E181: 0
A182: -21.3728613 | B182: 8.79 | C182: 0.0426814298 | D182: 0.0426814298 | E182: 0
A183: -21.19622608 | B183: 8.8 | C183: 0.04478906059 | D183: 0.04478906059 | E183: 0
A184: -21.01959086 | B184: 8.81 | C184: 0.04698197072 | D184: 0.04698197072 | E184: 0
A185: -20.84295564 | B185: 8.82 | C185: 0.04926253861 | D185: 0 | E185: 0
A186: -20.66632043 | B186: 8.83 | C186: 0.05163315094 | D186: 0 | E186: 0
A187: -20.48968521 | B187: 8.84 | C187: 0.05409619909 | D187: 0 | E187: 0
A188: -20.31304999 | B188: 8.85 | C188: 0.05665407548 | D188: 0 | E188: 0
A189: -20.13641478 | B189: 8.86 | C189: 0.05930916969 | D189: 0 | E189: 0
A190: -19.95977956 | B190: 8.87 | C190: 0.06206386443 | D190: 0 | E190: 0
A191: -19.78314434 | B191: 8.88 | C191: 0.06492053129 | D191: 0 | E191: 0
A192: -19.60650912 | B192: 8.89 | C192: 0.06788152636 | D192: 0 | E192: 0
A193: -19.42987391 | B193: 8.9 | C193: 0.07094918569 | D193: 0 | E193: 0
A194: -19.25323869 | B194: 8.91 | C194: 0.0741258205 | D194: 0 | E194: 0
A195: -19.07660347 | B195: 8.92 | C195: 0.07741371229 | D195: 0 | E195: 0
A196: -18.89996825 | B196: 8.93 | C196: 0.08081510785 | D196: 0 | E196: 0
A197: -18.72333304 | B197: 8.94 | C197: 0.08433221392 | D197: 0 | E197: 0
A198: -18.54669782 | B198: 8.95 | C198: 0.08796719196 | D198: 0 | E198: 0
A199: -18.3700626 | B199: 8.96 | C199: 0.09172215254 | D199: 0 | E199: 0
A200: -18.19342738 | B200: 8.97 | C200: 0.09559914976 | D200: 0 | E200: 0
A201: -18.01679217 | B201: 8.98 | C201: 0.09960017547 | D201: 0 | E201: 0
A202: -17.84015695 | B202: 8.99 | C202: 0.1037271534 | D202: 0 | E202: 0
A203: -17.66352173 | B203: 9 | C203: 0.107981933 | D203: 0 | E203: 0
A204: -17.48688652 | B204: 9.01 | C204: 0.1123662838 | D204: 0 | E204: 0
A205: -17.3102513 | B205: 9.02 | C205: 0.1168818887 | D205: 0 | E205: 0
... 397 more rows

Sheet Art
A1: Date | B1: Sales Rep | C1: Customer | D1: Sales | E1: COGS | F1: Region
A2: 2009-01-10 | B2: Sioux | C2: Safeway | D2: 1102 | E2: 562.02 | F2: East
A3: 2010-06-07 | B3: Tina | C3: Fred Myer | D3: 207 | E3: 101.43 | F3: NorthEast
A4: 2005-10-26 | B4: Tom | C4: Whole Foods | D4: 219 | E4: 96.36 | F4: NorthEast
A5: 2010-03-30 | B5: Sioux | C5: PCC | D5: 1322 | E5: 859.3 | F5: NorthWest
A6: 2007-09-29 | B6: Sioux | C6: Whole Foods | D6: 178 | E6: 115.7 | F6: MidWest
A7: 2010-05-06 | B7: Chin | C7: Coop | D7: 142 | E7: 89.46 | F7: MidWest
A8: 2006-03-18 | B8: Sioux | C8: Fred Myer | D8: 67 | E8: 42.88 | F8: East
A9: 2007-02-04 | B9: Chin | C9: Whole Foods | D9: 207 | E9: 111.78 | F9: NorthWest
A10: 2010-08-07 | B10: Sioux | C10: Safeway | D10: 249 | E10: 139.44 | F10: West
A11: 2011-04-03 | B11: Chin | C11: Whole Foods | D11: 194 | E11: 124.16 | F11: NorthWest
A12: 2007-02-15 | B12: Sioux | C12: Whole Foods | D12: 235 | E12: 119.85 | F12: NorthEast
A13: 2006-06-19 | B13: Sioux | C13: Safeway | D13: 122 | E13: 53.68 | F13: East
A14: 2009-05-20 | B14: Tina | C14: Safeway | D14: 230 | E14: 115 | F14: NorthWest
A15: 2010-02-08 | B15: Tom | C15: Coop | D15: 1942 | E15: 893.32 | F15: MidWest
A16: 2009-08-12 | B16: Tom | C16: Whole Foods | D16: 178 | E16: 110.36 | F16: NorthWest
A17: 2007-10-08 | B17: Joy | C17: Whole Foods | D17: 180 | E17: 106.2 | F17: MidWest
A18: 2009-12-12 | B18: Tina | C18: Fred Myer | D18: 196 | E18: 137.2 | F18: NorthWest
A19: 2009-08-03 | B19: Tina | C19: Whole Foods | D19: 564 | E19: 315.84 | F19: NorthEast
A20: 2006-11-10 | B20: Joy | C20: Whole Foods | D20: 171 | E20: 126.54 | F20: NorthWest
A21: 2009-10-15 | B21: Tina | C21: PCC | D21: 210 | E21: 157.5 | F21: MidWest
A22: 2005-11-25 | B22: Joy | C22: Coop | D22: 231 | E22: 115.5 | F22: NorthWest
A23: 2005-08-26 | B23: Chin | C23: Whole Foods | D23: 109 | E23: 50.14 | F23: NorthWest
A24: 2011-05-29 | B24: Chin | C24: Safeway | D24: 167 | E24: 78.49 | F24: MidWest
A25: 2007-12-01 | B25: Sioux | C25: PCC | D25: 1650 | E25: 1303.5 | F25: West
A26: 2009-05-15 | B26: Sioux | C26: Safeway | D26: 183 | E26: 122.61 | F26: MidWest
A27: 2011-06-19 | B27: Joy | C27: Fred Myer | D27: 128 | E27: 74.24 | F27: West
A28: 2009-02-15 | B28: Joy | C28: Whole Foods | D28: 161 | E28: 98.21 | F28: East
A29: 2010-01-20 | B29: Tina | C29: Whole Foods | D29: 157 | E29: 114.61 | F29: West
A30: 2006-08-26 | B30: Joy | C30: Whole Foods | D30: 131 | E30: 77.29 | F30: NorthWest
A31: 2008-01-09 | B31: Sioux | C31: Coop | D31: 114 | E31: 61.56 | F31: NorthEast
A32: 2010-04-01 | B32: Chin | C32: Safeway | D32: 237 | E32: 168.27 | F32: MidWest
A33: 2009-09-30 | B33: Joy | C33: Safeway | D33: 122 | E33: 82.96 | F33: East
A34: 2006-03-27 | B34: Chin | C34: Safeway | D34: 201 | E34: 118.59 | F34: NorthWest
A35: 2006-07-17 | B35: Joy | C35: Coop | D35: 1804 | E35: 1100.44 | F35: East
A36: 2009-03-24 | B36: Tina | C36: Safeway | D36: 1237 | E36: 519.54 | F36: East
A37: 2008-05-02 | B37: Chin | C37: Coop | D37: 182 | E37: 81.9 | F37: NorthEast
A38: 2007-09-15 | B38: Tom | C38: Safeway | D38: 67 | E38: 30.82 | F38: NorthWest
A39: 2005-07-04 | B39: Tom | C39: Whole Foods | D39: 234 | E39: 156.78 | F39: East
A40: 2006-12-02 | B40: Tina | C40: Coop | D40: 250 | E40: 162.5 | F40: West
A41: 2008-12-04 | B41: Tina | C41: PCC | D41: 237 | E41: 184.86 | F41: MidWest
A42: 2009-05-20 | B42: Sioux | C42: Safeway | D42: 60 | E42: 31.2 | F42: MidWest
A43: 2009-01-12 | B43: Sioux | C43: Fred Myer | D43: 231 | E43: 177.87 | F43: NorthEast
A44: 2005-09-02 | B44: Tina | C44: Fred Myer | D44: 80 | E44: 48 | F44: MidWest
A45: 2009-11-10 | B45: Joy | C45: Whole Foods | D45: 1241 | E45: 620.5 | F45: NorthWest
A46: 2010-05-06 | B46: Sioux | C46: PCC | D46: 224 | E46: 100.8 | F46: NorthWest
A47: 2011-03-04 | B47: Tina | C47: Coop | D47: 110 | E47: 50.6 | F47: West
A48: 2007-10-09 | B48: Tina | C48: PCC | D48: 131 | E48: 94.32 | F48: NorthEast
A49: 2010-05-09 | B49: Chin | C49: Coop | D49: 230 | E49: 108.1 | F49: MidWest
A50: 2007-07-25 | B50: Chin | C50: PCC | D50: 163 | E50: 94.54 | F50: MidWest
A51: 2011-04-01 | B51: Chin | C51: PCC | D51: 89 | E51: 65.86 | F51: NorthEast
A52: 2008-10-22 | B52: Joy | C52: Coop | D52: 215 | E52: 152.65 | F52: West
A53: 2008-01-21 | B53: Sioux | C53: Fred Myer | D53: 796 | E53: 541.28 | F53: East
A54: 2007-10-27 | B54: Tom | C54: Coop | D54: 230 | E54: 170.2 | F54: East
A55: 2010-05-22 | B55: Chin | C55: Fred Myer | D55: 1719 | E55: 842.31 | F55: West
A56: 2011-03-09 | B56: Tina | C56: Fred Myer | D56: 161 | E56: 119.14 | F56: East
A57: 2006-02-12 | B57: Tina | C57: Fred Myer | D57: 173 | E57: 131.48 | F57: MidWest
A58: 2009-04-27 | B58: Sioux | C58: PCC | D58: 196 | E58: 143.08 | F58: MidWest
A59: 2008-06-27 | B59: Tom | C59: Safeway | D59: 172 | E59: 87.72 | F59: East
A60: 2007-05-18 | B60: Chin | C60: Coop | D60: 75 | E60: 35.25 | F60: NorthWest
A61: 2010-04-22 | B61: Chin | C61: Fred Myer | D61: 220 | E61: 160.6 | F61: NorthEast
A62: 2010-09-06 | B62: Chin | C62: Fred Myer | D62: 93 | E62: 44.64 | F62: East
A63: 2011-02-09 | B63: Tina | C63: Coop | D63: 166 | E63: 73.04 | F63: NorthWest
A64: 2008-04-11 | B64: Sioux | C64: Safeway | D64: 54 | E64: 40.5 | F64: MidWest
A65: 2010-12-31 | B65: Joy | C65: Safeway | D65: 1281 | E65: 781.41 | F65: West
A66: 2008-01-07 | B66: Chin | C66: Whole Foods | D66: 212 | E66: 127.2 | F66: East
A67: 2009-03-31 | B67: Chin | C67: PCC | D67: 210 | E67: 84 | F67: MidWest
A68: 2009-04-07 | B68: Chin | C68: Safeway | D68: 98 | E68: 46.06 | F68: NorthWest
A69: 2005-08-14 | B69: Tina | C69: Fred Myer | D69: 213 | E69: 134.19 | F69: West
A70: 2011-05-02 | B70: Chin | C70: Coop | D70: 800 | E70: 408 | F70: NorthEast
A71: 2006-11-24 | B71: Tina | C71: Whole Foods | D71: 116 | E71: 55.68 | F71: MidWest
A72: 2009-11-13 | B72: Chin | C72: Safeway | D72: 200 | E72: 120 | F72: West
A73: 2008-07-20 | B73: Joy | C73: PCC | D73: 65 | E73: 33.8 | F73: NorthEast
A74: 2008-11-07 | B74: Tina | C74: PCC | D74: 173 | E74: 79.58 | F74: East
A75: 2007-05-02 | B75: Tina | C75: Fred Myer | D75: 1868 | E75: 1064.76 | F75: East
A76: 2006-11-14 | B76: Tom | C76: PCC | D76: 71 | E76: 48.28 | F76: NorthWest
A77: 2005-12-07 | B77: Sioux | C77: PCC | D77: 71 | E77: 45.44 | F77: NorthEast
A78: 2008-01-20 | B78: Joy | C78: Whole Foods | D78: 103 | E78: 45.32 | F78: East
A79: 2009-10-01 | B79: Joy | C79: Whole Foods | D79: 204 | E79: 95.88 | F79: West
A80: 2010-03-10 | B80: Chin | C80: Safeway | D80: 79 | E80: 42.66 | F80: MidWest
A81: 2006-01-13 | B81: Sioux | C81: Safeway | D81: 234 | E81: 159.12 | F81: West
A82: 2011-06-08 | B82: Sioux | C82: Whole Foods | D82: 226 | E82: 94.92 | F82: MidWest
A83: 2006-03-18 | B83: Tom | C83: Safeway | D83: 136 | E83: 97.92 | F83: West
A84: 2009-04-09 | B84: Tom | C84: Safeway | D84: 159 | E84: 108.12 | F84: MidWest
A85: 2006-06-09 | B85: Tom | C85: Fred Myer | D85: 1624 | E85: 665.84 | F85: MidWest
A86: 2011-03-25 | B86: Tom | C86: Whole Foods | D86: 104 | E86: 71.76 | F86: West
A87: 2008-09-15 | B87: Tina | C87: PCC | D87: 746 | E87: 581.88 | F87: West
A88: 2009-08-22 | B88: Tom | C88: Coop | D88: 145 | E88: 116 | F88: NorthEast
A89: 2006-05-03 | B89: Chin | C89: Fred Myer | D89: 167 | E89: 91.85 | F89: West
A90: 2009-08-09 | B90: Joy | C90: PCC | D90: 236 | E90: 148.68 | F90: MidWest
A91: 2010-01-08 | B91: Tina | C91: Coop | D91: 116 | E91: 90.48 | F91: NorthEast
A92: 2006-05-16 | B92: Sioux | C92: Coop | D92: 208 | E92: 149.76 | F92: NorthWest
A93: 2010-01-12 | B93: Tom | C93: Whole Foods | D93: 170 | E93: 91.8 | F93: MidWest
A94: 2010-06-07 | B94: Sioux | C94: Whole Foods | D94: 211 | E94: 120.27 | F94: East
A95: 2008-11-13 | B95: Tom | C95: Fred Myer | D95: 1268 | E95: 735.44 | F95: NorthEast
A96: 2007-04-06 | B96: Tina | C96: Coop | D96: 209 | E96: 106.59 | F96: NorthWest
A97: 2010-02-24 | B97: Tina | C97: PCC | D97: 212 | E97: 116.6 | F97: MidWest
A98: 2005-11-09 | B98: Chin | C98: Whole Foods | D98: 138 | E98: 66.24 | F98: NorthWest
A99: 2011-01-29 | B99: Chin | C99: Fred Myer | D99: 116 | E99: 46.4 | F99: West
A100: 2006-08-20 | B100: Tina | C100: Whole Foods | D100: 232 | E100: 176.32 | F100: NorthEast
A101: 2011-04-13 | B101: Tina | C101: Fred Myer | D101: 145 | E101: 65.25 | F101: East
A102: 2005-06-28 | B102: Joy | C102: Safeway | D102: 114 | E102: 66.12 | F102: MidWest
A103: 2008-07-30 | B103: Chin | C103: Fred Myer | D103: 235 | E103: 152.75 | F103: West
A104: 2009-01-09 | B104: Joy | C104: Whole Foods | D104: 1050 | E104: 787.5 | F104: MidWest
A105: 2009-04-17 | B105: Joy | C105: Fred Myer | D105: 1296 | E105: 855.36 | F105: NorthEast
A106: 2008-12-23 | B106: Tom | C106: Safeway | D106: 223 | E106: 140.49 | F106: NorthEast
A107: 2009-05-29 | B107: Joy | C107: Fred Myer | D107: 212 | E107: 169.6 | F107: West
A108: 2005-08-30 | B108: Sioux | C108: Safeway | D108: 93 | E108: 45.57 | F108: NorthEast
A109: 2007-07-14 | B109: Joy | C109: Whole Foods | D109: 198 | E109: 91.08 | F109: NorthEast
A110: 2009-11-04 | B110: Joy | C110: Coop | D110: 162 | E110: 100.44 | F110: NorthEast
A111: 2007-11-14 | B111: Tina | C111: PCC | D111: 134 | E111: 87.1 | F111: East
A112: 2005-12-15 | B112: Joy | C112: Whole Foods | D112: 167 | E112: 71.81 | F112: NorthWest
A113: 2011-02-04 | B113: Tina | C113: PCC | D113: 145 | E113: 60.9 | F113: West
A114: 2010-11-08 | B114: Tina | C114: Fred Myer | D114: 222 | E114: 146.52 | F114: East
A115: 2005-10-14 | B115: Tina | C115: Whole Foods | D115: 1954 | E115: 1406.88 | F115: MidWest
A116: 2011-06-01 | B116: Tom | C116: Whole Foods | D116: 117 | E116: 90.09 | F116: West
A117: 2008-03-29 | B117: Sioux | C117: PCC | D117: 109 | E117: 43.6 | F117: West
A118: 2006-06-26 | B118: Tom | C118: Whole Foods | D118: 190 | E118: 117.8 | F118: MidWest
A119: 2010-07-18 | B119: Sioux | C119: Fred Myer | D119: 91 | E119: 41.86 | F119: West
A120: 2006-02-09 | B120: Sioux | C120: PCC | D120: 241 | E120: 101.22 | F120: West
A121: 2009-08-23 | B121: Joy | C121: Safeway | D121: 1209 | E121: 495.69 | F121: MidWest
A122: 2006-09-08 | B122: Joy | C122: Whole Foods | D122: 79 | E122: 52.14 | F122: NorthWest
A123: 2008-07-01 | B123: Tina | C123: Whole Foods | D123: 195 | E123: 124.8 | F123: East
A124: 2008-06-06 | B124: Tom | C124: Coop | D124: 128 | E124: 57.6 | F124: East
A125: 2007-09-18 | B125: Tina | C125: Whole Foods | D125: 1714 | E125: 719.88 | F125: NorthWest
A126: 2009-11-13 | B126: Tina | C126: PCC | D126: 79 | E126: 62.41 | F126: MidWest
A127: 2007-04-28 | B127: Tom | C127: PCC | D127: 195 | E127: 146.25 | F127: NorthWest
A128: 2005-10-04 | B128: Joy | C128: Safeway | D128: 166 | E128: 83 | F128: East
A129: 2007-02-28 | B129: Tom | C129: Whole Foods | D129: 181 | E129: 106.79 | F129: West
A130: 2006-04-21 | B130: Chin | C130: Safeway | D130: 119 | E130: 47.6 | F130: NorthEast
A131: 2006-11-14 | B131: Sioux | C131: PCC | D131: 179 | E131: 82.34 | F131: West
A132: 2009-12-08 | B132: Tina | C132: PCC | D132: 108 | E132: 59.4 | F132: West
A133: 2009-12-06 | B133: Sioux | C133: Whole Foods | D133: 178 | E133: 76.54 | F133: MidWest
A134: 2010-10-06 | B134: Tina | C134: Whole Foods | D134: 120 | E134: 84 | F134: East
A135: 2008-10-05 | B135: Joy | C135: Whole Foods | D135: 1455 | E135: 858.45 | F135: NorthWest
A136: 2008-04-07 | B136: Joy | C136: Fred Myer | D136: 101 | E136: 70.7 | F136: NorthEast
A137: 2009-10-18 | B137: Chin | C137: Coop | D137: 142 | E137: 100.82 | F137: West
A138: 2009-03-30 | B138: Tina | C138: PCC | D138: 849 | E138: 679.2 | F138: West
A139: 2006-02-13 | B139: Sioux | C139: PCC | D139: 67 | E139: 28.81 | F139: East
A140: 2006-12-29 | B140: Joy | C140: Safeway | D140: 209 | E140: 123.31 | F140: East
A141: 2009-05-20 | B141: Tom | C141: Fred Myer | D141: 185 | E141: 114.7 | F141: West
A142: 2006-03-27 | B142: Joy | C142: Whole Foods | D142: 121 | E142: 78.65 | F142: West
A143: 2008-03-30 | B143: Chin | C143: PCC | D143: 100 | E143: 73 | F143: West
A144: 2007-11-09 | B144: Chin | C144: PCC | D144: 230 | E144: 96.6 | F144: NorthWest
A145: 2007-07-29 | B145: Joy | C145: Whole Foods | D145: 1969 | E145: 1220.78 | F145: NorthWest
A146: 2007-05-21 | B146: Tom | C146: Whole Foods | D146: 128 | E146: 88.32 | F146: NorthEast
A147: 2010-03-15 | B147: Tina | C147: PCC | D147: 137 | E147: 86.31 | F147: NorthEast
A148: 2006-07-28 | B148: Tina | C148: Fred Myer | D148: 141 | E148: 63.45 | F148: West
A149: 2007-12-13 | B149: Chin | C149: Coop | D149: 205 | E149: 96.35 | F149: West
A150: 2006-11-15 | B150: Tina | C150: Whole Foods | D150: 234 | E150: 98.28 | F150: MidWest
A151: 2010-10-13 | B151: Chin | C151: Whole Foods | D151: 141 | E151: 94.47 | F151: West
A152: 2009-04-05 | B152: Sioux | C152: PCC | D152: 178 | E152: 117.48 | F152: MidWest
A153: 2008-01-29 | B153: Tina | C153: Fred Myer | D153: 208 | E153: 162.24 | F153: MidWest
A154: 2008-01-17 | B154: Sioux | C154: Fred Myer | D154: 63 | E154: 47.88 | F154: West
A155: 2006-09-16 | B155: Chin | C155: Fred Myer | D155: 593 | E155: 296.5 | F155: West
A156: 2010-05-19 | B156: Tom | C156: Coop | D156: 225 | E156: 164.25 | F156: NorthEast
A157: 2005-08-26 | B157: Chin | C157: Coop | D157: 182 | E157: 129.22 | F157: West
A158: 2007-12-29 | B158: Tina | C158: Whole Foods | D158: 238 | E158: 109.48 | F158: East
A159: 2008-03-13 | B159: Joy | C159: Safeway | D159: 214 | E159: 149.8 | F159: East
A160: 2006-08-22 | B160: Tom | C160: Coop | D160: 60 | E160: 31.8 | F160: NorthWest
A161: 2005-09-26 | B161: Tina | C161: Fred Myer | D161: 242 | E161: 137.94 | F161: MidWest
A162: 2008-12-26 | B162: Sioux | C162: Coop | D162: 161 | E162: 103.04 | F162: NorthWest
A163: 2010-08-17 | B163: Joy | C163: Whole Foods | D163: 128 | E163: 97.28 | F163: East
A164: 2010-01-23 | B164: Tom | C164: PCC | D164: 182 | E164: 109.2 | F164: MidWest
A165: 2009-11-12 | B165: Joy | C165: Whole Foods | D165: 1205 | E165: 626.6 | F165: NorthWest
A166: 2009-01-29 | B166: Tina | C166: PCC | D166: 193 | E166: 137.03 | F166: MidWest
A167: 2006-12-08 | B167: Tina | C167: Whole Foods | D167: 75 | E167: 39 | F167: NorthWest
A168: 2009-11-12 | B168: Tom | C168: PCC | D168: 200 | E168: 158 | F168: NorthWest
A169: 2007-05-28 | B169: Tina | C169: Whole Foods | D169: 238 | E169: 173.74 | F169: NorthWest
A170: 2008-11-27 | B170: Tom | C170: Fred Myer | D170: 238 | E170: 159.46 | F170: East
A171: 2006-11-11 | B171: Chin | C171: PCC | D171: 167 | E171: 80.16 | F171: NorthWest
A172: 2011-02-27 | B172: Tom | C172: PCC | D172: 793 | E172: 444.08 | F172: West
A173: 2007-03-31 | B173: Chin | C173: Whole Foods | D173: 142 | E173: 102.24 | F173: East
A174: 2005-09-16 | B174: Sioux | C174: Safeway | D174: 180 | E174: 73.8 | F174: West
A175: 2006-09-19 | B175: Joy | C175: Whole Foods | D175: 1429 | E175: 1086.04 | F175: MidWest
A176: 2007-01-17 | B176: Tom | C176: Safeway | D176: 240 | E176: 124.8 | F176: West
A177: 2009-05-08 | B177: Tina | C177: Whole Foods | D177: 197 | E177: 82.74 | F177: MidWest
A178: 2009-01-05 | B178: Joy | C178: PCC | D178: 213 | E178: 104.37 | F178: West
A179: 2011-06-03 | B179: Tom | C179: Fred Myer | D179: 178 | E179: 121.04 | F179: NorthEast
A180: 2009-02-07 | B180: Tom | C180: PCC | D180: 50 | E180: 21 | F180: West
A181: 2007-10-14 | B181: Tom | C181: Coop | D181: 174 | E181: 100.92 | F181: NorthEast
A182: 2007-09-10 | B182: Chin | C182: Whole Foods | D182: 85 | E182: 60.35 | F182: NorthEast
A183: 2010-02-26 | B183: Tina | C183: PCC | D183: 133 | E183: 58.52 | F183: West
A184: 2007-04-16 | B184: Joy | C184: Whole Foods | D184: 194 | E184: 122.22 | F184: NorthEast
A185: 2006-11-29 | B185: Tina | C185: PCC | D185: 1423 | E185: 711.5 | F185: NorthWest
A186: 2005-11-01 | B186: Tina | C186: Fred Myer | D186: 201 | E186: 134.67 | F186: West
A187: 2006-01-31 | B187: Joy | C187: Coop | D187: 98 | E187: 49.98 | F187: East
A188: 2009-06-14 | B188: Sioux | C188: Safeway | D188: 154 | E188: 66.22 | F188: NorthEast
A189: 2007-03-16 | B189: Tom | C189: Coop | D189: 895 | E189: 545.95 | F189: NorthEast
A190: 2011-01-25 | B190: Chin | C190: Whole Foods | D190: 244 | E190: 126.88 | F190: East
A191: 2011-03-24 | B191: Chin | C191: Whole Foods | D191: 110 | E191: 47.3 | F191: MidWest
A192: 2007-02-24 | B192: Tom | C192: PCC | D192: 65 | E192: 27.3 | F192: West
A193: 2011-06-06 | B193: Tina | C193: Coop | D193: 239 | E193: 138.62 | F193: West
A194: 2007-05-15 | B194: Sioux | C194: Safeway | D194: 52 | E194: 40.56 | F194: NorthWest
A195: 2005-07-05 | B195: Tom | C195: Fred Myer | D195: 1233 | E195: 875.43 | F195: MidWest
A196: 2006-06-24 | B196: Tina | C196: Safeway | D196: 69 | E196: 28.29 | F196: MidWest
A197: 2009-03-08 | B197: Joy | C197: Whole Foods | D197: 53 | E197: 40.28 | F197: West
A198: 2005-09-11 | B198: Joy | C198: Coop | D198: 180 | E198: 135 | F198: East
A199: 2011-04-02 | B199: Chin | C199: Fred Myer | D199: 75 | E199: 46.5 | F199: NorthWest
A200: 2008-01-24 | B200: Tina | C200: Fred Myer | D200: 143 | E200: 97.24 | F200: West
... 391 more rows

Sheet PT(1an)
A3: Row Labels | B3: Sum of Sales
A4: 0-249 | B4: 75013
A5: 250-499 | B5: 750
A6: 500-749 | B6: 5790
A7: 750-999 | B7: 11122
A8: 1000-1249 | B8: 28854
A9: 1250-1499 | B9: 19371
A10: 1500-1749 | B10: 22895
A11: 1750-2000 | B11: 30468
A12: Grand Total | B12: 194263

Sheet Data Set
A1: Elements | B1: Are the entities on which data are collected. (Also called Primary Keys in Database & Excel)
A2: Variables | B2: Characteristic or attribute of interest for the elements (Also called Fields in Database & Excel) | G2: ** Column Headers, Column Labels | J2: **Variable = attribute or property that describes a person or thing (Conrad Carlberg)
A3: Observation | B3: The set of measurements collected for a particular element (Also called Records in Database & Excel)
A5: Company Name | B5: Market Stock Value | C5: Qtrly Rev Growth | D5: EBITDA | E5: Earnings per Share | F5: P/E Ratio
A6: Whole Foods Market Inc. | B6: 3.19B | C6: 0.276 | D6: 510.27M | E6: 1.153 | F6: 19.71
A7: Kroger Co. | B7: 18.91B | C7: 0.115 | D7: 3.78B | E7: 1.795 | F7: 16.16
A8: Safeway | B8: 12.27B | C8: 0.073 | D8: 2.93B | E8: 2.04 | F8: 13.74
A10: Student ID | B10: First | C10: Last | D10: Address | E10: City | F10: State
A11: 8805859878 | B11: Sioux | C11: RadCool | D11: 14 13th Ave | E11: Seattle | F11: WA
A12: 8805856589 | B12: Chin | C12: Pham | D12: 1344 Birch St. | E12: Burien | F12: WA
A13: 8805852111 | B13: Shelia | C13: Dawn | D13: 5845 104th SW | E13: Seattle | F13: WA
A15: Data | B15: Facts and figures collected, summarized, analyzed, and interpreted.
A16: Data Set | B16: The data collected in a particular study
A17: Number of Elements = Number of Observation | B17: A data set with n elements contains n observations
A18: Total pieces of data | B18: Number of elements * # of variables
A19: Source of Data | B19: Individual Companies, Data Companies, Trade Groups, Internet, Governments…
A20: Data Warehousing | B20: Capturing, storing and maintaining data
A21: Data Mining | B21: Creating useful information from large data sets (Like Amazon or Google)
A23: Date | B23: Open | C23: High | D23: Low | E23: Close | F23: Volume | G23: Adj Close | H23: Stock | I23: % Monthly Return
A24: 2004-10-01 | B24: 27.82 | C24: 28.89 | D24: 27.55 | E24: 27.97 | F24: 65742900 | G24: 22.38 | H24: MSFT | I24: 0.01175406872
A25: 2004-11-01 | B25: 28.16 | C25: 30.2 | D25: 26.1 | E25: 26.81 | F25: 86446000 | G25: 23.91 | H25: MSFT | I25: 0.06836461126 | K25: Stock | L25: Mean Monthly Return | M25: StdDev
A26: 2004-12-01 | B26: 26.95 | C26: 27.44 | D26: 26.68 | E26: 26.72 | F26: 84488000 | G26: 23.83 | H26: MSFT | I26: -0.003345880385 | K26: GOOG | L26: 0.02670749562 | M26: 0.1158901439
A27: 2005-01-03 | B27: 26.8 | C27: 27.1 | D27: 25.64 | E27: 26.28 | F27: 79642800 | G27: 23.44 | H27: MSFT | I27: -0.0163659253 | K27: MSFT | L27: 0.005675167139 | M27: 0.07446974392
A28: 2005-02-01 | B28: 26.25 | C28: 26.5 | D28: 25.13 | E28: 25.16 | F28: 75992300 | G28: 22.51 | H28: MSFT | I28: -0.03967576792
A29: 2005-03-01 | B29: 25.19 | C29: 25.79 | D29: 23.82 | E29: 24.17 | F29: 72899700 | G29: 21.62 | H29: MSFT | I29: -0.03953798312
A30: 2005-04-01 | B30: 24.24 | C30: 25.45 | D30: 23.94 | E30: 25.3 | F30: 77090200 | G30: 22.63 | H30: MSFT | I30: 0.0467160037 | K30: Stock | L30: Mean Monthly Return | M30: Variability In Returns
A31: 2005-05-02 | B31: 25.23 | C31: 26.09 | D31: 24.64 | E31: 25.8 | F31: 62699700 | G31: 23.15 | H31: MSFT | I31: 0.02297834733 | K31: GOOG | L31: =AVERAGEIF($H$24:$H$173,K31,$I$24:$I$173) -> 0.02670749562 | M31: =_xlfn.STDEV.S(IF($H$24:$H$173=K31,$I$24:$I$173)) -> 0.1158901439
A32: 2005-06-01 | B32: 25.73 | C32: 26 | D32: 24.82 | E32: 24.84 | F32: 62956700 | G32: 22.29 | H32: MSFT | I32: -0.03714902808 | K32: MSFT | L32: =AVERAGEIF($H$24:$H$173,K32,$I$24:$I$173) -> 0.005675167139 | M32: =_xlfn.STDEV.S(IF($H$24:$H$173=K32,$I$24:$I$173)) -> 0.07446974392
A33: 2005-07-01 | B33: 24.85 | C33: 26.48 | D33: 24.5 | E33: 25.61 | F33: 69046600 | G33: 22.98 | H33: MSFT | I33: 0.03095558546
A34: 2005-08-01 | B34: 25.81 | C34: 27.94 | D34: 25.76 | E34: 27.38 | F34: 65529900 | G34: 24.64 | H34: MSFT | I34: 0.07223672759
A35: 2005-09-01 | B35: 27.38 | C35: 27.39 | D35: 25.12 | E35: 25.73 | F35: 66976400 | G35: 23.16 | H35: MSFT | I35: -0.06006493506
A36: 2005-10-03 | B36: 25.71 | C36: 25.8 | D36: 24.25 | E36: 25.7 | F36: 72132400 | G36: 23.13 | H36: MSFT | I36: -0.001295336788
A37: 2005-11-01 | B37: 25.61 | C37: 28.25 | D37: 25.61 | E37: 27.68 | F37: 71469100 | G37: 24.99 | H37: MSFT | I37: 0.0804150454
A38: 2005-12-01 | B38: 27.73 | C38: 28.1 | D38: 26.1 | E38: 26.15 | F38: 62892300 | G38: 23.61 | H38: MSFT | I38: -0.05522208884
A39: 2006-01-03 | B39: 26.25 | C39: 28.38 | D39: 26.1 | E39: 28.15 | F39: 74173200 | G39: 25.41 | H39: MSFT | I39: 0.07623888183
A40: 2006-02-01 | B40: 27.96 | C40: 28.07 | D40: 26.34 | E40: 26.87 | F40: 58565000 | G40: 24.34 | H40: MSFT | I40: -0.04210940575
A41: 2006-03-01 | B41: 26.98 | C41: 28.22 | D41: 26.62 | E41: 27.21 | F41: 65223100 | G41: 24.65 | H41: MSFT | I41: 0.01273623665
A42: 2006-04-03 | B42: 27.67 | C42: 27.94 | D42: 24 | E42: 24.15 | F42: 107219900 | G42: 21.87 | H42: MSFT | I42: -0.1127789047
A43: 2006-05-01 | B43: 24.32 | C43: 25 | D43: 22.45 | E43: 22.65 | F43: 110427000 | G43: 20.6 | H43: MSFT | I43: -0.0580704161
A44: 2006-06-01 | B44: 22.74 | C44: 23.65 | D44: 21.46 | E44: 23.3 | F44: 92940200 | G44: 21.19 | H44: MSFT | I44: 0.0286407767
A45: 2006-07-03 | B45: 23.53 | C45: 24.6 | D45: 22.23 | E45: 24.06 | F45: 68627600 | G45: 21.88 | H45: MSFT | I45: 0.0325625295
A46: 2006-08-01 | B46: 24.02 | C46: 26.25 | D46: 23.85 | E46: 25.7 | F46: 50459500 | G46: 23.45 | H46: MSFT | I46: 0.07175502742
A47: 2006-09-01 | B47: 25.89 | C47: 27.52 | D47: 25.39 | E47: 27.35 | F47: 56588300 | G47: 24.96 | H47: MSFT | I47: 0.06439232409
A48: 2006-10-02 | B48: 27.32 | C48: 28.85 | D48: 27.15 | E48: 28.71 | F48: 61492200 | G48: 26.2 | H48: MSFT | I48: 0.04967948718
A49: 2006-11-01 | B49: 28.78 | C49: 30 | D49: 28.58 | E49: 29.36 | F49: 61544700 | G49: 26.89 | H49: MSFT | I49: 0.02633587786
A50: 2006-12-01 | B50: 29.23 | C50: 30.26 | D50: 28.8 | E50: 29.86 | F50: 58945000 | G50: 27.34 | H50: MSFT | I50: 0.01673484567
A51: 2007-01-03 | B51: 29.91 | C51: 31.48 | D51: 29.4 | E51: 30.86 | F51: 69924300 | G51: 28.26 | H51: MSFT | I51: 0.03365032919
A52: 2007-02-01 | B52: 30.84 | C52: 30.94 | D52: 27.79 | E52: 28.17 | F52: 72483300 | G52: 25.89 | H52: MSFT | I52: -0.0838641189
A53: 2007-03-01 | B53: 27.82 | C53: 28.55 | D53: 26.6 | E53: 27.87 | F53: 59843900 | G53: 25.61 | H53: MSFT | I53: -0.01081498648
A54: 2007-04-02 | B54: 27.89 | C54: 30.74 | D54: 27.56 | E54: 29.94 | F54: 51337600 | G54: 27.51 | H54: MSFT | I54: 0.07418976962
A55: 2007-05-01 | B55: 29.94 | C55: 31.16 | D55: 29.9 | E55: 30.69 | F55: 64202000 | G55: 28.29 | H55: MSFT | I55: 0.02835332606
A56: 2007-06-01 | B56: 30.79 | C56: 30.9 | D56: 29.04 | E56: 29.47 | F56: 59647900 | G56: 27.17 | H56: MSFT | I56: -0.03958996112
A57: 2007-07-02 | B57: 29.67 | C57: 31.84 | D57: 28.95 | E57: 28.99 | F57: 64862000 | G57: 26.73 | H57: MSFT | I57: -0.01619433198
A58: 2007-08-01 | B58: 28.95 | C58: 30.1 | D58: 27.51 | E58: 28.73 | F58: 55264800 | G58: 26.58 | H58: MSFT | I58: -0.005611672278
A59: 2007-09-04 | B59: 28.5 | C59: 29.85 | D59: 28.27 | E59: 29.46 | F59: 61223000 | G59: 27.25 | H59: MSFT | I59: 0.0252069225
A60: 2007-10-01 | B60: 29.46 | C60: 37 | D60: 29.29 | E60: 36.81 | F60: 85080900 | G60: 34.05 | H60: MSFT | I60: 0.2495412844
A61: 2007-11-01 | B61: 36.53 | C61: 37.5 | D61: 32.68 | E61: 33.6 | F61: 90498800 | G61: 31.19 | H61: MSFT | I61: -0.08399412628
A62: 2007-12-03 | B62: 33.5 | C62: 36.72 | D62: 32.63 | E62: 35.6 | F62: 55002300 | G62: 33.04 | H62: MSFT | I62: 0.05931388265
A63: 2008-01-02 | B63: 35.79 | C63: 35.96 | D63: 31.04 | E63: 32.6 | F63: 97806800 | G63: 30.26 | H63: MSFT | I63: -0.08414043584
A64: 2008-02-01 | B64: 31.06 | C64: 33.25 | D64: 27.02 | E64: 27.2 | F64: 122053500 | G64: 25.35 | H64: MSFT | I64: -0.1622604098
A65: 2008-03-03 | B65: 27.24 | C65: 29.59 | D65: 26.87 | E65: 28.38 | F65: 74958500 | G65: 26.44 | H65: MSFT | I65: 0.04299802761
A66: 2008-04-01 | B66: 28.83 | C66: 32.1 | D66: 27.93 | E66: 28.52 | F66: 69066000 | G66: 26.58 | H66: MSFT | I66: 0.005295007564
A67: 2008-05-01 | B67: 28.5 | C67: 30.53 | D67: 27.95 | E67: 28.32 | F67: 69931800 | G67: 26.49 | H67: MSFT | I67: -0.003386004515
A68: 2008-06-02 | B68: 28.24 | C68: 29.57 | D68: 27.11 | E68: 27.51 | F68: 77058100 | G68: 25.73 | H68: MSFT | I68: -0.02869007173
A69: 2008-07-01 | B69: 27.27 | C69: 27.91 | D69: 24.87 | E69: 25.72 | F69: 77180100 | G69: 24.05 | H69: MSFT | I69: -0.06529343179
A70: 2008-08-01 | B70: 25.92 | C70: 28.5 | D70: 25.07 | E70: 27.29 | F70: 59889700 | G70: 25.62 | H70: MSFT | I70: 0.06528066528
A71: 2008-09-02 | B71: 27.67 | C71: 27.76 | D71: 23.5 | E71: 26.69 | F71: 96891900 | G71: 25.06 | H71: MSFT | I71: -0.0218579235
A72: 2008-10-01 | B72: 26.38 | C72: 27.47 | D72: 20.65 | E72: 22.33 | F72: 136418800 | G72: 20.97 | H72: MSFT | I72: -0.1632083001
A73: 2008-11-03 | B73: 22.48 | C73: 23.66 | D73: 17.5 | E73: 20.22 | F73: 95976900 | G73: 19.11 | H73: MSFT | I73: -0.0886981402
A74: 2008-12-01 | B74: 19.88 | C74: 21.25 | D74: 18.47 | E74: 19.44 | F74: 72425500 | G74: 18.38 | H74: MSFT | I74: -0.03819989534
A75: 2009-01-02 | B75: 19.53 | C75: 21 | D75: 16.75 | E75: 17.1 | F75: 81319400 | G75: 16.17 | H75: MSFT | I75: -0.1202393906
A76: 2009-02-02 | B76: 17.03 | C76: 19.93 | D76: 16.1 | E76: 16.15 | F76: 81560000 | G76: 15.37 | H76: MSFT | I76: -0.04947433519
A77: 2009-03-02 | B77: 15.96 | C77: 18.88 | D77: 14.87 | E77: 18.37 | F77: 78069100 | G77: 17.48 | H77: MSFT | I77: 0.1372804164
A78: 2009-04-01 | B78: 18.23 | C78: 21.2 | D78: 18.18 | E78: 20.26 | F78: 78563800 | G78: 19.28 | H78: MSFT | I78: 0.1029748284
A79: 2009-05-01 | B79: 20.19 | C79: 20.94 | D79: 19.01 | E79: 20.89 | F79: 57362800 | G79: 20.01 | H79: MSFT | I79: 0.03786307054
A80: 2009-06-01 | B80: 21 | C80: 24.34 | D80: 20.86 | E80: 23.77 | F80: 67163500 | G80: 22.77 | H80: MSFT | I80: 0.1379310345
A81: 2009-07-01 | B81: 24.05 | C81: 25.72 | D81: 22 | E81: 23.52 | F81: 71441700 | G81: 22.53 | H81: MSFT | I81: -0.01054018445
A82: 2009-08-03 | B82: 23.82 | C82: 25.49 | D82: 23.03 | E82: 24.65 | F82: 49659200 | G82: 23.74 | H82: MSFT | I82: 0.05370616955
A83: 2009-09-01 | B83: 24.35 | C83: 26.25 | D83: 23.76 | E83: 25.72 | F83: 52500600 | G83: 24.77 | H83: MSFT | I83: 0.04338668913
A84: 2009-10-01 | B84: 25.41 | C84: 29.35 | D84: 24.43 | E84: 27.73 | F84: 72581900 | G84: 26.71 | H84: MSFT | I84: 0.07832054905
A85: 2009-11-02 | B85: 27.7 | C85: 30.14 | D85: 27.41 | E85: 29.41 | F85: 53121400 | G85: 28.45 | H85: MSFT | I85: 0.06514414077
A86: 2009-12-01 | B86: 29.52 | C86: 31.5 | D86: 29.25 | E86: 30.48 | F86: 43297000 | G86: 29.49 | H86: MSFT | I86: 0.03655536028
A87: 2010-01-04 | B87: 30.62 | C87: 31.24 | D87: 27.66 | E87: 28.18 | F87: 81765200 | G87: 27.26 | H87: MSFT | I87: -0.07561885385
A88: 2010-02-01 | B88: 28.39 | C88: 29.03 | D88: 27.57 | E88: 28.67 | F88: 58684900 | G88: 27.87 | H88: MSFT | I88: 0.02237710932
A89: 2010-03-01 | B89: 28.77 | C89: 30.57 | D89: 28.24 | E89: 29.29 | F89: 51043300 | G89: 28.47 | H89: MSFT | I89: 0.0215285253
A90: 2010-04-01 | B90: 29.35 | C90: 31.58 | D90: 28.62 | E90: 30.54 | F90: 65821100 | G90: 29.69 | H90: MSFT | I90: 0.04285212504
A91: 2010-05-03 | B91: 30.67 | C91: 31.06 | D91: 24.56 | E91: 25.8 | F91: 89381300 | G91: 25.19 | H91: MSFT | I91: -0.1515661839
A92: 2010-06-01 | B92: 25.53 | C92: 26.93 | D92: 22.95 | E92: 23.01 | F92: 79675500 | G92: 22.47 | H92: MSFT | I92: -0.1079793569
A93: 2010-07-01 | B93: 23.09 | C93: 26.41 | D93: 22.73 | E93: 25.81 | F93: 71053500 | G93: 25.2 | H93: MSFT | I93: 0.1214953271
A94: 2010-08-02 | B94: 25.99 | C94: 26.38 | D94: 23.32 | E94: 23.47 | F94: 61156600 | G94: 23.04 | H94: MSFT | I94: -0.08571428571
A95: 2010-09-01 | B95: 23.67 | C95: 25.53 | D95: 23.54 | E95: 24.49 | F95: 63542900 | G95: 24.04 | H95: MSFT | I95: 0.04340277778
A96: 2010-10-01 | B96: 24.77 | C96: 27.2 | D96: 23.78 | E96: 26.67 | F96: 66458300 | G96: 26.18 | H96: MSFT | I96: 0.08901830283
A97: 2010-11-01 | B97: 26.88 | C97: 28.87 | D97: 24.93 | E97: 25.26 | F97: 68402700 | G97: 24.95 | H97: MSFT | I97: -0.04698242934
A98: 2010-12-01 | B98: 25.57 | C98: 28.4 | D98: 25.56 | E98: 27.91 | F98: 48111900 | G98: 27.57 | H98: MSFT | I98: 0.10501002
A99: 2004-10-01 | B99: 130.8 | C99: 199.95 | D99: 128.9 | E99: 190.64 | F99: 13249000 | G99: 190.64 | H99: GOOG | I99: 0.4709876543
A100: 2004-11-01 | B100: 193.55 | C100: 201.6 | D100: 161.31 | E100: 181.98 | F100: 13585400 | G100: 181.98 | H100: GOOG | I100: -0.0454259337
A101: 2004-12-01 | B101: 181.95 | C101: 199.88 | D101: 168.47 | E101: 192.79 | F101: 6955000 | G101: 192.79 | H101: GOOG | I101: 0.0594021321
A102: 2005-01-03 | B102: 197.4 | C102: 205.3 | D102: 176.29 | E102: 195.62 | F102: 10738000 | G102: 195.62 | H102: GOOG | I102: 0.01467918461
A103: 2005-02-01 | B103: 194.38 | C103: 216.8 | D103: 181 | E103: 187.99 | F103: 17548800 | G103: 187.99 | H103: GOOG | I103: -0.0390041918
A104: 2005-03-01 | B104: 189.29 | C104: 189.85 | D104: 172.57 | E104: 180.51 | F104: 8123500 | G104: 180.51 | H104: GOOG | I104: -0.0397893505
A105: 2005-04-01 | B105: 181.76 | C105: 224.74 | D105: 179.84 | E105: 220 | F105: 11231400 | G105: 220 | H105: GOOG | I105: 0.2187690433
A106: 2005-05-02 | B106: 222.05 | C106: 278.4 | D106: 220.21 | E106: 277.27 | F106: 13143100 | G106: 277.27 | H106: GOOG | I106: 0.2603181818
A107: 2005-06-01 | B107: 283.2 | C107: 309.25 | D107: 267.43 | E107: 294.15 | F107: 18368000 | G107: 294.15 | H107: GOOG | I107: 0.06087928734
A108: 2005-07-01 | B108: 295.04 | C108: 317.8 | D108: 286.99 | E108: 287.76 | F108: 10665600 | G108: 287.76 | H108: GOOG | I108: -0.0217236104
A109: 2005-08-01 | B109: 288.12 | C109: 299.72 | D109: 273.35 | E109: 286 | F109: 6435000 | G109: 286 | H109: GOOG | I109: -0.006116207951
A110: 2005-09-01 | B110: 285.91 | C110: 320.95 | D110: 285 | E110: 316.46 | F110: 8538300 | G110: 316.46 | H110: GOOG | I110: 0.1065034965
A111: 2005-10-03 | B111: 313.63 | C111: 374.75 | D111: 290.68 | E111: 372.14 | F111: 9871600 | G111: 372.14 | H111: GOOG | I111: 0.1759464071
A112: 2005-11-01 | B112: 371.86 | C112: 431.24 | D112: 369.01 | E112: 404.91 | F112: 10822000 | G112: 404.91 | H112: GOOG | I112: 0.08805825764
A113: 2005-12-01 | B113: 409.2 | C113: 446.21 | D113: 399.01 | E113: 414.86 | F113: 9826200 | G113: 414.86 | H113: GOOG | I113: 0.02457336198
A114: 2006-01-03 | B114: 422.52 | C114: 475.11 | D114: 394.74 | E114: 432.66 | F114: 16055300 | G114: 432.66 | H114: GOOG | I114: 0.04290604059
A115: 2006-02-01 | B115: 389.03 | C115: 406.5 | D115: 337.83 | E115: 362.62 | F115: 17734800 | G115: 362.62 | H115: GOOG | I115: -0.1618823094
A116: 2006-03-01 | B116: 368.56 | C116: 399 | D116: 331.55 | E116: 390 | F116: 14925400 | G116: 390 | H116: GOOG | I116: 0.07550603938
A117: 2006-04-03 | B117: 389.53 | C117: 450.72 | D117: 387.93 | E117: 417.94 | F117: 10143900 | G117: 417.94 | H117: GOOG | I117: 0.07164102564
A118: 2006-05-01 | B118: 418.47 | C118: 419.44 | D118: 360.57 | E118: 371.82 | F118: 8360000 | G118: 371.82 | H118: GOOG | I118: -0.1103507681
A119: 2006-06-01 | B119: 373.54 | C119: 419.33 | D119: 371.6 | E119: 419.33 | F119: 6756300 | G119: 419.33 | H119: GOOG | I119: 0.1277768813
A120: 2006-07-03 | B120: 420.04 | C120: 427.89 | D120: 377.69 | E120: 386.6 | F120: 6605800 | G120: 386.6 | H120: GOOG | I120: -0.07805308468
A121: 2006-08-01 | B121: 385.11 | C121: 390 | D121: 363.36 | E121: 378.53 | F121: 4779600 | G121: 378.53 | H121: GOOG | I121: -0.02087428867
A122: 2006-09-01 | B122: 380.99 | C122: 418.69 | D122: 376.72 | E122: 401.9 | F122: 6243100 | G122: 401.9 | H122: GOOG | I122: 0.0617388318
A123: 2006-10-02 | B123: 401.9 | C123: 491.96 | D123: 398.19 | E123: 476.39 | F123: 7490800 | G123: 476.39 | H123: GOOG | I123: 0.1853446131
A124: 2006-11-01 | B124: 478.76 | C124: 513 | D124: 465.06 | E124: 484.81 | F124: 5905600 | G124: 484.81 | H124: GOOG | I124: 0.01767459434
A125: 2006-12-01 | B125: 485.98 | C125: 492.4 | D125: 452.34 | E125: 460.48 | F125: 4711100 | G125: 460.48 | H125: GOOG | I125: -0.0501846084
A126: 2007-01-03 | B126: 466 | C126: 513 | D126: 461.11 | E126: 501.5 | F126: 6839600 | G126: 501.5 | H126: GOOG | I126: 0.089080959
A127: 2007-02-01 | B127: 506 | C127: 506.01 | D127: 443.04 | E127: 449.45 | F127: 6418200 | G127: 449.45 | H127: GOOG | I127: -0.1037886341
A128: 2007-03-01 | B128: 442.67 | C128: 466 | D128: 437 | E128: 458.16 | F128: 5522500 | G128: 458.16 | H128: GOOG | I128: 0.01937924129
A129: 2007-04-02 | B129: 457.76 | C129: 492.5 | D129: 452.12 | E129: 471.38 | F129: 4829900 | G129: 471.38 | H129: GOOG | I129: 0.02885454863
A130: 2007-05-01 | B130: 472.19 | C130: 508.78 | D130: 457.41 | E130: 497.91 | F130: 4932000 | G130: 497.91 | H130: GOOG | I130: 0.05628155628
A131: 2007-06-01 | B131: 501 | C131: 534.99 | D131: 497.59 | E131: 522.7 | F131: 6329900 | G131: 522.7 | H131: GOOG | I131: 0.04978811432
A132: 2007-07-02 | B132: 525.49 | C132: 558.58 | D132: 498.88 | E132: 510 | F132: 5757200 | G132: 510 | H132: GOOG | I132: -0.02429691984
A133: 2007-08-01 | B133: 510.5 | C133: 526.82 | D133: 480.46 | E133: 515.25 | F133: 3985700 | G133: 515.25 | H133: GOOG | I133: 0.01029411765
A134: 2007-09-04 | B134: 515.02 | C134: 571.79 | D134: 510.88 | E134: 567.27 | F134: 3792200 | G134: 567.27 | H134: GOOG | I134: 0.1009606987
A135: 2007-10-01 | B135: 569.97 | C135: 707 | D135: 569.61 | E135: 707 | F135: 7057700 | G135: 707 | H135: GOOG | I135: 0.2463200945
A136: 2007-11-01 | B136: 702.79 | C136: 747.24 | D136: 616.02 | E136: 693 | F136: 8539500 | G136: 693 | H136: GOOG | I136: -0.0198019802
A137: 2007-12-03 | B137: 691.01 | C137: 724.8 | D137: 652.5 | E137: 691.48 | F137: 4384500 | G137: 691.48 | H137: GOOG | I137: -0.002193362193
A138: 2008-01-02 | B138: 692.87 | C138: 697.37 | D138: 519 | E138: 564.3 | F138: 8221900 | G138: 564.3 | H138: GOOG | I138: -0.1839243362
A139: 2008-02-01 | B139: 528.67 | C139: 541.04 | D139: 446.85 | E139: 471.18 | F139: 9330500 | G139: 471.18 | H139: GOOG | I139: -0.1650186071
A140: 2008-03-03 | B140: 471.51 | C140: 472.72 | D140: 412.11 | E140: 440.47 | F140: 7503000 | G140: 440.47 | H140: GOOG | I140: -0.06517679019
A141: 2008-04-01 | B141: 447.74 | C141: 584.86 | D141: 441 | E141: 574.29 | F141: 6861200 | G141: 574.29 | H141: GOOG | I141: 0.3038118374
A142: 2008-05-01 | B142: 578.31 | C142: 602.45 | D142: 537.81 | E142: 585.8 | F142: 5136000 | G142: 585.8 | H142: GOOG | I142: 0.02004213899
A143: 2008-06-02 | B143: 582.5 | C143: 588.04 | D143: 515.09 | E143: 526.42 | F143: 4645200 | G143: 526.42 | H143: GOOG | I143: -0.1013656538
A144: 2008-07-01 | B144: 519.58 | C144: 555.68 | D144: 465.6 | E144: 473.75 | F144: 4861400 | G144: 473.75 | H144: GOOG | I144: -0.1000531895
A145: 2008-08-01 | B145: 472.51 | C145: 510.66 | D145: 461.9 | E145: 463.29 | F145: 3460100 | G145: 463.29 | H145: GOOG | I145: -0.02207915567
A146: 2008-09-02 | B146: 476.77 | C146: 482.18 | D146: 380.71 | E146: 400.52 | F146: 6531600 | G146: 400.52 | H146: GOOG | I146: -0.1354874916
A147: 2008-10-01 | B147: 411.15 | C147: 416.98 | D147: 309.44 | E147: 359.36 | F147: 8987700 | G147: 359.36 | H147: GOOG | I147: -0.1027664037
A148: 2008-11-03 | B148: 357.58 | C148: 372.36 | D148: 247.3 | E148: 292.96 | F148: 8452500 | G148: 292.96 | H148: GOOG | I148: -0.1847729297
A149: 2008-12-01 | B149: 286.68 | C149: 329.5 | D149: 262.58 | E149: 307.65 | F149: 5267900 | G149: 307.65 | H149: GOOG | I149: 0.05014336428
A150: 2009-01-02 | B150: 308.6 | C150: 352.33 | D150: 282.75 | E150: 338.53 | F150: 5727600 | G150: 338.53 | H150: GOOG | I150: 0.1003738014
A151: 2009-02-02 | B151: 334.29 | C151: 381 | D151: 329.55 | E151: 337.99 | F151: 6158100 | G151: 337.99 | H151: GOOG | I151: -0.001595131894
A152: 2009-03-02 | B152: 333.33 | C152: 359.16 | D152: 289.45 | E152: 348.06 | F152: 5346800 | G152: 348.06 | H152: GOOG | I152: 0.02979378088
A153: 2009-04-01 | B153: 343.78 | C153: 403.75 | D153: 340.61 | E153: 395.97 | F153: 4389900 | G153: 395.97 | H153: GOOG | I153: 0.1376486813
A154: 2009-05-01 | B154: 395.03 | C154: 417.23 | D154: 384.69 | E154: 417.23 | F154: 2984100 | G154: 417.23 | H154: GOOG | I154: 0.05369093618
A155: 2009-06-01 | B155: 418.73 | C155: 447.34 | D155: 401.89 | E155: 421.59 | F155: 3320600 | G155: 421.59 | H155: GOOG | I155: 0.01044987177
A156: 2009-07-01 | B156: 424.2 | C156: 452.7 | D156: 395.98 | E156: 443.05 | F156: 3448900 | G156: 443.05 | H156: GOOG | I156: 0.05090253564
A157: 2009-08-03 | B157: 448.74 | C157: 474.35 | D157: 438.56 | E157: 461.67 | F157: 2414100 | G157: 461.67 | H157: GOOG | I157: 0.04202685927
A158: 2009-09-01 | B158: 459.68 | C158: 507 | D158: 452.59 | E158: 495.85 | F158: 2581900 | G158: 495.85 | H158: GOOG | I158: 0.07403556653
A159: 2009-10-01 | B159: 493 | C159: 561.64 | D159: 482.6 | E159: 536.12 | F159: 3665500 | G159: 536.12 | H159: GOOG | I159: 0.08121407684
A160: 2009-11-02 | B160: 537.08 | C160: 587.06 | D160: 528.24 | E160: 583 | F160: 2131500 | G160: 583 | H160: GOOG | I160: 0.08744310975
A161: 2009-12-01 | B161: 588.13 | C161: 625.99 | D161: 579.18 | E161: 619.98 | F161: 1992700 | G161: 619.98 | H161: GOOG | I161: 0.06343053173
A162: 2010-01-04 | B162: 626.95 | C162: 629.51 | D162: 525.61 | E162: 529.94 | F162: 4907400 | G162: 529.94 | H162: GOOG | I162: -0.1452304913
A163: 2010-02-01 | B163: 534.6 | C163: 547.5 | D163: 520 | E163: 526.8 | F163: 2846500 | G163: 526.8 | H163: GOOG | I163: -0.005925199079
A164: 2010-03-01 | B164: 529.2 | C164: 588.28 | D164: 527.74 | E164: 567.12 | F164: 3774000 | G164: 567.12 | H164: GOOG | I164: 0.07653758542
A165: 2010-04-01 | B165: 571.35 | C165: 597.84 | D165: 521.03 | E165: 525.7 | F165: 3595000 | G165: 525.7 | H165: GOOG | I165: -0.0730356891
A166: 2010-05-03 | B166: 526.5 | C166: 532.92 | D166: 460 | E166: 485.63 | F166: 4222800 | G166: 485.63 | H166: GOOG | I166: -0.07622217995
A167: 2010-06-01 | B167: 480.43 | C167: 509.25 | D167: 444.72 | E167: 444.95 | F167: 2884800 | G167: 444.95 | H167: GOOG | I167: -0.0837674773
A168: 2010-07-01 | B168: 445.29 | C168: 497.5 | D168: 433.63 | E168: 484.85 | F168: 3402500 | G168: 484.85 | H168: GOOG | I168: 0.08967299697
A169: 2010-08-02 | B169: 488.99 | C169: 508.6 | D169: 447.65 | E169: 450.02 | F169: 2491000 | G169: 450.02 | H169: GOOG | I169: -0.07183665051
A170: 2010-09-01 | B170: 454.98 | C170: 536.85 | D170: 452.5 | E170: 525.79 | F170: 2997300 | G170: 525.79 | H170: GOOG | I170: 0.1683702947
A171: 2010-10-01 | B171: 530 | C171: 624.74 | D171: 518.85 | E171: 613.7 | F171: 3886900 | G171: 613.7 | H171: GOOG | I171: 0.1671960288
A172: 2010-11-01 | B172: 615.73 | C172: 630.85 | D172: 553.31 | E172: 555.71 | F172: 3121800 | G172: 555.71 | H172: GOOG | I172: -0.09449242301
A173: 2010-12-01 | B173: 563 | C173: 607 | D173: 562.4 | E173: 593.97 | F173: 1992000 | G173: 593.97 | H173: GOOG | I173: 0.06884886002

Sheet PT(2an)
A3: Row Labels | B3: Average of % Monthly Return | C3: StdDev of % Monthly Return2
A4: GOOG | B4: 0.02670749562 | C4: 0.1158901439
A5: MSFT | B5: 0.005675167139 | C5: 0.07446974392
A6: Grand Total | B6: 0.01619133138 | C6: 0.09765135575

Sheet ExcelTable
A1: Date | B1: Car | C1: Amount | E1: Car | F1: Total | G1: Count
A2: 2011-06-21 | B2: Camry | C2: 24000 | E2: Camry
A3: 2011-06-21 | B3: Rav | C3: 19000 | E3: Rav
A4: 2011-06-21 | B4: Accord | C4: 24100 | E4: Accord
A5: 2011-06-22 | B5: Camry | C5: 23550
A6: 2011-06-23 | B6: Rav | C6: 21500
A7: 2011-06-23 | B7: Accord | C7: 26500 | E7: **Compare numeric value across category of interest
A8: 2011-06-23 | B8: Accord | C8: 23000
A9: 2011-06-23 | B9: Rav | C9: 20950

Sheet ExcelTable (an)
A1: Date | B1: Car | C1: Amount | E1: Car | F1: Total | G1: Count
A2: 2011-06-21 | B2: Camry | C2: 24000 | E2: Camry | F2: =SUMIF($B$2:$B$9,E2,$C$2:$C$9) -> 47550 | G2: =COUNTIF($B$2:$B$9,E2) -> 2
A3: 2011-06-21 | B3: Rav | C3: 19000 | E3: Rav | F3: =SUMIF($B$2:$B$9,E3,$C$2:$C$9) -> 61450 | G3: =COUNTIF($B$2:$B$9,E3) -> 3
A4: 2011-06-21 | B4: Accord | C4: 24100 | E4: Accord | F4: =SUMIF($B$2:$B$9,E4,$C$2:$C$9) -> 73600 | G4: =COUNTIF($B$2:$B$9,E4) -> 3
A5: 2011-06-22 | B5: Camry | C5: 23550
A6: 2011-06-23 | B6: Rav | C6: 21500
A7: 2011-06-23 | B7: Accord | C7: 26500 | E7: **Compare numeric value across category of interest
A8: 2011-06-23 | B8: Accord | C8: 23000
A9: 2011-06-23 | B9: Rav | C9: 20950

Sheet CrossSectional
A1: Cross Sectional = One Point In Time
A3: County | B3: Date | C3: Number of Building Permits Issued | E3: Date | F3: County | G3: Permits Issued
A4: County 01 | B4: 2007-06-30 | C4: 173 | E4: 2007-06-30
A5: County 02 | B5: 2007-06-30 | C5: 172 | F5: County 06 | G5: 0
A6: County 03 | B6: 2007-06-30 | C6: 248 | F6: County 10 | G6: 62
A7: County 04 | B7: 2007-06-30 | C7: 152 | F7: County 14 | G7: 67
A8: County 05 | B8: 2007-06-30 | C8: 73 | F8: County 11 | G8: 67
A9: County 06 | B9: 2007-06-30 | C9: 0 | F9: County 05 | G9: 73
A10: County 07 | B10: 2007-06-30 | C10: 98 | F10: County 17 | G10: 80
A11: County 08 | B11: 2007-06-30 | C11: 126 | F11: County 07 | G11: 98
A12: County 09 | B12: 2007-06-30 | C12: 231 | F12: County 08 | G12: 126
A13: County 10 | B13: 2007-06-30 | C13: 62 | F13: County 13 | G13: 149
A14: County 11 | B14: 2007-06-30 | C14: 67 | F14: County 04 | G14: 152
A15: County 12 | B15: 2007-06-30 | C15: 186 | F15: County 02 | G15: 172
A16: County 13 | B16: 2007-06-30 | C16: 149 | F16: County 01 | G16: 173
A17: County 14 | B17: 2007-06-30 | C17: 67 | F17: County 16 | G17: 178
A18: County 15 | B18: 2007-06-30 | C18: 220 | F18: County 12 | G18: 186
A19: County 16 | B19: 2007-06-30 | C19: 178 | F19: County 15 | G19: 220
A20: County 17 | B20: 2007-06-30 | C20: 80 | F20: County 09 | G20: 231
F21: County 03 | G21: 248
E22: Grand Total | G22: 2282
A27: One Time, Many Categories

Sheet TimeSeries
A1: Time Series = One or more categories across time
A3: County | B3: Date | C3: Number of Building Permits Issued | E3: County | F3: Date | G3: Building Permits Issued
A4: LUCAS | B4: 2007-06-30 | C4: 100 | E4: LUCAS | F4: 2007-06-30 | G4: 100
A5: LUCAS | B5: 2007-07-31 | C5: 80 | F5: 2007-07-31 | G5: 80
A6: LUCAS | B6: 2007-08-31 | C6: 95 | F6: 2007-08-31 | G6: 95
A7: LUCAS | B7: 2007-09-30 | C7: 65 | F7: 2007-09-30 | G7: 65
A8: LUCAS | B8: 2007-10-31 | C8: 50 | F8: 2007-10-31 | G8: 50
A9: LUCAS | B9: 2007-11-30 | C9: 60 | F9: 2007-11-30 | G9: 60
A10: LUCAS | B10: 2007-12-31 | C10: 27 | F10: 2007-12-31 | G10: 27
A11: LUCAS | B11: 2008-01-31 | C11: 15 | F11: 2008-01-31 | G11: 15
A12: LUCAS | B12: 2008-02-29 | C12: 20 | F12: 2008-02-29 | G12: 20
A13: LUCAS | B13: 2008-03-31 | C13: 30 | F13: 2008-03-31 | G13: 30
A14: LUCAS | B14: 2008-04-30 | C14: 32 | F14: 2008-04-30 | G14: 32
A15: LUCAS | B15: 2008-05-31 | C15: 15 | F15: 2008-05-31 | G15: 15
A16: LUCAS | B16: 2008-06-30 | C16: 10 | F16: 2008-06-30 | G16: 10
A17: LUCAS | B17: 2008-07-31 | C17: 22 | F17: 2008-07-31 | G17: 22
A18: LUCAS | B18: 2008-08-31 | C18: 41 | F18: 2008-08-31 | G18: 41
A19: LUCAS | B19: 2008-09-30 | C19: 37 | F19: 2008-09-30 | G19: 37
A20: LUCAS | B20: 2008-10-31 | C20: 66 | F20: 2008-10-31 | G20: 66
E21: Grand Total | G21: 765
A33: One Category, Many Times

Sheet TimeSeries (2)
A1: Sales of Organic Foods (In Millions)
B2: 2005 | C2: 2006 | D2: 2007 | E2: 2008
A3: Whole Foods | B3: 5000000000 | C3: 6000000000 | D3: 8500000000 | E3: 7900000000
A4: Safeway | B4: 500000000 | C4: 2000000000 | D4: 3000000000 | E4: 2520000000
A5: Trader Joes | B5: 1000000000 | C5: 1200000000 | D5: 1300000000 | E5: 1250000000
G8: Time Series ==>
G22: Cross-sectional ==>

Sheet TimeSeries (2an)
A1: Sales of Organic Foods (In Millions)
B2: 2005 | C2: 2006 | D2: 2007 | E2: 2008
A3: Whole Foods | B3: 5000000000 | C3: 6000000000 | D3: 8500000000 | E3: 7900000000
A4: Safeway | B4: 500000000 | C4: 2000000000 | D4: 3000000000 | E4: 2520000000
A5: Trader Joes | B5: 1000000000 | C5: 1200000000 | D5: 1300000000 | E5: 1250000000
G8: Time Series ==>
G22: Cross-sectional ==>

Sheet Data

Sheet SM(1)
A1: Nominal | B1: When a variable (field) uses a category, label, or name to identify an attribute or characteristic of an element. There is no order or rank to the categories. You usually count how many are in each category. If you use a number as a category label, you cannot do arithmetic (+, -, *. /, ^) on it - you can only count. | H1: Ordinal | I1: When a variable (field) uses a category, label, or name to identify an attribute or characteristic of an element. There is an order or rank to the categories, but you do not know the distance between each ranked category. You usually count how many are in each category. In some cases when a number is used to represent the category, you can calculate an average. | O1: Interval | P1: The numeric data is ranked or ordered and has a fixed unit between each rank. Interval data is usually a scale such as temperature or some tests like IQ or SAT. If zero is in the scale, it is just a point on the scale and zero does not indicate that nothing exists. You can perform subtraction to see the difference between two numbers and you can calculate an average, but the ratio of two numbers (division) not meaningful (like to calculate % change). | X1: Ratio | Y1: The numeric data is ranked or ordered and has a fixed unit between each rank and zero means that nothing exists and division (ratio) is okay (like to calculate % change). | AJ1: interval | AM1: interval
A2: Categorical Data (Variable). Categories, labels or names are used to identify an attribute or characteristic of an element. Nominal or Ordinal. Non-numeric or numeric. Most of the time you are limited to counting. | O2: Quantitative Data (Variable). A number that tells us how much or how many. | AJ2: 300 | AM2: 1000
A4: Student | B4: Phone Type | C4: Phone Type | E4: Phone Type | F4: Count of Phone Type | H4: Student | I4: Rate Instructor | J4: Rate Instructor | L4: Rate Instructor | M4: Frequency (Count) | O4: Fahrenheit | P4: Celsius | R4: Student | S4: SAT scores | U4: Category | V4: Frequency (Count) | X4: Kelvin | Z4: Customer Name | AA4: Amount in Bank | AC4: Category | AD4: Frequency (Count) | AI4: Lower | AJ4: Upper | AL4: Lower | AM4: Upper
A5: Student 01 | B5: Motorola | C5: =VLOOKUP(B5,{"iPhone",1;"Motorola",2;"Nokia",3;"Samsung",4;"Sony Erickson",5;"Sprint",6},2,0) -> 2 | E5: iPhone | F5: 104 | H5: Student 01 | I5: OK | J5: =VLOOKUP(I5,{"Excellent",4;"Poor",1;"Good",3;"OK",2},2,0) -> 2 | L5: Excellent | M5: =COUNTIF($I$5:$I$389,L5) -> 56 | O5: 220 | P5: =CONVERT(O5,"F","C") -> 104.4444444 | R5: Student 1 | S5: 1501 | U5: =AI5&" up tp "&AJ5 -> 600 up tp 900 | V5: =COUNTIFS($S$5:$S$17,">="&AI5,$S$5:$S$17,"<"&AJ5) -> 0 | X5: =CONVERT(O5,"F","K") -> 377.5944444 | Z5: Joe | AA5: 0 | AC5: =AL5&" up tp "&AM5 -> 0 up tp 1000 | AD5: =COUNTIFS($AA$5:$AA$14,">="&AL5,$AA$5:$AA$14,"<"&AM5) -> 5 | AI5: 600 | AJ5: =AI5+$AJ$2 -> 900 | AL5: 0 | AM5: =AL5+$AM$2 -> 1000
A6: Student 02 | B6: Motorola | C6: =VLOOKUP(B6,{"iPhone",1;"Motorola",2;"Nokia",3;"Samsung",4;"Sony Erickson",5;"Sprint",6},2,0) -> 2 | E6: Motorola | F6: 52 | H6: Student 02 | I6: Poor | J6: =VLOOKUP(I6,{"Excellent",4;"Poor",1;"Good",3;"OK",2},2,0) -> 1 | L6: Good | M6: 47 | O6: 219 | P6: 103.8888889 | R6: Student 2 | S6: 1499 | U6: 900 up tp 1200 | V6: 6 | X6: =CONVERT(O6,"F","K") -> 377.0388889 | Z6: Sioux | AA6: 500 | AC6: =AL6&" up tp "&AM6 -> 1000 up tp 2000 | AD6: =COUNTIFS($AA$5:$AA$14,">="&AL6,$AA$5:$AA$14,"<"&AM6) -> 1 | AI6: =AJ5 -> 900 | AJ6: 1200 | AL6: =AM5 -> 1000 | AM6: =AL6+$AM$2 -> 2000
A7: Student 03 | B7: Samsung | C7: =VLOOKUP(B7,{"iPhone",1;"Motorola",2;"Nokia",3;"Samsung",4;"Sony Erickson",5;"Sprint",6},2,0) -> 4 | E7: Nokia | F7: 89 | H7: Student 03 | I7: Good | J7: =VLOOKUP(I7,{"Excellent",4;"Poor",1;"Good",3;"OK",2},2,0) -> 3 | L7: OK | M7: 105 | O7: 218 | P7: 103.3333333 | R7: Student 3 | S7: 1018 | U7: 1200 up tp 1500 | V7: 1 | X7: 376.4833333 | Z7: Dean | AA7: 4589.7 | AC7: 2000 up tp 3000 | AD7: 1 | AI7: =AJ6 -> 1200 | AJ7: 1500 | AL7: =AM6 -> 2000 | AM7: =AL7+$AM$2 -> 3000
A8: Student 04 | B8: Nokia | C8: =VLOOKUP(B8,{"iPhone",1;"Motorola",2;"Nokia",3;"Samsung",4;"Sony Erickson",5;"Sprint",6},2,0) -> 3 | E8: Samsung | F8: 50 | H8: Student 04 | I8: Good | J8: =VLOOKUP(I8,{"Excellent",4;"Poor",1;"Good",3;"OK",2},2,0) -> 3 | L8: Poor | M8: 177 | O8: 217 | P8: 102.7777778 | R8: Student 4 | S8: 1718 | U8: 1500 up tp 1800 | V8: 3 | X8: =CONVERT(O8,"F","K") -> 375.9277778 | Z8: Joe | AA8: 25.25 | AC8: 3000 up tp 4000 | AD8: 0 | AI8: 1500 | AJ8: 1800 | AL8: 3000 | AM8: 4000
A9: Student 05 | B9: Motorola | C9: =VLOOKUP(B9,{"iPhone",1;"Motorola",2;"Nokia",3;"Samsung",4;"Sony Erickson",5;"Sprint",6},2,0) -> 2 | E9: Sony Erickson | F9: 42 | H9: Student 05 | I9: OK | J9: =VLOOKUP(I9,{"Excellent",4;"Poor",1;"Good",3;"OK",2},2,0) -> 2 | O9: 216 | P9: 102.2222222 | R9: Student 5 | S9: 1953 | U9: 1800 up tp 2100 | V9: 2 | X9: 375.3722222 | Z9: Tina | AA9: 158 | AC9: 4000 up tp 5000 | AD9: 2 | AI9: 1800 | AJ9: 2100 | AL9: 4000 | AM9: 5000
A10: Student 06 | B10: Nokia | C10: =VLOOKUP(B10,{"iPhone",1;"Motorola",2;"Nokia",3;"Samsung",4;"Sony Erickson",5;"Sprint",6},2,0) -> 3 | E10: Sprint | F10: 48 | H10: Student 06 | I10: Poor | J10: =VLOOKUP(I10,{"Excellent",4;"Poor",1;"Good",3;"OK",2},2,0) -> 1 | L10: Rate Instructor | M10: Frequency (Count) | O10: 215 | P10: 101.6666667 | R10: Student 6 | S10: 904 | U10: 2100 up tp 2400 | V10: 1 | X10: 374.8166667 | Z10: Amy | AA10: 4525.5 | AC10: 5000 up tp 6000 | AD10: 1 | AI10: 2100 | AJ10: 2400 | AL10: 5000 | AM10: 6000
A11: Student 07 | B11: Sprint | C11: =VLOOKUP(B11,{"iPhone",1;"Motorola",2;"Nokia",3;"Samsung",4;"Sony Erickson",5;"Sprint",6},2,0) -> 6 | E11: Grand Total | F11: 385 | H11: Student 07 | I11: Poor | J11: =VLOOKUP(I11,{"Excellent",4;"Poor",1;"Good",3;"OK",2},2,0) -> 1 | L11: 4 | M11: =COUNTIF($J$5:$J$389,L11) -> 56 | O11: 214 | P11: 101.1111111 | R11: Student 7 | S11: 1697 | X11: 374.2611111 | Z11: Ming | AA11: 526.5
A12: Student 08 | B12: iPhone | C12: =VLOOKUP(B12,{"iPhone",1;"Motorola",2;"Nokia",3;"Samsung",4;"Sony Erickson",5;"Sprint",6},2,0) -> 1 | H12: Student 08 | I12: OK | J12: =VLOOKUP(I12,{"Excellent",4;"Poor",1;"Good",3;"OK",2},2,0) -> 2 | L12: 3 | M12: =COUNTIF($J$5:$J$389,L12) -> 47 | O12: 213 | P12: 100.5555556 | R12: Student 8 | S12: 959 | U12: Average | V12: =AVERAGE(S5:S17) -> 1415.461538 | X12: 373.7055556 | Z12: Pham | AA12: 2258.2 | AC12: Average | AD12: =AVERAGE(AA5:AA14) -> 1931.05
A13: Student 09 | B13: Motorola | C13: =VLOOKUP(B13,{"iPhone",1;"Motorola",2;"Nokia",3;"Samsung",4;"Sony Erickson",5;"Sprint",6},2,0) -> 2 | H13: Student 09 | I13: Poor | J13: =VLOOKUP(I13,{"Excellent",4;"Poor",1;"Good",3;"OK",2},2,0) -> 1 | L13: 2 | M13: 105 | O13: 212 | P13: 100 | R13: Student 9 | S13: 960 | X13: 373.15 | Z13: Phil | AA13: =AA12/2 -> 1129.1
A14: Student 10 | B14: iPhone | C14: =VLOOKUP(B14,{"iPhone",1;"Motorola",2;"Nokia",3;"Samsung",4;"Sony Erickson",5;"Sprint",6},2,0) -> 1 | H14: Student 10 | I14: Poor | J14: =VLOOKUP(I14,{"Excellent",4;"Poor",1;"Good",3;"OK",2},2,0) -> 1 | L14: 1 | M14: 177 | O14: 211 | P14: 99.44444444 | R14: Student 10 | S14: 1808 | U14: Student 6 | V14: =VLOOKUP(U14,$R$5:$S$17,2,0) -> 904 | X14: 372.5944444 | Z14: Shelia | AA14: 5598.25 | AC14: =Z13 -> Phil | AD14: =VLOOKUP(AC14,$Z$5:$AA$14,2,0) -> 1129.1
A15: Student 11 | B15: Samsung | C15: =VLOOKUP(B15,{"iPhone",1;"Motorola",2;"Nokia",3;"Samsung",4;"Sony Erickson",5;"Sprint",6},2,0) -> 4 | H15: Student 11 | I15: Poor | J15: =VLOOKUP(I15,{"Excellent",4;"Poor",1;"Good",3;"OK",2},2,0) -> 1 | O15: 210 | P15: 98.88888889 | R15: Student 11 | S15: 2183 | U15: Student 10 | V15: 1808 | X15: 372.0388889 | AC15: =Z12 -> Pham | AD15: =VLOOKUP(AC15,$Z$5:$AA$14,2,0) -> 2258.2
A16: Student 12 | B16: Motorola | C16: =VLOOKUP(B16,{"iPhone",1;"Motorola",2;"Nokia",3;"Samsung",4;"Sony Erickson",5;"Sprint",6},2,0) -> 2 | H16: Student 12 | I16: OK | J16: =VLOOKUP(I16,{"Excellent",4;"Poor",1;"Good",3;"OK",2},2,0) -> 2 | L16: Average | M16: =AVERAGE(J5:J389) -> 1.953246753 | O16: 209 | P16: 98.33333333 | R16: Student 12 | S16: 1124 | U16: Ratio | V16: =V15/V14 -> 2 | X16: 371.4833333 | AC16: Ratio | AD16: =AD15/AD14 -> 2
A17: Student 13 | B17: Samsung | C17: =VLOOKUP(B17,{"iPhone",1;"Motorola",2;"Nokia",3;"Samsung",4;"Sony Erickson",5;"Sprint",6},2,0) -> 4 | H17: Student 13 | I17: Excellent | J17: =VLOOKUP(I17,{"Excellent",4;"Poor",1;"Good",3;"OK",2},2,0) -> 4 | O17: 208 | P17: 97.77777778 | R17: Student 13 | S17: 1077 | U17: % Change | V17: =V15/V14-1 -> 1 | X17: 370.9277778 | AC17: % Change | AD17: =AD15/AD14-1 -> 1
A18: Student 14 | B18: iPhone | C18: =VLOOKUP(B18,{"iPhone",1;"Motorola",2;"Nokia",3;"Samsung",4;"Sony Erickson",5;"Sprint",6},2,0) -> 1 | H18: Student 14 | I18: Excellent | J18: =VLOOKUP(I18,{"Excellent",4;"Poor",1;"Good",3;"OK",2},2,0) -> 4 | O18: 207 | P18: 97.22222222 | U18: =V15&"/"&V14&" does not tell us that "&U15&" did twice as good as "&U14&"." -> 1808/904 does not tell us that Student 10 did twice as good as Student 6. | X18: 370.3722222 | AC18: =AD15&"/"&AD14&" tells us that "&AC15&" has twice as much as "&AC14&"." -> 2258.2/1129.1 tells us that Pham has twice as much as Phil.
A19: Student 15 | B19: Nokia | C19: =VLOOKUP(B19,{"iPhone",1;"Motorola",2;"Nokia",3;"Samsung",4;"Sony Erickson",5;"Sprint",6},2,0) -> 3 | H19: Student 15 | I19: Poor | J19: =VLOOKUP(I19,{"Excellent",4;"Poor",1;"Good",3;"OK",2},2,0) -> 1 | O19: 206 | P19: 96.66666667 | X19: 369.8166667
A20: Student 16 | B20: Nokia | C20: =VLOOKUP(B20,{"iPhone",1;"Motorola",2;"Nokia",3;"Samsung",4;"Sony Erickson",5;"Sprint",6},2,0) -> 3 | H20: Student 16 | I20: Poor | J20: =VLOOKUP(I20,{"Excellent",4;"Poor",1;"Good",3;"OK",2},2,0) -> 1 | O20: 205 | P20: 96.11111111 | X20: 369.2611111
A21: Student 17 | B21: Sprint | C21: =VLOOKUP(B21,{"iPhone",1;"Motorola",2;"Nokia",3;"Samsung",4;"Sony Erickson",5;"Sprint",6},2,0) -> 6 | H21: Student 17 | I21: Good | J21: =VLOOKUP(I21,{"Excellent",4;"Poor",1;"Good",3;"OK",2},2,0) -> 3 | O21: 204 | P21: 95.55555556 | U21: Ratio meaningless because zero does not mean that nothing exists. | X21: 368.7055556 | AC21: Ratio meaningful because zero means that nothing exists.
A22: Student 18 | B22: Sony Erickson | C22: =VLOOKUP(B22,{"iPhone",1;"Motorola",2;"Nokia",3;"Samsung",4;"Sony Erickson",5;"Sprint",6},2,0) -> 5 | H22: Student 18 | I22: Poor | J22: =VLOOKUP(I22,{"Excellent",4;"Poor",1;"Good",3;"OK",2},2,0) -> 1 | O22: 203 | P22: 95 | X22: 368.15
A23: Student 19 | B23: Nokia | C23: =VLOOKUP(B23,{"iPhone",1;"Motorola",2;"Nokia",3;"Samsung",4;"Sony Erickson",5;"Sprint",6},2,0) -> 3 | H23: Student 19 | I23: Excellent | J23: =VLOOKUP(I23,{"Excellent",4;"Poor",1;"Good",3;"OK",2},2,0) -> 4 | O23: 202 | P23: 94.44444444 | X23: 367.5944444
A24: Student 20 | B24: Nokia | C24: =VLOOKUP(B24,{"iPhone",1;"Motorola",2;"Nokia",3;"Samsung",4;"Sony Erickson",5;"Sprint",6},2,0) -> 3 | H24: Student 20 | I24: Poor | J24: =VLOOKUP(I24,{"Excellent",4;"Poor",1;"Good",3;"OK",2},2,0) -> 1 | O24: 201 | P24: 93.88888889 | X24: 367.0388889
A25: Student 21 | B25: iPhone | C25: =VLOOKUP(B25,{"iPhone",1;"Motorola",2;"Nokia",3;"Samsung",4;"Sony Erickson",5;"Sprint",6},2,0) -> 1 | H25: Student 21 | I25: OK | J25: =VLOOKUP(I25,{"Excellent",4;"Poor",1;"Good",3;"OK",2},2,0) -> 2 | O25: 200 | P25: 93.33333333 | X25: 366.4833333
A26: Student 22 | B26: iPhone | C26: =VLOOKUP(B26,{"iPhone",1;"Motorola",2;"Nokia",3;"Samsung",4;"Sony Erickson",5;"Sprint",6},2,0) -> 1 | H26: Student 22 | I26: OK | J26: =VLOOKUP(I26,{"Excellent",4;"Poor",1;"Good",3;"OK",2},2,0) -> 2 | O26: 199 | P26: 92.77777778 | X26: 365.9277778
A27: Student 23 | B27: Nokia | C27: =VLOOKUP(B27,{"iPhone",1;"Motorola",2;"Nokia",3;"Samsung",4;"Sony Erickson",5;"Sprint",6},2,0) -> 3 | H27: Student 23 | I27: OK | J27: =VLOOKUP(I27,{"Excellent",4;"Poor",1;"Good",3;"OK",2},2,0) -> 2 | O27: 198 | P27: 92.22222222 | X27: 365.3722222
A28: Student 24 | B28: Samsung | C28: =VLOOKUP(B28,{"iPhone",1;"Motorola",2;"Nokia",3;"Samsung",4;"Sony Erickson",5;"Sprint",6},2,0) -> 4 | H28: Student 24 | I28: Excellent | J28: =VLOOKUP(I28,{"Excellent",4;"Poor",1;"Good",3;"OK",2},2,0) -> 4 | O28: 197 | P28: 91.66666667 | X28: 364.8166667
A29: Student 25 | B29: iPhone | C29: =VLOOKUP(B29,{"iPhone",1;"Motorola",2;"Nokia",3;"Samsung",4;"Sony Erickson",5;"Sprint",6},2,0) -> 1 | H29: Student 25 | I29: OK | J29: =VLOOKUP(I29,{"Excellent",4;"Poor",1;"Good",3;"OK",2},2,0) -> 2 | O29: 196 | P29: 91.11111111 | X29: 364.2611111
A30: Student 26 | B30: iPhone | C30: =VLOOKUP(B30,{"iPhone",1;"Motorola",2;"Nokia",3;"Samsung",4;"Sony Erickson",5;"Sprint",6},2,0) -> 1 | H30: Student 26 | I30: OK | J30: =VLOOKUP(I30,{"Excellent",4;"Poor",1;"Good",3;"OK",2},2,0) -> 2 | O30: 195 | P30: 90.55555556 | X30: 363.7055556
A31: Student 27 | B31: iPhone | C31: =VLOOKUP(B31,{"iPhone",1;"Motorola",2;"Nokia",3;"Samsung",4;"Sony Erickson",5;"Sprint",6},2,0) -> 1 | H31: Student 27 | I31: Poor | J31: =VLOOKUP(I31,{"Excellent",4;"Poor",1;"Good",3;"OK",2},2,0) -> 1 | O31: 194 | P31: 90 | X31: 363.15
A32: Student 28 | B32: Sprint | C32: =VLOOKUP(B32,{"iPhone",1;"Motorola",2;"Nokia",3;"Samsung",4;"Sony Erickson",5;"Sprint",6},2,0) -> 6 | H32: Student 28 | I32: OK | J32: =VLOOKUP(I32,{"Excellent",4;"Poor",1;"Good",3;"OK",2},2,0) -> 2 | O32: 193 | P32: 89.44444444 | X32: 362.5944444
A33: Student 29 | B33: iPhone | C33: =VLOOKUP(B33,{"iPhone",1;"Motorola",2;"Nokia",3;"Samsung",4;"Sony Erickson",5;"Sprint",6},2,0) -> 1 | H33: Student 29 | I33: Good | J33: =VLOOKUP(I33,{"Excellent",4;"Poor",1;"Good",3;"OK",2},2,0) -> 3 | O33: 192 | P33: 88.88888889 | X33: 362.0388889
A34: Student 30 | B34: Sony Erickson | C34: =VLOOKUP(B34,{"iPhone",1;"Motorola",2;"Nokia",3;"Samsung",4;"Sony Erickson",5;"Sprint",6},2,0) -> 5 | H34: Student 30 | I34: Excellent | J34: =VLOOKUP(I34,{"Excellent",4;"Poor",1;"Good",3;"OK",2},2,0) -> 4 | O34: 191 | P34: 88.33333333 | X34: 361.4833333
A35: Student 31 | B35: Samsung | C35: =VLOOKUP(B35,{"iPhone",1;"Motorola",2;"Nokia",3;"Samsung",4;"Sony Erickson",5;"Sprint",6},2,0) -> 4 | H35: Student 31 | I35: Excellent | J35: =VLOOKUP(I35,{"Excellent",4;"Poor",1;"Good",3;"OK",2},2,0) -> 4 | O35: 190 | P35: 87.77777778 | X35: 360.9277778
A36: Student 32 | B36: Nokia | C36: =VLOOKUP(B36,{"iPhone",1;"Motorola",2;"Nokia",3;"Samsung",4;"Sony Erickson",5;"Sprint",6},2,0) -> 3 | H36: Student 32 | I36: OK | J36: =VLOOKUP(I36,{"Excellent",4;"Poor",1;"Good",3;"OK",2},2,0) -> 2 | O36: 189 | P36: 87.22222222 | X36: 360.3722222
A37: Student 33 | B37: iPhone | C37: =VLOOKUP(B37,{"iPhone",1;"Motorola",2;"Nokia",3;"Samsung",4;"Sony Erickson",5;"Sprint",6},2,0) -> 1 | H37: Student 33 | I37: Good | J37: =VLOOKUP(I37,{"Excellent",4;"Poor",1;"Good",3;"OK",2},2,0) -> 3 | O37: 188 | P37: 86.66666667 | X37: 359.8166667
A38: Student 34 | B38: Nokia | C38: =VLOOKUP(B38,{"iPhone",1;"Motorola",2;"Nokia",3;"Samsung",4;"Sony Erickson",5;"Sprint",6},2,0) -> 3 | H38: Student 34 | I38: Poor | J38: =VLOOKUP(I38,{"Excellent",4;"Poor",1;"Good",3;"OK",2},2,0) -> 1 | O38: 187 | P38: 86.11111111 | X38: 359.2611111
A39: Student 35 | B39: iPhone | C39: =VLOOKUP(B39,{"iPhone",1;"Motorola",2;"Nokia",3;"Samsung",4;"Sony Erickson",5;"Sprint",6},2,0) -> 1 | H39: Student 35 | I39: Poor | J39: =VLOOKUP(I39,{"Excellent",4;"Poor",1;"Good",3;"OK",2},2,0) -> 1 | O39: 186 | P39: 85.55555556 | X39: 358.7055556
A40: Student 36 | B40: Samsung | C40: =VLOOKUP(B40,{"iPhone",1;"Motorola",2;"Nokia",3;"Samsung",4;"Sony Erickson",5;"Sprint",6},2,0) -> 4 | H40: Student 36 | I40: Poor | J40: =VLOOKUP(I40,{"Excellent",4;"Poor",1;"Good",3;"OK",2},2,0) -> 1 | O40: 185 | P40: 85 | X40: 358.15
A41: Student 37 | B41: Sony Erickson | C41: =VLOOKUP(B41,{"iPhone",1;"Motorola",2;"Nokia",3;"Samsung",4;"Sony Erickson",5;"Sprint",6},2,0) -> 5 | H41: Student 37 | I41: Excellent | J41: =VLOOKUP(I41,{"Excellent",4;"Poor",1;"Good",3;"OK",2},2,0) -> 4 | O41: 184 | P41: 84.44444444 | X41: 357.5944444
A42: Student 38 | B42: iPhone | C42: =VLOOKUP(B42,{"iPhone",1;"Motorola",2;"Nokia",3;"Samsung",4;"Sony Erickson",5;"Sprint",6},2,0) -> 1 | H42: Student 38 | I42: Poor | J42: =VLOOKUP(I42,{"Excellent",4;"Poor",1;"Good",3;"OK",2},2,0) -> 1 | O42: 183 | P42: 83.88888889 | X42: 357.0388889
A43: Student 39 | B43: Sony Erickson | C43: =VLOOKUP(B43,{"iPhone",1;"Motorola",2;"Nokia",3;"Samsung",4;"Sony Erickson",5;"Sprint",6},2,0) -> 5 | H43: Student 39 | I43: OK | J43: =VLOOKUP(I43,{"Excellent",4;"Poor",1;"Good",3;"OK",2},2,0) -> 2 | O43: 182 | P43: 83.33333333 | X43: 356.4833333
A44: Student 40 | B44: Nokia | C44: =VLOOKUP(B44,{"iPhone",1;"Motorola",2;"Nokia",3;"Samsung",4;"Sony Erickson",5;"Sprint",6},2,0) -> 3 | H44: Student 40 | I44: Poor | J44: =VLOOKUP(I44,{"Excellent",4;"Poor",1;"Good",3;"OK",2},2,0) -> 1 | O44: 181 | P44: 82.77777778 | X44: 355.9277778
A45: Student 41 | B45: Nokia | C45: =VLOOKUP(B45,{"iPhone",1;"Motorola",2;"Nokia",3;"Samsung",4;"Sony Erickson",5;"Sprint",6},2,0) -> 3 | H45: Student 41 | I45: Excellent | J45: =VLOOKUP(I45,{"Excellent",4;"Poor",1;"Good",3;"OK",2},2,0) -> 4 | O45: 180 | P45: 82.22222222 | X45: 355.3722222
A46: Student 42 | B46: Sony Erickson | C46: =VLOOKUP(B46,{"iPhone",1;"Motorola",2;"Nokia",3;"Samsung",4;"Sony Erickson",5;"Sprint",6},2,0) -> 5 | H46: Student 42 | I46: OK | J46: =VLOOKUP(I46,{"Excellent",4;"Poor",1;"Good",3;"OK",2},2,0) -> 2 | O46: 179 | P46: 81.66666667 | X46: 354.8166667
A47: Student 43 | B47: Sprint | C47: =VLOOKUP(B47,{"iPhone",1;"Motorola",2;"Nokia",3;"Samsung",4;"Sony Erickson",5;"Sprint",6},2,0) -> 6 | H47: Student 43 | I47: OK | J47: =VLOOKUP(I47,{"Excellent",4;"Poor",1;"Good",3;"OK",2},2,0) -> 2 | O47: 178 | P47: 81.11111111 | X47: 354.2611111
A48: Student 44 | B48: Nokia | C48: =VLOOKUP(B48,{"iPhone",1;"Motorola",2;"Nokia",3;"Samsung",4;"Sony Erickson",5;"Sprint",6},2,0) -> 3 | H48: Student 44 | I48: Poor | J48: =VLOOKUP(I48,{"Excellent",4;"Poor",1;"Good",3;"OK",2},2,0) -> 1 | O48: 177 | P48: 80.55555556 | X48: 353.7055556
A49: Student 45 | B49: Nokia | C49: =VLOOKUP(B49,{"iPhone",1;"Motorola",2;"Nokia",3;"Samsung",4;"Sony Erickson",5;"Sprint",6},2,0) -> 3 | H49: Student 45 | I49: Poor | J49: =VLOOKUP(I49,{"Excellent",4;"Poor",1;"Good",3;"OK",2},2,0) -> 1 | O49: 176 | P49: 80 | X49: 353.15
A50: Student 46 | B50: Motorola | C50: =VLOOKUP(B50,{"iPhone",1;"Motorola",2;"Nokia",3;"Samsung",4;"Sony Erickson",5;"Sprint",6},2,0) -> 2 | H50: Student 46 | I50: Poor | J50: =VLOOKUP(I50,{"Excellent",4;"Poor",1;"Good",3;"OK",2},2,0) -> 1 | O50: 175 | P50: 79.44444444 | X50: 352.5944444
A51: Student 47 | B51: Samsung | C51: =VLOOKUP(B51,{"iPhone",1;"Motorola",2;"Nokia",3;"Samsung",4;"Sony Erickson",5;"Sprint",6},2,0) -> 4 | H51: Student 47 | I51: OK | J51: =VLOOKUP(I51,{"Excellent",4;"Poor",1;"Good",3;"OK",2},2,0) -> 2 | O51: 174 | P51: 78.88888889 | X51: 352.0388889
A52: Student 48 | B52: iPhone | C52: =VLOOKUP(B52,{"iPhone",1;"Motorola",2;"Nokia",3;"Samsung",4;"Sony Erickson",5;"Sprint",6},2,0) -> 1 | H52: Student 48 | I52: Good | J52: =VLOOKUP(I52,{"Excellent",4;"Poor",1;"Good",3;"OK",2},2,0) -> 3 | O52: 173 | P52: 78.33333333 | X52: 351.4833333
A53: Student 49 | B53: Nokia | C53: =VLOOKUP(B53,{"iPhone",1;"Motorola",2;"Nokia",3;"Samsung",4;"Sony Erickson",5;"Sprint",6},2,0) -> 3 | H53: Student 49 | I53: Good | J53: =VLOOKUP(I53,{"Excellent",4;"Poor",1;"Good",3;"OK",2},2,0) -> 3 | O53: 172 | P53: 77.77777778 | X53: 350.9277778
A54: Student 50 | B54: Nokia | C54: =VLOOKUP(B54,{"iPhone",1;"Motorola",2;"Nokia",3;"Samsung",4;"Sony Erickson",5;"Sprint",6},2,0) -> 3 | H54: Student 50 | I54: OK | J54: =VLOOKUP(I54,{"Excellent",4;"Poor",1;"Good",3;"OK",2},2,0) -> 2 | O54: 171 | P54: 77.22222222 | X54: 350.3722222
A55: Student 51 | B55: Sprint | C55: =VLOOKUP(B55,{"iPhone",1;"Motorola",2;"Nokia",3;"Samsung",4;"Sony Erickson",5;"Sprint",6},2,0) -> 6 | H55: Student 51 | I55: Excellent | J55: =VLOOKUP(I55,{"Excellent",4;"Poor",1;"Good",3;"OK",2},2,0) -> 4 | O55: 170 | P55: 76.66666667 | X55: 349.8166667
A56: Student 52 | B56: Nokia | C56: =VLOOKUP(B56,{"iPhone",1;"Motorola",2;"Nokia",3;"Samsung",4;"Sony Erickson",5;"Sprint",6},2,0) -> 3 | H56: Student 52 | I56: Poor | J56: =VLOOKUP(I56,{"Excellent",4;"Poor",1;"Good",3;"OK",2},2,0) -> 1 | O56: 169 | P56: 76.11111111 | X56: 349.2611111
A57: Student 53 | B57: Nokia | C57: =VLOOKUP(B57,{"iPhone",1;"Motorola",2;"Nokia",3;"Samsung",4;"Sony Erickson",5;"Sprint",6},2,0) -> 3 | H57: Student 53 | I57: Excellent | J57: =VLOOKUP(I57,{"Excellent",4;"Poor",1;"Good",3;"OK",2},2,0) -> 4 | O57: 168 | P57: 75.55555556 | X57: 348.7055556
A58: Student 54 | B58: Sprint | C58: =VLOOKUP(B58,{"iPhone",1;"Motorola",2;"Nokia",3;"Samsung",4;"Sony Erickson",5;"Sprint",6},2,0) -> 6 | H58: Student 54 | I58: Good | J58: =VLOOKUP(I58,{"Excellent",4;"Poor",1;"Good",3;"OK",2},2,0) -> 3 | O58: 167 | P58: 75 | X58: 348.15
A59: Student 55 | B59: Sony Erickson | C59: =VLOOKUP(B59,{"iPhone",1;"Motorola",2;"Nokia",3;"Samsung",4;"Sony Erickson",5;"Sprint",6},2,0) -> 5 | H59: Student 55 | I59: Poor | J59: =VLOOKUP(I59,{"Excellent",4;"Poor",1;"Good",3;"OK",2},2,0) -> 1 | O59: 166 | P59: 74.44444444 | X59: 347.5944444
A60: Student 56 | B60: Nokia | C60: =VLOOKUP(B60,{"iPhone",1;"Motorola",2;"Nokia",3;"Samsung",4;"Sony Erickson",5;"Sprint",6},2,0) -> 3 | H60: Student 56 | I60: Poor | J60: =VLOOKUP(I60,{"Excellent",4;"Poor",1;"Good",3;"OK",2},2,0) -> 1 | O60: 165 | P60: 73.88888889 | X60: 347.0388889
A61: Student 57 | B61: iPhone | C61: =VLOOKUP(B61,{"iPhone",1;"Motorola",2;"Nokia",3;"Samsung",4;"Sony Erickson",5;"Sprint",6},2,0) -> 1 | H61: Student 57 | I61: Good | J61: =VLOOKUP(I61,{"Excellent",4;"Poor",1;"Good",3;"OK",2},2,0) -> 3 | O61: 164 | P61: 73.33333333 | X61: 346.4833333
A62: Student 58 | B62: Samsung | C62: =VLOOKUP(B62,{"iPhone",1;"Motorola",2;"Nokia",3;"Samsung",4;"Sony Erickson",5;"Sprint",6},2,0) -> 4 | H62: Student 58 | I62: Poor | J62: =VLOOKUP(I62,{"Excellent",4;"Poor",1;"Good",3;"OK",2},2,0) -> 1 | O62: 163 | P62: 72.77777778 | X62: 345.9277778
A63: Student 59 | B63: Motorola | C63: =VLOOKUP(B63,{"iPhone",1;"Motorola",2;"Nokia",3;"Samsung",4;"Sony Erickson",5;"Sprint",6},2,0) -> 2 | H63: Student 59 | I63: OK | J63: =VLOOKUP(I63,{"Excellent",4;"Poor",1;"Good",3;"OK",2},2,0) -> 2 | O63: 162 | P63: 72.22222222 | X63: 345.3722222
A64: Student 60 | B64: iPhone | C64: =VLOOKUP(B64,{"iPhone",1;"Motorola",2;"Nokia",3;"Samsung",4;"Sony Erickson",5;"Sprint",6},2,0) -> 1 | H64: Student 60 | I64: Poor | J64: =VLOOKUP(I64,{"Excellent",4;"Poor",1;"Good",3;"OK",2},2,0) -> 1 | O64: 161 | P64: 71.66666667 | X64: 344.8166667
A65: Student 61 | B65: Sony Erickson | C65: =VLOOKUP(B65,{"iPhone",1;"Motorola",2;"Nokia",3;"Samsung",4;"Sony Erickson",5;"Sprint",6},2,0) -> 5 | H65: Student 61 | I65: Poor | J65: =VLOOKUP(I65,{"Excellent",4;"Poor",1;"Good",3;"OK",2},2,0) -> 1 | O65: 160 | P65: 71.11111111 | X65: 344.2611111
A66: Student 62 | B66: Nokia | C66: =VLOOKUP(B66,{"iPhone",1;"Motorola",2;"Nokia",3;"Samsung",4;"Sony Erickson",5;"Sprint",6},2,0) -> 3 | H66: Student 62 | I66: OK | J66: =VLOOKUP(I66,{"Excellent",4;"Poor",1;"Good",3;"OK",2},2,0) -> 2 | O66: 159 | P66: 70.55555556 | X66: 343.7055556
A67: Student 63 | B67: Nokia | C67: =VLOOKUP(B67,{"iPhone",1;"Motorola",2;"Nokia",3;"Samsung",4;"Sony Erickson",5;"Sprint",6},2,0) -> 3 | H67: Student 63 | I67: Poor | J67: =VLOOKUP(I67,{"Excellent",4;"Poor",1;"Good",3;"OK",2},2,0) -> 1 | O67: 158 | P67: 70 | X67: 343.15
A68: Student 64 | B68: iPhone | C68: =VLOOKUP(B68,{"iPhone",1;"Motorola",2;"Nokia",3;"Samsung",4;"Sony Erickson",5;"Sprint",6},2,0) -> 1 | H68: Student 64 | I68: Poor | J68: =VLOOKUP(I68,{"Excellent",4;"Poor",1;"Good",3;"OK",2},2,0) -> 1 | O68: 157 | P68: 69.44444444 | X68: 342.5944444
A69: Student 65 | B69: iPhone | C69: =VLOOKUP(B69,{"iPhone",1;"Motorola",2;"Nokia",3;"Samsung",4;"Sony Erickson",5;"Sprint",6},2,0) -> 1 | H69: Student 65 | I69: Poor | J69: =VLOOKUP(I69,{"Excellent",4;"Poor",1;"Good",3;"OK",2},2,0) -> 1 | O69: 156 | P69: =CONVERT(O69,"F","C") -> 68.88888889 | X69: 342.0388889
A70: Student 66 | B70: iPhone | C70: =VLOOKUP(B70,{"iPhone",1;"Motorola",2;"Nokia",3;"Samsung",4;"Sony Erickson",5;"Sprint",6},2,0) -> 1 | H70: Student 66 | I70: Poor | J70: =VLOOKUP(I70,{"Excellent",4;"Poor",1;"Good",3;"OK",2},2,0) -> 1 | O70: 155 | P70: 68.33333333 | X70: 341.4833333
A71: Student 67 | B71: iPhone | C71: =VLOOKUP(B71,{"iPhone",1;"Motorola",2;"Nokia",3;"Samsung",4;"Sony Erickson",5;"Sprint",6},2,0) -> 1 | H71: Student 67 | I71: OK | J71: =VLOOKUP(I71,{"Excellent",4;"Poor",1;"Good",3;"OK",2},2,0) -> 2 | O71: 154 | P71: 67.77777778 | X71: 340.9277778
A72: Student 68 | B72: Sprint | C72: =VLOOKUP(B72,{"iPhone",1;"Motorola",2;"Nokia",3;"Samsung",4;"Sony Erickson",5;"Sprint",6},2,0) -> 6 | H72: Student 68 | I72: Poor | J72: =VLOOKUP(I72,{"Excellent",4;"Poor",1;"Good",3;"OK",2},2,0) -> 1 | O72: 153 | P72: 67.22222222 | X72: =CONVERT(O72,"F","K") -> 340.3722222
A73: Student 69 | B73: iPhone | C73: =VLOOKUP(B73,{"iPhone",1;"Motorola",2;"Nokia",3;"Samsung",4;"Sony Erickson",5;"Sprint",6},2,0) -> 1 | H73: Student 69 | I73: Poor | J73: =VLOOKUP(I73,{"Excellent",4;"Poor",1;"Good",3;"OK",2},2,0) -> 1 | O73: 152 | P73: 66.66666667 | X73: 339.8166667
A74: Student 70 | B74: Nokia | C74: =VLOOKUP(B74,{"iPhone",1;"Motorola",2;"Nokia",3;"Samsung",4;"Sony Erickson",5;"Sprint",6},2,0) -> 3 | H74: Student 70 | I74: Poor | J74: =VLOOKUP(I74,{"Excellent",4;"Poor",1;"Good",3;"OK",2},2,0) -> 1 | O74: 151 | P74: 66.11111111 | X74: 339.2611111
A75: Student 71 | B75: Motorola | C75: =VLOOKUP(B75,{"iPhone",1;"Motorola",2;"Nokia",3;"Samsung",4;"Sony Erickson",5;"Sprint",6},2,0) -> 2 | H75: Student 71 | I75: Poor | J75: =VLOOKUP(I75,{"Excellent",4;"Poor",1;"Good",3;"OK",2},2,0) -> 1 | O75: 150 | P75: 65.55555556 | X75: 338.7055556
A76: Student 72 | B76: Sprint | C76: =VLOOKUP(B76,{"iPhone",1;"Motorola",2;"Nokia",3;"Samsung",4;"Sony Erickson",5;"Sprint",6},2,0) -> 6 | H76: Student 72 | I76: Good | J76: =VLOOKUP(I76,{"Excellent",4;"Poor",1;"Good",3;"OK",2},2,0) -> 3 | O76: 149 | P76: 65 | X76: 338.15
A77: Student 73 | B77: iPhone | C77: =VLOOKUP(B77,{"iPhone",1;"Motorola",2;"Nokia",3;"Samsung",4;"Sony Erickson",5;"Sprint",6},2,0) -> 1 | H77: Student 73 | I77: OK | J77: =VLOOKUP(I77,{"Excellent",4;"Poor",1;"Good",3;"OK",2},2,0) -> 2 | O77: 148 | P77: 64.44444444 | X77: 337.5944444
A78: Student 74 | B78: Sony Erickson | C78: =VLOOKUP(B78,{"iPhone",1;"Motorola",2;"Nokia",3;"Samsung",4;"Sony Erickson",5;"Sprint",6},2,0) -> 5 | H78: Student 74 | I78: Excellent | J78: =VLOOKUP(I78,{"Excellent",4;"Poor",1;"Good",3;"OK",2},2,0) -> 4 | O78: 147 | P78: 63.88888889 | X78: 337.0388889
A79: Student 75 | B79: Nokia | C79: =VLOOKUP(B79,{"iPhone",1;"Motorola",2;"Nokia",3;"Samsung",4;"Sony Erickson",5;"Sprint",6},2,0) -> 3 | H79: Student 75 | I79: Poor | J79: =VLOOKUP(I79,{"Excellent",4;"Poor",1;"Good",3;"OK",2},2,0) -> 1 | O79: 146 | P79: 63.33333333 | X79: 336.4833333
A80: Student 76 | B80: Motorola | C80: =VLOOKUP(B80,{"iPhone",1;"Motorola",2;"Nokia",3;"Samsung",4;"Sony Erickson",5;"Sprint",6},2,0) -> 2 | H80: Student 76 | I80: Good | J80: =VLOOKUP(I80,{"Excellent",4;"Poor",1;"Good",3;"OK",2},2,0) -> 3 | O80: 145 | P80: 62.77777778 | X80: 335.9277778
A81: Student 77 | B81: iPhone | C81: =VLOOKUP(B81,{"iPhone",1;"Motorola",2;"Nokia",3;"Samsung",4;"Sony Erickson",5;"Sprint",6},2,0) -> 1 | H81: Student 77 | I81: Poor | J81: =VLOOKUP(I81,{"Excellent",4;"Poor",1;"Good",3;"OK",2},2,0) -> 1 | O81: 144 | P81: 62.22222222 | X81: 335.3722222
A82: Student 78 | B82: Motorola | C82: =VLOOKUP(B82,{"iPhone",1;"Motorola",2;"Nokia",3;"Samsung",4;"Sony Erickson",5;"Sprint",6},2,0) -> 2 | H82: Student 78 | I82: OK | J82: =VLOOKUP(I82,{"Excellent",4;"Poor",1;"Good",3;"OK",2},2,0) -> 2 | O82: 143 | P82: 61.66666667 | X82: 334.8166667
A83: Student 79 | B83: Nokia | C83: =VLOOKUP(B83,{"iPhone",1;"Motorola",2;"Nokia",3;"Samsung",4;"Sony Erickson",5;"Sprint",6},2,0) -> 3 | H83: Student 79 | I83: Good | J83: =VLOOKUP(I83,{"Excellent",4;"Poor",1;"Good",3;"OK",2},2,0) -> 3 | O83: 142 | P83: 61.11111111 | X83: 334.2611111
A84: Student 80 | B84: Motorola | C84: =VLOOKUP(B84,{"iPhone",1;"Motorola",2;"Nokia",3;"Samsung",4;"Sony Erickson",5;"Sprint",6},2,0) -> 2 | H84: Student 80 | I84: Poor | J84: =VLOOKUP(I84,{"Excellent",4;"Poor",1;"Good",3;"OK",2},2,0) -> 1 | O84: 141 | P84: 60.55555556 | X84: 333.7055556
A85: Student 81 | B85: Nokia | C85: =VLOOKUP(B85,{"iPhone",1;"Motorola",2;"Nokia",3;"Samsung",4;"Sony Erickson",5;"Sprint",6},2,0) -> 3 | H85: Student 81 | I85: Poor | J85: =VLOOKUP(I85,{"Excellent",4;"Poor",1;"Good",3;"OK",2},2,0) -> 1 | O85: 140 | P85: 60 | X85: 333.15
A86: Student 82 | B86: Sprint | C86: =VLOOKUP(B86,{"iPhone",1;"Motorola",2;"Nokia",3;"Samsung",4;"Sony Erickson",5;"Sprint",6},2,0) -> 6 | H86: Student 82 | I86: Poor | J86: =VLOOKUP(I86,{"Excellent",4;"Poor",1;"Good",3;"OK",2},2,0) -> 1 | O86: 139 | P86: 59.44444444 | X86: 332.5944444
A87: Student 83 | B87: Sprint | C87: =VLOOKUP(B87,{"iPhone",1;"Motorola",2;"Nokia",3;"Samsung",4;"Sony Erickson",5;"Sprint",6},2,0) -> 6 | H87: Student 83 | I87: Poor | J87: =VLOOKUP(I87,{"Excellent",4;"Poor",1;"Good",3;"OK",2},2,0) -> 1 | O87: 138 | P87: 58.88888889 | X87: 332.0388889
A88: Student 84 | B88: iPhone | C88: =VLOOKUP(B88,{"iPhone",1;"Motorola",2;"Nokia",3;"Samsung",4;"Sony Erickson",5;"Sprint",6},2,0) -> 1 | H88: Student 84 | I88: Poor | J88: =VLOOKUP(I88,{"Excellent",4;"Poor",1;"Good",3;"OK",2},2,0) -> 1 | O88: 137 | P88: 58.33333333 | X88: 331.4833333
A89: Student 85 | B89: iPhone | C89: =VLOOKUP(B89,{"iPhone",1;"Motorola",2;"Nokia",3;"Samsung",4;"Sony Erickson",5;"Sprint",6},2,0) -> 1 | H89: Student 85 | I89: Good | J89: =VLOOKUP(I89,{"Excellent",4;"Poor",1;"Good",3;"OK",2},2,0) -> 3 | O89: 136 | P89: 57.77777778 | X89: 330.9277778
A90: Student 86 | B90: iPhone | C90: =VLOOKUP(B90,{"iPhone",1;"Motorola",2;"Nokia",3;"Samsung",4;"Sony Erickson",5;"Sprint",6},2,0) -> 1 | H90: Student 86 | I90: OK | J90: =VLOOKUP(I90,{"Excellent",4;"Poor",1;"Good",3;"OK",2},2,0) -> 2 | O90: 135 | P90: 57.22222222 | X90: 330.3722222
A91: Student 87 | B91: iPhone | C91: =VLOOKUP(B91,{"iPhone",1;"Motorola",2;"Nokia",3;"Samsung",4;"Sony Erickson",5;"Sprint",6},2,0) -> 1 | H91: Student 87 | I91: OK | J91: =VLOOKUP(I91,{"Excellent",4;"Poor",1;"Good",3;"OK",2},2,0) -> 2 | O91: 134 | P91: 56.66666667 | X91: 329.8166667
A92: Student 88 | B92: Sprint | C92: =VLOOKUP(B92,{"iPhone",1;"Motorola",2;"Nokia",3;"Samsung",4;"Sony Erickson",5;"Sprint",6},2,0) -> 6 | H92: Student 88 | I92: Good | J92: =VLOOKUP(I92,{"Excellent",4;"Poor",1;"Good",3;"OK",2},2,0) -> 3 | O92: 133 | P92: 56.11111111 | X92: 329.2611111
A93: Student 89 | B93: Motorola | C93: =VLOOKUP(B93,{"iPhone",1;"Motorola",2;"Nokia",3;"Samsung",4;"Sony Erickson",5;"Sprint",6},2,0) -> 2 | H93: Student 89 | I93: Poor | J93: =VLOOKUP(I93,{"Excellent",4;"Poor",1;"Good",3;"OK",2},2,0) -> 1 | O93: 132 | P93: 55.55555556 | X93: 328.7055556
A94: Student 90 | B94: Sony Erickson | C94: =VLOOKUP(B94,{"iPhone",1;"Motorola",2;"Nokia",3;"Samsung",4;"Sony Erickson",5;"Sprint",6},2,0) -> 5 | H94: Student 90 | I94: OK | J94: =VLOOKUP(I94,{"Excellent",4;"Poor",1;"Good",3;"OK",2},2,0) -> 2 | O94: 131 | P94: 55 | X94: 328.15
A95: Student 91 | B95: Motorola | C95: =VLOOKUP(B95,{"iPhone",1;"Motorola",2;"Nokia",3;"Samsung",4;"Sony Erickson",5;"Sprint",6},2,0) -> 2 | H95: Student 91 | I95: Poor | J95: =VLOOKUP(I95,{"Excellent",4;"Poor",1;"Good",3;"OK",2},2,0) -> 1 | O95: 130 | P95: 54.44444444 | X95: 327.5944444
A96: Student 92 | B96: Samsung | C96: =VLOOKUP(B96,{"iPhone",1;"Motorola",2;"Nokia",3;"Samsung",4;"Sony Erickson",5;"Sprint",6},2,0) -> 4 | H96: Student 92 | I96: Good | J96: =VLOOKUP(I96,{"Excellent",4;"Poor",1;"Good",3;"OK",2},2,0) -> 3 | O96: 129 | P96: 53.88888889 | X96: 327.0388889
A97: Student 93 | B97: Nokia | C97: =VLOOKUP(B97,{"iPhone",1;"Motorola",2;"Nokia",3;"Samsung",4;"Sony Erickson",5;"Sprint",6},2,0) -> 3 | H97: Student 93 | I97: Good | J97: =VLOOKUP(I97,{"Excellent",4;"Poor",1;"Good",3;"OK",2},2,0) -> 3 | O97: 128 | P97: 53.33333333 | X97: 326.4833333
A98: Student 94 | B98: Sony Erickson | C98: =VLOOKUP(B98,{"iPhone",1;"Motorola",2;"Nokia",3;"Samsung",4;"Sony Erickson",5;"Sprint",6},2,0) -> 5 | H98: Student 94 | I98: Poor | J98: =VLOOKUP(I98,{"Excellent",4;"Poor",1;"Good",3;"OK",2},2,0) -> 1 | O98: 127 | P98: 52.77777778 | X98: 325.9277778
A99: Student 95 | B99: iPhone | C99: =VLOOKUP(B99,{"iPhone",1;"Motorola",2;"Nokia",3;"Samsung",4;"Sony Erickson",5;"Sprint",6},2,0) -> 1 | H99: Student 95 | I99: OK | J99: =VLOOKUP(I99,{"Excellent",4;"Poor",1;"Good",3;"OK",2},2,0) -> 2 | O99: 126 | P99: 52.22222222 | X99: 325.3722222
A100: Student 96 | B100: Nokia | C100: =VLOOKUP(B100,{"iPhone",1;"Motorola",2;"Nokia",3;"Samsung",4;"Sony Erickson",5;"Sprint",6},2,0) -> 3 | H100: Student 96 | I100: Poor | J100: =VLOOKUP(I100,{"Excellent",4;"Poor",1;"Good",3;"OK",2},2,0) -> 1 | O100: 125 | P100: 51.66666667 | X100: 324.8166667
A101: Student 97 | B101: iPhone | C101: =VLOOKUP(B101,{"iPhone",1;"Motorola",2;"Nokia",3;"Samsung",4;"Sony Erickson",5;"Sprint",6},2,0) -> 1 | H101: Student 97 | I101: Poor | J101: =VLOOKUP(I101,{"Excellent",4;"Poor",1;"Good",3;"OK",2},2,0) -> 1 | O101: 124 | P101: 51.11111111 | X101: 324.2611111
A102: Student 98 | B102: Nokia | C102: =VLOOKUP(B102,{"iPhone",1;"Motorola",2;"Nokia",3;"Samsung",4;"Sony Erickson",5;"Sprint",6},2,0) -> 3 | H102: Student 98 | I102: Poor | J102: =VLOOKUP(I102,{"Excellent",4;"Poor",1;"Good",3;"OK",2},2,0) -> 1 | O102: 123 | P102: 50.55555556 | X102: 323.7055556
A103: Student 99 | B103: Sony Erickson | C103: =VLOOKUP(B103,{"iPhone",1;"Motorola",2;"Nokia",3;"Samsung",4;"Sony Erickson",5;"Sprint",6},2,0) -> 5 | H103: Student 99 | I103: Poor | J103: =VLOOKUP(I103,{"Excellent",4;"Poor",1;"Good",3;"OK",2},2,0) -> 1 | O103: 122 | P103: 50 | X103: 323.15
A104: Student 100 | B104: Sprint | C104: =VLOOKUP(B104,{"iPhone",1;"Motorola",2;"Nokia",3;"Samsung",4;"Sony Erickson",5;"Sprint",6},2,0) -> 6 | H104: Student 100 | I104: Poor | J104: =VLOOKUP(I104,{"Excellent",4;"Poor",1;"Good",3;"OK",2},2,0) -> 1 | O104: 121 | P104: 49.44444444 | X104: 322.5944444
A105: Student 101 | B105: Nokia | C105: =VLOOKUP(B105,{"iPhone",1;"Motorola",2;"Nokia",3;"Samsung",4;"Sony Erickson",5;"Sprint",6},2,0) -> 3 | H105: Student 101 | I105: Poor | J105: =VLOOKUP(I105,{"Excellent",4;"Poor",1;"Good",3;"OK",2},2,0) -> 1 | O105: 120 | P105: 48.88888889 | X105: 322.0388889
A106: Student 102 | B106: iPhone | C106: =VLOOKUP(B106,{"iPhone",1;"Motorola",2;"Nokia",3;"Samsung",4;"Sony Erickson",5;"Sprint",6},2,0) -> 1 | H106: Student 102 | I106: Poor | J106: =VLOOKUP(I106,{"Excellent",4;"Poor",1;"Good",3;"OK",2},2,0) -> 1 | O106: 119 | P106: 48.33333333 | X106: 321.4833333
A107: Student 103 | B107: Sprint | C107: =VLOOKUP(B107,{"iPhone",1;"Motorola",2;"Nokia",3;"Samsung",4;"Sony Erickson",5;"Sprint",6},2,0) -> 6 | H107: Student 103 | I107: Poor | J107: =VLOOKUP(I107,{"Excellent",4;"Poor",1;"Good",3;"OK",2},2,0) -> 1 | O107: 118 | P107: 47.77777778 | X107: 320.9277778
A108: Student 104 | B108: Sony Erickson | C108: =VLOOKUP(B108,{"iPhone",1;"Motorola",2;"Nokia",3;"Samsung",4;"Sony Erickson",5;"Sprint",6},2,0) -> 5 | H108: Student 104 | I108: Poor | J108: =VLOOKUP(I108,{"Excellent",4;"Poor",1;"Good",3;"OK",2},2,0) -> 1 | O108: 117 | P108: 47.22222222 | X108: 320.3722222
A109: Student 105 | B109: Motorola | C109: =VLOOKUP(B109,{"iPhone",1;"Motorola",2;"Nokia",3;"Samsung",4;"Sony Erickson",5;"Sprint",6},2,0) -> 2 | H109: Student 105 | I109: Poor | J109: =VLOOKUP(I109,{"Excellent",4;"Poor",1;"Good",3;"OK",2},2,0) -> 1 | O109: 116 | P109: 46.66666667 | X109: 319.8166667
A110: Student 106 | B110: Nokia | C110: =VLOOKUP(B110,{"iPhone",1;"Motorola",2;"Nokia",3;"Samsung",4;"Sony Erickson",5;"Sprint",6},2,0) -> 3 | H110: Student 106 | I110: Poor | J110: =VLOOKUP(I110,{"Excellent",4;"Poor",1;"Good",3;"OK",2},2,0) -> 1 | O110: 115 | P110: 46.11111111 | X110: 319.2611111
A111: Student 107 | B111: iPhone | C111: =VLOOKUP(B111,{"iPhone",1;"Motorola",2;"Nokia",3;"Samsung",4;"Sony Erickson",5;"Sprint",6},2,0) -> 1 | H111: Student 107 | I111: OK | J111: =VLOOKUP(I111,{"Excellent",4;"Poor",1;"Good",3;"OK",2},2,0) -> 2 | O111: 114 | P111: 45.55555556 | X111: 318.7055556
A112: Student 108 | B112: Nokia | C112: =VLOOKUP(B112,{"iPhone",1;"Motorola",2;"Nokia",3;"Samsung",4;"Sony Erickson",5;"Sprint",6},2,0) -> 3 | H112: Student 108 | I112: Excellent | J112: =VLOOKUP(I112,{"Excellent",4;"Poor",1;"Good",3;"OK",2},2,0) -> 4 | O112: 113 | P112: 45 | X112: 318.15
A113: Student 109 | B113: Nokia | C113: =VLOOKUP(B113,{"iPhone",1;"Motorola",2;"Nokia",3;"Samsung",4;"Sony Erickson",5;"Sprint",6},2,0) -> 3 | H113: Student 109 | I113: Poor | J113: =VLOOKUP(I113,{"Excellent",4;"Poor",1;"Good",3;"OK",2},2,0) -> 1 | O113: 112 | P113: 44.44444444 | X113: 317.5944444
A114: Student 110 | B114: Motorola | C114: =VLOOKUP(B114,{"iPhone",1;"Motorola",2;"Nokia",3;"Samsung",4;"Sony Erickson",5;"Sprint",6},2,0) -> 2 | H114: Student 110 | I114: Excellent | J114: =VLOOKUP(I114,{"Excellent",4;"Poor",1;"Good",3;"OK",2},2,0) -> 4 | O114: 111 | P114: 43.88888889 | X114: 317.0388889
A115: Student 111 | B115: iPhone | C115: =VLOOKUP(B115,{"iPhone",1;"Motorola",2;"Nokia",3;"Samsung",4;"Sony Erickson",5;"Sprint",6},2,0) -> 1 | H115: Student 111 | I115: OK | J115: =VLOOKUP(I115,{"Excellent",4;"Poor",1;"Good",3;"OK",2},2,0) -> 2 | O115: 110 | P115: 43.33333333 | X115: 316.4833333
A116: Student 112 | B116: Nokia | C116: =VLOOKUP(B116,{"iPhone",1;"Motorola",2;"Nokia",3;"Samsung",4;"Sony Erickson",5;"Sprint",6},2,0) -> 3 | H116: Student 112 | I116: Good | J116: =VLOOKUP(I116,{"Excellent",4;"Poor",1;"Good",3;"OK",2},2,0) -> 3 | O116: 109 | P116: 42.77777778 | X116: 315.9277778
A117: Student 113 | B117: Nokia | C117: =VLOOKUP(B117,{"iPhone",1;"Motorola",2;"Nokia",3;"Samsung",4;"Sony Erickson",5;"Sprint",6},2,0) -> 3 | H117: Student 113 | I117: Poor | J117: =VLOOKUP(I117,{"Excellent",4;"Poor",1;"Good",3;"OK",2},2,0) -> 1 | O117: 108 | P117: 42.22222222 | X117: 315.3722222
A118: Student 114 | B118: Nokia | C118: =VLOOKUP(B118,{"iPhone",1;"Motorola",2;"Nokia",3;"Samsung",4;"Sony Erickson",5;"Sprint",6},2,0) -> 3 | H118: Student 114 | I118: Good | J118: =VLOOKUP(I118,{"Excellent",4;"Poor",1;"Good",3;"OK",2},2,0) -> 3 | O118: 107 | P118: 41.66666667 | X118: 314.8166667
A119: Student 115 | B119: Motorola | C119: =VLOOKUP(B119,{"iPhone",1;"Motorola",2;"Nokia",3;"Samsung",4;"Sony Erickson",5;"Sprint",6},2,0) -> 2 | H119: Student 115 | I119: OK | J119: =VLOOKUP(I119,{"Excellent",4;"Poor",1;"Good",3;"OK",2},2,0) -> 2 | O119: 106 | P119: 41.11111111 | X119: 314.2611111
A120: Student 116 | B120: Sprint | C120: =VLOOKUP(B120,{"iPhone",1;"Motorola",2;"Nokia",3;"Samsung",4;"Sony Erickson",5;"Sprint",6},2,0) -> 6 | H120: Student 116 | I120: OK | J120: =VLOOKUP(I120,{"Excellent",4;"Poor",1;"Good",3;"OK",2},2,0) -> 2 | O120: 105 | P120: 40.55555556 | X120: 313.7055556
A121: Student 117 | B121: Sprint | C121: =VLOOKUP(B121,{"iPhone",1;"Motorola",2;"Nokia",3;"Samsung",4;"Sony Erickson",5;"Sprint",6},2,0) -> 6 | H121: Student 117 | I121: Poor | J121: =VLOOKUP(I121,{"Excellent",4;"Poor",1;"Good",3;"OK",2},2,0) -> 1 | O121: 104 | P121: 40 | X121: 313.15
A122: Student 118 | B122: Sprint | C122: =VLOOKUP(B122,{"iPhone",1;"Motorola",2;"Nokia",3;"Samsung",4;"Sony Erickson",5;"Sprint",6},2,0) -> 6 | H122: Student 118 | I122: Excellent | J122: =VLOOKUP(I122,{"Excellent",4;"Poor",1;"Good",3;"OK",2},2,0) -> 4 | O122: 103 | P122: 39.44444444 | X122: 312.5944444
A123: Student 119 | B123: Nokia | C123: =VLOOKUP(B123,{"iPhone",1;"Motorola",2;"Nokia",3;"Samsung",4;"Sony Erickson",5;"Sprint",6},2,0) -> 3 | H123: Student 119 | I123: Excellent | J123: =VLOOKUP(I123,{"Excellent",4;"Poor",1;"Good",3;"OK",2},2,0) -> 4 | O123: 102 | P123: 38.88888889 | X123: 312.0388889
A124: Student 120 | B124: Nokia | C124: =VLOOKUP(B124,{"iPhone",1;"Motorola",2;"Nokia",3;"Samsung",4;"Sony Erickson",5;"Sprint",6},2,0) -> 3 | H124: Student 120 | I124: Excellent | J124: =VLOOKUP(I124,{"Excellent",4;"Poor",1;"Good",3;"OK",2},2,0) -> 4 | O124: 101 | P124: 38.33333333 | X124: 311.4833333
A125: Student 121 | B125: Sprint | C125: =VLOOKUP(B125,{"iPhone",1;"Motorola",2;"Nokia",3;"Samsung",4;"Sony Erickson",5;"Sprint",6},2,0) -> 6 | H125: Student 121 | I125: Excellent | J125: =VLOOKUP(I125,{"Excellent",4;"Poor",1;"Good",3;"OK",2},2,0) -> 4 | O125: 100 | P125: 37.77777778 | X125: 310.9277778
A126: Student 122 | B126: Nokia | C126: =VLOOKUP(B126,{"iPhone",1;"Motorola",2;"Nokia",3;"Samsung",4;"Sony Erickson",5;"Sprint",6},2,0) -> 3 | H126: Student 122 | I126: OK | J126: =VLOOKUP(I126,{"Excellent",4;"Poor",1;"Good",3;"OK",2},2,0) -> 2 | O126: 99 | P126: 37.22222222 | X126: 310.3722222
A127: Student 123 | B127: Samsung | C127: =VLOOKUP(B127,{"iPhone",1;"Motorola",2;"Nokia",3;"Samsung",4;"Sony Erickson",5;"Sprint",6},2,0) -> 4 | H127: Student 123 | I127: Good | J127: =VLOOKUP(I127,{"Excellent",4;"Poor",1;"Good",3;"OK",2},2,0) -> 3 | O127: 98 | P127: 36.66666667 | X127: 309.8166667
A128: Student 124 | B128: Samsung | C128: =VLOOKUP(B128,{"iPhone",1;"Motorola",2;"Nokia",3;"Samsung",4;"Sony Erickson",5;"Sprint",6},2,0) -> 4 | H128: Student 124 | I128: Poor | J128: =VLOOKUP(I128,{"Excellent",4;"Poor",1;"Good",3;"OK",2},2,0) -> 1 | O128: 97 | P128: 36.11111111 | X128: 309.2611111
A129: Student 125 | B129: Samsung | C129: =VLOOKUP(B129,{"iPhone",1;"Motorola",2;"Nokia",3;"Samsung",4;"Sony Erickson",5;"Sprint",6},2,0) -> 4 | H129: Student 125 | I129: Poor | J129: =VLOOKUP(I129,{"Excellent",4;"Poor",1;"Good",3;"OK",2},2,0) -> 1 | O129: 96 | P129: 35.55555556 | X129: 308.7055556
A130: Student 126 | B130: Samsung | C130: =VLOOKUP(B130,{"iPhone",1;"Motorola",2;"Nokia",3;"Samsung",4;"Sony Erickson",5;"Sprint",6},2,0) -> 4 | H130: Student 126 | I130: Excellent | J130: =VLOOKUP(I130,{"Excellent",4;"Poor",1;"Good",3;"OK",2},2,0) -> 4 | O130: 95 | P130: 35 | X130: 308.15
A131: Student 127 | B131: Motorola | C131: =VLOOKUP(B131,{"iPhone",1;"Motorola",2;"Nokia",3;"Samsung",4;"Sony Erickson",5;"Sprint",6},2,0) -> 2 | H131: Student 127 | I131: Poor | J131: =VLOOKUP(I131,{"Excellent",4;"Poor",1;"Good",3;"OK",2},2,0) -> 1 | O131: 94 | P131: 34.44444444 | X131: 307.5944444
A132: Student 128 | B132: Sony Erickson | C132: =VLOOKUP(B132,{"iPhone",1;"Motorola",2;"Nokia",3;"Samsung",4;"Sony Erickson",5;"Sprint",6},2,0) -> 5 | H132: Student 128 | I132: Poor | J132: =VLOOKUP(I132,{"Excellent",4;"Poor",1;"Good",3;"OK",2},2,0) -> 1 | O132: 93 | P132: 33.88888889 | X132: 307.0388889
A133: Student 129 | B133: Motorola | C133: =VLOOKUP(B133,{"iPhone",1;"Motorola",2;"Nokia",3;"Samsung",4;"Sony Erickson",5;"Sprint",6},2,0) -> 2 | H133: Student 129 | I133: OK | J133: =VLOOKUP(I133,{"Excellent",4;"Poor",1;"Good",3;"OK",2},2,0) -> 2 | O133: 92 | P133: =CONVERT(O133,"F","C") -> 33.33333333 | X133: 306.4833333
A134: Student 130 | B134: iPhone | C134: =VLOOKUP(B134,{"iPhone",1;"Motorola",2;"Nokia",3;"Samsung",4;"Sony Erickson",5;"Sprint",6},2,0) -> 1 | H134: Student 130 | I134: Poor | J134: =VLOOKUP(I134,{"Excellent",4;"Poor",1;"Good",3;"OK",2},2,0) -> 1 | O134: 91 | P134: 32.77777778 | X134: 305.9277778
A135: Student 131 | B135: iPhone | C135: =VLOOKUP(B135,{"iPhone",1;"Motorola",2;"Nokia",3;"Samsung",4;"Sony Erickson",5;"Sprint",6},2,0) -> 1 | H135: Student 131 | I135: Poor | J135: =VLOOKUP(I135,{"Excellent",4;"Poor",1;"Good",3;"OK",2},2,0) -> 1 | O135: 90 | P135: 32.22222222 | X135: 305.3722222
A136: Student 132 | B136: Sprint | C136: =VLOOKUP(B136,{"iPhone",1;"Motorola",2;"Nokia",3;"Samsung",4;"Sony Erickson",5;"Sprint",6},2,0) -> 6 | H136: Student 132 | I136: Poor | J136: =VLOOKUP(I136,{"Excellent",4;"Poor",1;"Good",3;"OK",2},2,0) -> 1 | O136: 89 | P136: 31.66666667 | X136: =CONVERT(O136,"F","K") -> 304.8166667
A137: Student 133 | B137: Samsung | C137: =VLOOKUP(B137,{"iPhone",1;"Motorola",2;"Nokia",3;"Samsung",4;"Sony Erickson",5;"Sprint",6},2,0) -> 4 | H137: Student 133 | I137: OK | J137: =VLOOKUP(I137,{"Excellent",4;"Poor",1;"Good",3;"OK",2},2,0) -> 2 | O137: 88 | P137: 31.11111111 | X137: 304.2611111
A138: Student 134 | B138: Nokia | C138: =VLOOKUP(B138,{"iPhone",1;"Motorola",2;"Nokia",3;"Samsung",4;"Sony Erickson",5;"Sprint",6},2,0) -> 3 | H138: Student 134 | I138: Poor | J138: =VLOOKUP(I138,{"Excellent",4;"Poor",1;"Good",3;"OK",2},2,0) -> 1 | O138: 87 | P138: 30.55555556 | X138: 303.7055556
A139: Student 135 | B139: Motorola | C139: =VLOOKUP(B139,{"iPhone",1;"Motorola",2;"Nokia",3;"Samsung",4;"Sony Erickson",5;"Sprint",6},2,0) -> 2 | H139: Student 135 | I139: OK | J139: =VLOOKUP(I139,{"Excellent",4;"Poor",1;"Good",3;"OK",2},2,0) -> 2 | O139: 86 | P139: 30 | X139: 303.15
A140: Student 136 | B140: Nokia | C140: =VLOOKUP(B140,{"iPhone",1;"Motorola",2;"Nokia",3;"Samsung",4;"Sony Erickson",5;"Sprint",6},2,0) -> 3 | H140: Student 136 | I140: Poor | J140: =VLOOKUP(I140,{"Excellent",4;"Poor",1;"Good",3;"OK",2},2,0) -> 1 | O140: 85 | P140: 29.44444444 | X140: 302.5944444
A141: Student 137 | B141: Motorola | C141: =VLOOKUP(B141,{"iPhone",1;"Motorola",2;"Nokia",3;"Samsung",4;"Sony Erickson",5;"Sprint",6},2,0) -> 2 | H141: Student 137 | I141: Poor | J141: =VLOOKUP(I141,{"Excellent",4;"Poor",1;"Good",3;"OK",2},2,0) -> 1 | O141: 84 | P141: 28.88888889 | X141: 302.0388889
A142: Student 138 | B142: Sony Erickson | C142: =VLOOKUP(B142,{"iPhone",1;"Motorola",2;"Nokia",3;"Samsung",4;"Sony Erickson",5;"Sprint",6},2,0) -> 5 | H142: Student 138 | I142: OK | J142: =VLOOKUP(I142,{"Excellent",4;"Poor",1;"Good",3;"OK",2},2,0) -> 2 | O142: 83 | P142: 28.33333333 | X142: 301.4833333
A143: Student 139 | B143: Samsung | C143: =VLOOKUP(B143,{"iPhone",1;"Motorola",2;"Nokia",3;"Samsung",4;"Sony Erickson",5;"Sprint",6},2,0) -> 4 | H143: Student 139 | I143: Excellent | J143: =VLOOKUP(I143,{"Excellent",4;"Poor",1;"Good",3;"OK",2},2,0) -> 4 | O143: 82 | P143: 27.77777778 | X143: 300.9277778
A144: Student 140 | B144: Nokia | C144: =VLOOKUP(B144,{"iPhone",1;"Motorola",2;"Nokia",3;"Samsung",4;"Sony Erickson",5;"Sprint",6},2,0) -> 3 | H144: Student 140 | I144: OK | J144: =VLOOKUP(I144,{"Excellent",4;"Poor",1;"Good",3;"OK",2},2,0) -> 2 | O144: 81 | P144: 27.22222222 | X144: 300.3722222
A145: Student 141 | B145: iPhone | C145: =VLOOKUP(B145,{"iPhone",1;"Motorola",2;"Nokia",3;"Samsung",4;"Sony Erickson",5;"Sprint",6},2,0) -> 1 | H145: Student 141 | I145: Poor | J145: =VLOOKUP(I145,{"Excellent",4;"Poor",1;"Good",3;"OK",2},2,0) -> 1 | O145: 80 | P145: 26.66666667 | X145: 299.8166667
A146: Student 142 | B146: Motorola | C146: =VLOOKUP(B146,{"iPhone",1;"Motorola",2;"Nokia",3;"Samsung",4;"Sony Erickson",5;"Sprint",6},2,0) -> 2 | H146: Student 142 | I146: Poor | J146: =VLOOKUP(I146,{"Excellent",4;"Poor",1;"Good",3;"OK",2},2,0) -> 1 | O146: 79 | P146: 26.11111111 | X146: 299.2611111
A147: Student 143 | B147: iPhone | C147: =VLOOKUP(B147,{"iPhone",1;"Motorola",2;"Nokia",3;"Samsung",4;"Sony Erickson",5;"Sprint",6},2,0) -> 1 | H147: Student 143 | I147: Poor | J147: =VLOOKUP(I147,{"Excellent",4;"Poor",1;"Good",3;"OK",2},2,0) -> 1 | O147: 78 | P147: 25.55555556 | X147: 298.7055556
A148: Student 144 | B148: Samsung | C148: =VLOOKUP(B148,{"iPhone",1;"Motorola",2;"Nokia",3;"Samsung",4;"Sony Erickson",5;"Sprint",6},2,0) -> 4 | H148: Student 144 | I148: Poor | J148: =VLOOKUP(I148,{"Excellent",4;"Poor",1;"Good",3;"OK",2},2,0) -> 1 | O148: 77 | P148: 25 | X148: 298.15
A149: Student 145 | B149: Motorola | C149: =VLOOKUP(B149,{"iPhone",1;"Motorola",2;"Nokia",3;"Samsung",4;"Sony Erickson",5;"Sprint",6},2,0) -> 2 | H149: Student 145 | I149: OK | J149: =VLOOKUP(I149,{"Excellent",4;"Poor",1;"Good",3;"OK",2},2,0) -> 2 | O149: 76 | P149: 24.44444444 | X149: 297.5944444
A150: Student 146 | B150: Nokia | C150: =VLOOKUP(B150,{"iPhone",1;"Motorola",2;"Nokia",3;"Samsung",4;"Sony Erickson",5;"Sprint",6},2,0) -> 3 | H150: Student 146 | I150: Poor | J150: =VLOOKUP(I150,{"Excellent",4;"Poor",1;"Good",3;"OK",2},2,0) -> 1 | O150: 75 | P150: 23.88888889 | X150: 297.0388889
A151: Student 147 | B151: Motorola | C151: =VLOOKUP(B151,{"iPhone",1;"Motorola",2;"Nokia",3;"Samsung",4;"Sony Erickson",5;"Sprint",6},2,0) -> 2 | H151: Student 147 | I151: Poor | J151: =VLOOKUP(I151,{"Excellent",4;"Poor",1;"Good",3;"OK",2},2,0) -> 1 | O151: 74 | P151: 23.33333333 | X151: 296.4833333
A152: Student 148 | B152: Samsung | C152: =VLOOKUP(B152,{"iPhone",1;"Motorola",2;"Nokia",3;"Samsung",4;"Sony Erickson",5;"Sprint",6},2,0) -> 4 | H152: Student 148 | I152: OK | J152: =VLOOKUP(I152,{"Excellent",4;"Poor",1;"Good",3;"OK",2},2,0) -> 2 | O152: 73 | P152: 22.77777778 | X152: 295.9277778
A153: Student 149 | B153: Sprint | C153: =VLOOKUP(B153,{"iPhone",1;"Motorola",2;"Nokia",3;"Samsung",4;"Sony Erickson",5;"Sprint",6},2,0) -> 6 | H153: Student 149 | I153: Poor | J153: =VLOOKUP(I153,{"Excellent",4;"Poor",1;"Good",3;"OK",2},2,0) -> 1 | O153: 72 | P153: 22.22222222 | X153: 295.3722222
A154: Student 150 | B154: Samsung | C154: =VLOOKUP(B154,{"iPhone",1;"Motorola",2;"Nokia",3;"Samsung",4;"Sony Erickson",5;"Sprint",6},2,0) -> 4 | H154: Student 150 | I154: Excellent | J154: =VLOOKUP(I154,{"Excellent",4;"Poor",1;"Good",3;"OK",2},2,0) -> 4 | O154: 71 | P154: 21.66666667 | X154: 294.8166667
A155: Student 151 | B155: Sony Erickson | C155: =VLOOKUP(B155,{"iPhone",1;"Motorola",2;"Nokia",3;"Samsung",4;"Sony Erickson",5;"Sprint",6},2,0) -> 5 | H155: Student 151 | I155: Excellent | J155: =VLOOKUP(I155,{"Excellent",4;"Poor",1;"Good",3;"OK",2},2,0) -> 4 | O155: 70 | P155: 21.11111111 | X155: 294.2611111
A156: Student 152 | B156: Nokia | C156: =VLOOKUP(B156,{"iPhone",1;"Motorola",2;"Nokia",3;"Samsung",4;"Sony Erickson",5;"Sprint",6},2,0) -> 3 | H156: Student 152 | I156: Excellent | J156: =VLOOKUP(I156,{"Excellent",4;"Poor",1;"Good",3;"OK",2},2,0) -> 4 | O156: 69 | P156: 20.55555556 | X156: 293.7055556
A157: Student 153 | B157: iPhone | C157: =VLOOKUP(B157,{"iPhone",1;"Motorola",2;"Nokia",3;"Samsung",4;"Sony Erickson",5;"Sprint",6},2,0) -> 1 | H157: Student 153 | I157: OK | J157: =VLOOKUP(I157,{"Excellent",4;"Poor",1;"Good",3;"OK",2},2,0) -> 2 | O157: 68 | P157: 20 | X157: 293.15
A158: Student 154 | B158: Sprint | C158: =VLOOKUP(B158,{"iPhone",1;"Motorola",2;"Nokia",3;"Samsung",4;"Sony Erickson",5;"Sprint",6},2,0) -> 6 | H158: Student 154 | I158: Poor | J158: =VLOOKUP(I158,{"Excellent",4;"Poor",1;"Good",3;"OK",2},2,0) -> 1 | O158: 67 | P158: 19.44444444 | X158: 292.5944444
A159: Student 155 | B159: iPhone | C159: =VLOOKUP(B159,{"iPhone",1;"Motorola",2;"Nokia",3;"Samsung",4;"Sony Erickson",5;"Sprint",6},2,0) -> 1 | H159: Student 155 | I159: OK | J159: =VLOOKUP(I159,{"Excellent",4;"Poor",1;"Good",3;"OK",2},2,0) -> 2 | O159: 66 | P159: 18.88888889 | X159: 292.0388889
A160: Student 156 | B160: iPhone | C160: =VLOOKUP(B160,{"iPhone",1;"Motorola",2;"Nokia",3;"Samsung",4;"Sony Erickson",5;"Sprint",6},2,0) -> 1 | H160: Student 156 | I160: Poor | J160: =VLOOKUP(I160,{"Excellent",4;"Poor",1;"Good",3;"OK",2},2,0) -> 1 | O160: 65 | P160: 18.33333333 | X160: 291.4833333
A161: Student 157 | B161: Samsung | C161: =VLOOKUP(B161,{"iPhone",1;"Motorola",2;"Nokia",3;"Samsung",4;"Sony Erickson",5;"Sprint",6},2,0) -> 4 | H161: Student 157 | I161: Poor | J161: =VLOOKUP(I161,{"Excellent",4;"Poor",1;"Good",3;"OK",2},2,0) -> 1 | O161: 64 | P161: 17.77777778 | X161: 290.9277778
A162: Student 158 | B162: Nokia | C162: =VLOOKUP(B162,{"iPhone",1;"Motorola",2;"Nokia",3;"Samsung",4;"Sony Erickson",5;"Sprint",6},2,0) -> 3 | H162: Student 158 | I162: Poor | J162: =VLOOKUP(I162,{"Excellent",4;"Poor",1;"Good",3;"OK",2},2,0) -> 1 | O162: 63 | P162: 17.22222222 | X162: 290.3722222
A163: Student 159 | B163: Nokia | C163: =VLOOKUP(B163,{"iPhone",1;"Motorola",2;"Nokia",3;"Samsung",4;"Sony Erickson",5;"Sprint",6},2,0) -> 3 | H163: Student 159 | I163: Poor | J163: =VLOOKUP(I163,{"Excellent",4;"Poor",1;"Good",3;"OK",2},2,0) -> 1 | O163: 62 | P163: 16.66666667 | X163: 289.8166667
A164: Student 160 | B164: iPhone | C164: =VLOOKUP(B164,{"iPhone",1;"Motorola",2;"Nokia",3;"Samsung",4;"Sony Erickson",5;"Sprint",6},2,0) -> 1 | H164: Student 160 | I164: Poor | J164: =VLOOKUP(I164,{"Excellent",4;"Poor",1;"Good",3;"OK",2},2,0) -> 1 | O164: 61 | P164: 16.11111111 | X164: 289.2611111
A165: Student 161 | B165: Sony Erickson | C165: =VLOOKUP(B165,{"iPhone",1;"Motorola",2;"Nokia",3;"Samsung",4;"Sony Erickson",5;"Sprint",6},2,0) -> 5 | H165: Student 161 | I165: OK | J165: =VLOOKUP(I165,{"Excellent",4;"Poor",1;"Good",3;"OK",2},2,0) -> 2 | O165: 60 | P165: 15.55555556 | X165: 288.7055556
A166: Student 162 | B166: Nokia | C166: =VLOOKUP(B166,{"iPhone",1;"Motorola",2;"Nokia",3;"Samsung",4;"Sony Erickson",5;"Sprint",6},2,0) -> 3 | H166: Student 162 | I166: Poor | J166: =VLOOKUP(I166,{"Excellent",4;"Poor",1;"Good",3;"OK",2},2,0) -> 1 | O166: 59 | P166: 15 | X166: 288.15
A167: Student 163 | B167: Sprint | C167: =VLOOKUP(B167,{"iPhone",1;"Motorola",2;"Nokia",3;"Samsung",4;"Sony Erickson",5;"Sprint",6},2,0) -> 6 | H167: Student 163 | I167: Poor | J167: =VLOOKUP(I167,{"Excellent",4;"Poor",1;"Good",3;"OK",2},2,0) -> 1 | O167: 58 | P167: 14.44444444 | X167: 287.5944444
A168: Student 164 | B168: Nokia | C168: =VLOOKUP(B168,{"iPhone",1;"Motorola",2;"Nokia",3;"Samsung",4;"Sony Erickson",5;"Sprint",6},2,0) -> 3 | H168: Student 164 | I168: Excellent | J168: =VLOOKUP(I168,{"Excellent",4;"Poor",1;"Good",3;"OK",2},2,0) -> 4 | O168: 57 | P168: 13.88888889 | X168: 287.0388889
A169: Student 165 | B169: Samsung | C169: =VLOOKUP(B169,{"iPhone",1;"Motorola",2;"Nokia",3;"Samsung",4;"Sony Erickson",5;"Sprint",6},2,0) -> 4 | H169: Student 165 | I169: Good | J169: =VLOOKUP(I169,{"Excellent",4;"Poor",1;"Good",3;"OK",2},2,0) -> 3 | O169: 56 | P169: 13.33333333 | X169: 286.4833333
A170: Student 166 | B170: iPhone | C170: =VLOOKUP(B170,{"iPhone",1;"Motorola",2;"Nokia",3;"Samsung",4;"Sony Erickson",5;"Sprint",6},2,0) -> 1 | H170: Student 166 | I170: OK | J170: =VLOOKUP(I170,{"Excellent",4;"Poor",1;"Good",3;"OK",2},2,0) -> 2 | O170: 55 | P170: 12.77777778 | X170: 285.9277778
A171: Student 167 | B171: Samsung | C171: =VLOOKUP(B171,{"iPhone",1;"Motorola",2;"Nokia",3;"Samsung",4;"Sony Erickson",5;"Sprint",6},2,0) -> 4 | H171: Student 167 | I171: Good | J171: =VLOOKUP(I171,{"Excellent",4;"Poor",1;"Good",3;"OK",2},2,0) -> 3 | O171: 54 | P171: 12.22222222 | X171: 285.3722222
A172: Student 168 | B172: Motorola | C172: =VLOOKUP(B172,{"iPhone",1;"Motorola",2;"Nokia",3;"Samsung",4;"Sony Erickson",5;"Sprint",6},2,0) -> 2 | H172: Student 168 | I172: OK | J172: =VLOOKUP(I172,{"Excellent",4;"Poor",1;"Good",3;"OK",2},2,0) -> 2 | O172: 53 | P172: 11.66666667 | X172: 284.8166667
A173: Student 169 | B173: Sony Erickson | C173: =VLOOKUP(B173,{"iPhone",1;"Motorola",2;"Nokia",3;"Samsung",4;"Sony Erickson",5;"Sprint",6},2,0) -> 5 | H173: Student 169 | I173: Poor | J173: =VLOOKUP(I173,{"Excellent",4;"Poor",1;"Good",3;"OK",2},2,0) -> 1 | O173: 52 | P173: 11.11111111 | X173: 284.2611111
A174: Student 170 | B174: Nokia | C174: =VLOOKUP(B174,{"iPhone",1;"Motorola",2;"Nokia",3;"Samsung",4;"Sony Erickson",5;"Sprint",6},2,0) -> 3 | H174: Student 170 | I174: Poor | J174: =VLOOKUP(I174,{"Excellent",4;"Poor",1;"Good",3;"OK",2},2,0) -> 1 | O174: 51 | P174: 10.55555556 | X174: 283.7055556
A175: Student 171 | B175: Nokia | C175: =VLOOKUP(B175,{"iPhone",1;"Motorola",2;"Nokia",3;"Samsung",4;"Sony Erickson",5;"Sprint",6},2,0) -> 3 | H175: Student 171 | I175: OK | J175: =VLOOKUP(I175,{"Excellent",4;"Poor",1;"Good",3;"OK",2},2,0) -> 2 | O175: 50 | P175: 10 | X175: 283.15
A176: Student 172 | B176: Nokia | C176: =VLOOKUP(B176,{"iPhone",1;"Motorola",2;"Nokia",3;"Samsung",4;"Sony Erickson",5;"Sprint",6},2,0) -> 3 | H176: Student 172 | I176: OK | J176: =VLOOKUP(I176,{"Excellent",4;"Poor",1;"Good",3;"OK",2},2,0) -> 2 | O176: 49 | P176: 9.444444444 | X176: 282.5944444
A177: Student 173 | B177: Nokia | C177: =VLOOKUP(B177,{"iPhone",1;"Motorola",2;"Nokia",3;"Samsung",4;"Sony Erickson",5;"Sprint",6},2,0) -> 3 | H177: Student 173 | I177: Poor | J177: =VLOOKUP(I177,{"Excellent",4;"Poor",1;"Good",3;"OK",2},2,0) -> 1 | O177: 48 | P177: 8.888888889 | X177: 282.0388889
A178: Student 174 | B178: iPhone | C178: =VLOOKUP(B178,{"iPhone",1;"Motorola",2;"Nokia",3;"Samsung",4;"Sony Erickson",5;"Sprint",6},2,0) -> 1 | H178: Student 174 | I178: OK | J178: =VLOOKUP(I178,{"Excellent",4;"Poor",1;"Good",3;"OK",2},2,0) -> 2 | O178: 47 | P178: 8.333333333 | X178: 281.4833333
A179: Student 175 | B179: Motorola | C179: =VLOOKUP(B179,{"iPhone",1;"Motorola",2;"Nokia",3;"Samsung",4;"Sony Erickson",5;"Sprint",6},2,0) -> 2 | H179: Student 175 | I179: Good | J179: =VLOOKUP(I179,{"Excellent",4;"Poor",1;"Good",3;"OK",2},2,0) -> 3 | O179: 46 | P179: 7.777777778 | X179: 280.9277778
A180: Student 176 | B180: Sprint | C180: =VLOOKUP(B180,{"iPhone",1;"Motorola",2;"Nokia",3;"Samsung",4;"Sony Erickson",5;"Sprint",6},2,0) -> 6 | H180: Student 176 | I180: Poor | J180: =VLOOKUP(I180,{"Excellent",4;"Poor",1;"Good",3;"OK",2},2,0) -> 1 | O180: 45 | P180: 7.222222222 | X180: 280.3722222
A181: Student 177 | B181: iPhone | C181: =VLOOKUP(B181,{"iPhone",1;"Motorola",2;"Nokia",3;"Samsung",4;"Sony Erickson",5;"Sprint",6},2,0) -> 1 | H181: Student 177 | I181: Excellent | J181: =VLOOKUP(I181,{"Excellent",4;"Poor",1;"Good",3;"OK",2},2,0) -> 4 | O181: 44 | P181: 6.666666667 | X181: 279.8166667
A182: Student 178 | B182: Motorola | C182: =VLOOKUP(B182,{"iPhone",1;"Motorola",2;"Nokia",3;"Samsung",4;"Sony Erickson",5;"Sprint",6},2,0) -> 2 | H182: Student 178 | I182: Poor | J182: =VLOOKUP(I182,{"Excellent",4;"Poor",1;"Good",3;"OK",2},2,0) -> 1 | O182: 43 | P182: 6.111111111 | X182: 279.2611111
A183: Student 179 | B183: Nokia | C183: =VLOOKUP(B183,{"iPhone",1;"Motorola",2;"Nokia",3;"Samsung",4;"Sony Erickson",5;"Sprint",6},2,0) -> 3 | H183: Student 179 | I183: Poor | J183: =VLOOKUP(I183,{"Excellent",4;"Poor",1;"Good",3;"OK",2},2,0) -> 1 | O183: 42 | P183: 5.555555556 | X183: 278.7055556
A184: Student 180 | B184: iPhone | C184: =VLOOKUP(B184,{"iPhone",1;"Motorola",2;"Nokia",3;"Samsung",4;"Sony Erickson",5;"Sprint",6},2,0) -> 1 | H184: Student 180 | I184: Poor | J184: =VLOOKUP(I184,{"Excellent",4;"Poor",1;"Good",3;"OK",2},2,0) -> 1 | O184: 41 | P184: 5 | X184: 278.15
A185: Student 181 | B185: iPhone | C185: =VLOOKUP(B185,{"iPhone",1;"Motorola",2;"Nokia",3;"Samsung",4;"Sony Erickson",5;"Sprint",6},2,0) -> 1 | H185: Student 181 | I185: OK | J185: =VLOOKUP(I185,{"Excellent",4;"Poor",1;"Good",3;"OK",2},2,0) -> 2 | O185: 40 | P185: 4.444444444 | X185: 277.5944444
A186: Student 182 | B186: iPhone | C186: =VLOOKUP(B186,{"iPhone",1;"Motorola",2;"Nokia",3;"Samsung",4;"Sony Erickson",5;"Sprint",6},2,0) -> 1 | H186: Student 182 | I186: Poor | J186: =VLOOKUP(I186,{"Excellent",4;"Poor",1;"Good",3;"OK",2},2,0) -> 1 | O186: 39 | P186: 3.888888889 | X186: 277.0388889
A187: Student 183 | B187: Sprint | C187: =VLOOKUP(B187,{"iPhone",1;"Motorola",2;"Nokia",3;"Samsung",4;"Sony Erickson",5;"Sprint",6},2,0) -> 6 | H187: Student 183 | I187: Poor | J187: =VLOOKUP(I187,{"Excellent",4;"Poor",1;"Good",3;"OK",2},2,0) -> 1 | O187: 38 | P187: 3.333333333 | X187: 276.4833333
A188: Student 184 | B188: Nokia | C188: =VLOOKUP(B188,{"iPhone",1;"Motorola",2;"Nokia",3;"Samsung",4;"Sony Erickson",5;"Sprint",6},2,0) -> 3 | H188: Student 184 | I188: Poor | J188: =VLOOKUP(I188,{"Excellent",4;"Poor",1;"Good",3;"OK",2},2,0) -> 1 | O188: 37 | P188: 2.777777778 | X188: 275.9277778
A189: Student 185 | B189: iPhone | C189: =VLOOKUP(B189,{"iPhone",1;"Motorola",2;"Nokia",3;"Samsung",4;"Sony Erickson",5;"Sprint",6},2,0) -> 1 | H189: Student 185 | I189: Poor | J189: =VLOOKUP(I189,{"Excellent",4;"Poor",1;"Good",3;"OK",2},2,0) -> 1 | O189: 36 | P189: 2.222222222 | X189: 275.3722222
A190: Student 186 | B190: iPhone | C190: =VLOOKUP(B190,{"iPhone",1;"Motorola",2;"Nokia",3;"Samsung",4;"Sony Erickson",5;"Sprint",6},2,0) -> 1 | H190: Student 186 | I190: OK | J190: =VLOOKUP(I190,{"Excellent",4;"Poor",1;"Good",3;"OK",2},2,0) -> 2 | O190: 35 | P190: 1.666666667 | X190: 274.8166667
A191: Student 187 | B191: Sprint | C191: =VLOOKUP(B191,{"iPhone",1;"Motorola",2;"Nokia",3;"Samsung",4;"Sony Erickson",5;"Sprint",6},2,0) -> 6 | H191: Student 187 | I191: Poor | J191: =VLOOKUP(I191,{"Excellent",4;"Poor",1;"Good",3;"OK",2},2,0) -> 1 | O191: 34 | P191: 1.111111111 | X191: 274.2611111
A192: Student 188 | B192: Motorola | C192: =VLOOKUP(B192,{"iPhone",1;"Motorola",2;"Nokia",3;"Samsung",4;"Sony Erickson",5;"Sprint",6},2,0) -> 2 | H192: Student 188 | I192: Poor | J192: =VLOOKUP(I192,{"Excellent",4;"Poor",1;"Good",3;"OK",2},2,0) -> 1 | O192: 33 | P192: 0.5555555556 | X192: 273.7055556
A193: Student 189 | B193: iPhone | C193: =VLOOKUP(B193,{"iPhone",1;"Motorola",2;"Nokia",3;"Samsung",4;"Sony Erickson",5;"Sprint",6},2,0) -> 1 | H193: Student 189 | I193: Good | J193: =VLOOKUP(I193,{"Excellent",4;"Poor",1;"Good",3;"OK",2},2,0) -> 3 | O193: 32 | P193: 0 | X193: 273.15
A194: Student 190 | B194: iPhone | C194: =VLOOKUP(B194,{"iPhone",1;"Motorola",2;"Nokia",3;"Samsung",4;"Sony Erickson",5;"Sprint",6},2,0) -> 1 | H194: Student 190 | I194: Good | J194: =VLOOKUP(I194,{"Excellent",4;"Poor",1;"Good",3;"OK",2},2,0) -> 3 | O194: 31 | P194: -0.5555555556 | X194: 272.5944444
A195: Student 191 | B195: iPhone | C195: =VLOOKUP(B195,{"iPhone",1;"Motorola",2;"Nokia",3;"Samsung",4;"Sony Erickson",5;"Sprint",6},2,0) -> 1 | H195: Student 191 | I195: OK | J195: =VLOOKUP(I195,{"Excellent",4;"Poor",1;"Good",3;"OK",2},2,0) -> 2 | O195: 30 | P195: -1.111111111 | X195: 272.0388889
A196: Student 192 | B196: Sony Erickson | C196: =VLOOKUP(B196,{"iPhone",1;"Motorola",2;"Nokia",3;"Samsung",4;"Sony Erickson",5;"Sprint",6},2,0) -> 5 | H196: Student 192 | I196: Good | J196: =VLOOKUP(I196,{"Excellent",4;"Poor",1;"Good",3;"OK",2},2,0) -> 3 | O196: 29 | P196: -1.666666667 | X196: 271.4833333
A197: Student 193 | B197: iPhone | C197: =VLOOKUP(B197,{"iPhone",1;"Motorola",2;"Nokia",3;"Samsung",4;"Sony Erickson",5;"Sprint",6},2,0) -> 1 | H197: Student 193 | I197: Poor | J197: =VLOOKUP(I197,{"Excellent",4;"Poor",1;"Good",3;"OK",2},2,0) -> 1 | O197: 28 | P197: =CONVERT(O197,"F","C") -> -2.222222222 | X197: 270.9277778
A198: Student 194 | B198: Motorola | C198: =VLOOKUP(B198,{"iPhone",1;"Motorola",2;"Nokia",3;"Samsung",4;"Sony Erickson",5;"Sprint",6},2,0) -> 2 | H198: Student 194 | I198: OK | J198: =VLOOKUP(I198,{"Excellent",4;"Poor",1;"Good",3;"OK",2},2,0) -> 2 | O198: 27 | P198: -2.777777778 | X198: 270.3722222
A199: Student 195 | B199: iPhone | C199: =VLOOKUP(B199,{"iPhone",1;"Motorola",2;"Nokia",3;"Samsung",4;"Sony Erickson",5;"Sprint",6},2,0) -> 1 | H199: Student 195 | I199: Good | J199: =VLOOKUP(I199,{"Excellent",4;"Poor",1;"Good",3;"OK",2},2,0) -> 3 | O199: 26 | P199: -3.333333333 | X199: 269.8166667
A200: Student 196 | B200: Nokia | C200: =VLOOKUP(B200,{"iPhone",1;"Motorola",2;"Nokia",3;"Samsung",4;"Sony Erickson",5;"Sprint",6},2,0) -> 3 | H200: Student 196 | I200: Poor | J200: =VLOOKUP(I200,{"Excellent",4;"Poor",1;"Good",3;"OK",2},2,0) -> 1 | O200: 25 | P200: -3.888888889 | X200: =CONVERT(O200,"F","K") -> 269.2611111
A201: Student 197 | B201: Sony Erickson | C201: =VLOOKUP(B201,{"iPhone",1;"Motorola",2;"Nokia",3;"Samsung",4;"Sony Erickson",5;"Sprint",6},2,0) -> 5 | H201: Student 197 | I201: OK | J201: =VLOOKUP(I201,{"Excellent",4;"Poor",1;"Good",3;"OK",2},2,0) -> 2 | O201: 24 | P201: -4.444444444 | X201: 268.7055556
... 484 more rows

Sheet SM(2)
B1: Nominal | D1: Ordinal | F1: Interval | H1: Ratio
A2: Student | B2: Phone | C2: Eye Color | D2: Rank In Class (1-38) | E2: Rating of Teacher (Bad, Okay, Good, Excellent) | F2: Body Temperature | G2: SAT Score (600 to 2400) | H2: Score On Final (0 - 100) | I2: Money In Bank
A3: Joe | B3: iPhone | C3: Green | D3: 12 | E3: Okay | F3: 98.2 | G3: 1509 | H3: 81 | I3: 6232
A4: Chin | B4: Samsung | C4: Brown | D4: 10 | E4: Good | F4: 99 | G4: 1777 | H4: 87 | I4: 5553
A5: Sioux | B5: iPhone | C5: Hazel | D5: 16 | E5: Okay | F5: 98.7 | G5: 1681 | H5: 84 | I5: 3131
B8: Nominal: | D8: Ordinal: | F8: Interval: | H8: Ratio:
B9: Category | D9: Category | F9: Category | H9: Category
B10: No Rank | D10: Rank | F10: Rank | H10: Rank
D11: Don't Know Distance | F11: Know Distance | H11: Know Distance
D12: Between Each Rank | F12: Between Each Rank | H12: Between Each Rank
F13: Zero just a Point On Scale | H13: Zero = Nothing Exists
F14: Ratio Not Okay | H14: Ratio Okay

Sheet SM(3)
A1: Scales (Levels) of Measurements: Determines what calculations and presentation you can perform and the "amount of information contained in the data".
A2: Nominal | B2: Ordinal | C2: Interval | D2: Ratio
A3: Examples: | B3: Examples: | C3: Examples: | D3: Examples:
A4: Car Names | B4: Bad, Okay, Good, Excellent | C4: IQ Test or SAT score (0 does not mean total absences of smartness) | D4: Test in Stats Class 0 - 100 (0 means you got none correct)
A5: Phone Names | B5: *, **, ***, **** | C5: Celsius or Fahrenheit (0 just a point, 80 degree not twice as big as 40 degree). | D5: Kelvin (0 means the absence of molecular movement and thus the absence of mass E = mc2)
A6: Eye Color | B6: Rank In Class, Race or Voting: 1, 2, 3 | C6: Race Results: 5:01 m, 4:89 m, 4:82 m | D6: Total Score In Class, 642, 619, 598 Voting Totals: 10786, 8801, 2022
B7: Jan, Feb, Mar | C7: Elapsed Time (Timing) | D7: Dollars (Money), Weight, Height, Length
A8: Characteristics: | B8: Characteristics: | C8: Characteristics: | D8: Characteristics:
A9: Categories or Labels (words or numbers). | B9: Categories or Labels (words or numbers). | C9: Numbers. | D9: Numbers.
A10: No Rank. | B10: Categories are ranked and have an order, but you don’t know the distance between each ranking or ordered item. | C10: Categories are ranked and the distance between each rank is fixed. Usually a scale like temperature or IQ or timed racing results. | D10: Categories are ranked and the distance between each rank is fixed and zero means that nothing exists and rations are meaninful.
A11: Nothing intrinsic in category except a name. Category just names the item. | B11: In a race with rankings: You can say who got 1st, 2nd, 3rd, but you don't know by how much | C11: If zero exists, it is just a point on the scale. Zero does not mean that nothing exists. | D11: Zero means that nothing exists.
A12: Information: | B12: Information: | C12: Information: | D12: Information:
A13: Name | B13: Name and Rank, but not distance | C13: Name and Rank, Distance | D13: Name and Rank, Distance, and more (like % change)
A14: Types of Calculations | B14: Types of Calculations | C14: Types of Calculations | D14: Types of Calculations
A15: Counting Only, Can't use Bell Curve | B15: Counting, and occasionally if the category is a number other calculations like average are okay, Can't use Bell Curve | C15: Arithmetic like adding, subtraction, averages okay, but ratio is meaningless. Can use Bell Curve. | D15: Arithmetic okay. Ratios okay. Can use Bell Curve.
A16: Example of a chart presentation | B16: Example of a chart presentation | C16: Example of a chart presentation | D16: Example of a chart presentation
A17: Column Chart with gaps between columns and categories are equidistance from each other. | B17: Column Chart with gaps between columns and categories are equidistance from each other. | C17: Column with no gaps | D17: Column with no gaps
A18: Types of Data
A19: Categorical (Qualitative) Data (Variable). Categories, labels or names are used to identify an attribute or characteristic of an element. Nominal or Ordinal. Non-numeric or numeric. Most of the time you are limited to counting. | C19: Quantitative Data (Variable). A number that tells us how much or how many. Interval or Ratio.
C20: **Discrete Number Variable = How Many (counting - there are gaps between numbers) **Continuous Number Variable = How Much (measuring and the measurement depends on the measurement instrument - there are no gaps). Money is continuous (stocks. Bonds, interest are often tracked with partial pennies).

Sheet StatisticalStudies

Sheet DataAcquisition

Sheet Ethics
A1: Unethical Statistics
A2: Running multiple samples until you get the result you want.
A3: Unrepresentative Samples

Sheet D & I
A1: Descriptive Statistics: Tabular, Graphical and Numerical summaries of data.
A3: Inferential Statistics: The process of using data obtained from a sample to make estimates and test hypotheses about the characteristics of a population

Sheet DescriptiveStatistics
A1: Descriptive Statistics: Tabular, Graphical and Numerical summaries of data.
A3: Data Set | E3: Descriptive Statistics: Numerical Measure
A4: Sample of Cost of Parts | E4: Mean = (Add up all values)/(Count all observation) = AVERAGE = | F4: =AVERAGE(A5:A54) -> 78.98 | G4: "Typical Value"
A5: 109
A6: 105 | E6: Descriptive Statistics: Tabular Method
A7: 105 | E7: Part Cost Category | F7: Part Frequency | G7: Percent Frequency
A8: 104 | E8: =DOLLAR(C17,0)&" up to "&DOLLAR(D17,0) -> $50 up to $60 | F8: =COUNTIF($A$5:$A$54,"<"&D17)-COUNTIF($A$5:$A$54,"<"&C17) -> 2 | G8: =F8/$F$14 -> 0.04
A9: 101 | E9: $60 up to $70 | F9: 13 | G9: =F9/$F$14 -> 0.26
A10: 99 | E10: $70 up to $80 | F10: 16 | G10: 0.32
A11: 98 | E11: $80 up to $90 | F11: 7 | G11: 0.14
A12: 97 | E12: $90 up to $100 | F12: 7 | G12: 0.14
A13: 97 | E13: $100 up to $110 | F13: 5 | G13: 0.1
A14: 97 | F14: =SUM(F8:F13) -> 50 | G14: =SUM(G8:G13) -> 1
A15: 93 | I15: Statistical Inference (Creating reasonable estimates from a sample)
A16: 91 | I16: In our budget projections we will use the average of $79 to help project future parts costs.
A17: 89 | C17: =F48 -> 50 | D17: =C17+F$47 -> 60
A18: 88 | C18: =D17 -> 60 | D18: 70
A19: 85 | C19: =D18 -> 70 | D19: 80
A20: 83 | C20: =D19 -> 80 | D20: 90
A21: 82 | C21: =D20 -> 90 | D21: 100
A22: 80 | C22: =D21 -> 100 | D22: 110
A23: 80
A24: 79
A25: 79
A26: 79
A27: 78
A28: 77
A29: 76
A30: 75
A31: 75 | F31: Values
A32: 75 | E32: Row Labels | F32: Frequency | G32: % Frequency
A33: 74 | E33: 50-59 | F33: 2 | G33: 0.04
A34: 74 | E34: 60-69 | F34: 13 | G34: 0.26
A35: 73 | E35: 70-79 | F35: 16 | G35: 0.32
A36: 72 | E36: 80-89 | F36: 7 | G36: 0.14
A37: 72 | E37: 90-99 | F37: 7 | G37: 0.14
A38: 71 | E38: 100-110 | F38: 5 | G38: 0.1
A39: 71 | E39: Grand Total | F39: 50 | G39: 1
A40: 69
A41: 69 | E41: Count Observations =n = | F41: =COUNT(DescriptiveStatistics!$A$5:$A$54) -> 50
A42: 69 | E42: Max | F42: =MAX(DescriptiveStatistics!$A$5:$A$54) -> 109
A43: 68 | E43: Min | F43: =MIN(DescriptiveStatistics!$A$5:$A$54) -> 52
A44: 68 | E44: k = # of Classes = | F44: 6
A45: 68 | E45: k = # of Classes = 2^k >= n | F45: =2^F44>=F41 -> TRUE
A46: 67 | E46: Estimate class width = | F46: =(F42-F43)/F44 -> 9.5
A47: 66 | E47: ROUNDUP | F47: =ROUNDUP(F46,0) -> 10
A48: 65 | E48: Lower Limit of First = | F48: 50
A49: 62
A50: 62
A51: 62
A52: 62
A53: 57
A54: 52

Sheet InferentialStatisticsTerms
A1: Population | B1: The set of all elements of interest in a particular study
A2: Sample | B2: A subset of the population
A3: Statistical inference | B3: The process of using data obtained from a sample to make estimates and test hypotheses about the characteristics of a population | J3: 50000
A4: Census | B4: Collecting data for a population
A5: Sample survey | B5: Collecting data for a sample
A7: Population: ALL Students In Class | B7: Sample: Just Some of the students in the class
A8: Student 01 | B8: =INDEX($A$8:$A$17,RANDBETWEEN(1,COUNTA($A$8:$A$17))) -> Student 05
A9: Student 02 | B9: =INDEX($A$8:$A$17,RANDBETWEEN(1,COUNTA($A$8:$A$17))) -> Student 07
A10: Student 03 | B10: =INDEX($A$8:$A$17,RANDBETWEEN(1,COUNTA($A$8:$A$17))) -> Student 07
A11: Student 04
A12: Student 05
A13: Student 06
A14: Student 07
A15: Student 08
A16: Student 09
A17: Student 10

Sheet Science
A1: Production: Sampling box weight to see if filling machine is filling accurately (chapter 9)
A2: H0 : Mu = 10 grams
A3: H1 : Mu <> 10 grams
A4: Historical Average = | B4: 10 | C4: grams
A5: Historical Standard Deviation = | B5: 0.5 | C5: grams
A6: Level of Significance = | B6: 0.05
A7: Level of Significance Divided by 2 = | B7: =B6/2 -> 0.025
A8: Sample Mean = AVERAGE = | B8: =AVERAGE(A22:A99) -> 9.897179487 | C8: grams
A9: Sample Standard Deviation = STDEV = | B9: =STDEV(A22:A99) -> 0.2183798516 | C9: grams
A10: Sample size = COUNT = | B10: =COUNT($A$22:$A$99) -> 78
A11: Standard Error | B11: =B5/SQRT(B10) -> 0.05661385171 | C11: grams
A12: z | B12: =(B8-B4)/B11 -> -1.816172363
A13: X | B13: =B12*B11+B4 -> 9.897179487 | C13: =D102 -> P(9.897) | H13: =VLOOKUP(B13,B103:C602,2) -> 0.7788075177
A14: p-value = | B14: =IF(B8<B4,2*NORMDIST(B8,B4,B5/SQRT(B10),1),2*(1-NORMDIST(B8,B4,B5/SQRT(B10),1))) -> 0.06934393616
A15: p-value = | B15: =2*(1-NORMSDIST(ABS(B12))) -> 0.06934393616
A16: =IF(B15>B6,"Because the p-value is greater than our alpha, it is reasonable to assume that the machine is filling accurately"," Because the p-value is less than or equal to our alpha, it is reasonable to assume that the machine is not filling accurately") -> Because the p-value is greater than our alpha, it is reasonable to assume that the machine is filling accurately
A21: Sample data
A22: =RANDBETWEEN(9500,10300)/1000 -> 9.752 | C22: A | D22: ="The average for the population is "&TEXT($B$8,"0.00") -> The average for the population is 9.90
A23: 9.867 | C23: B | D23: ="A reasonable esitimate of the average for the population is "&TEXT($B$8,"0.00") -> A reasonable esitimate of the average for the population is 9.90
A24: 9.95
A25: 10.202
A26: 9.663
A27: 10.206
A28: 10.274
A29: 9.609
A30: 9.767
A31: 9.69
A32: 9.862
A33: 9.83
A34: 9.696
A35: 9.723
A36: 9.858
A37: 10.173
A38: 9.659
A39: 9.949
A40: 9.56
A41: 10.158
A42: 9.789
A43: 10.216
A44: 9.633
A45: 9.77
A46: 9.818
A47: 10.08
A48: 9.99
A49: 9.835
A50: 9.731
A51: 9.792
A52: 10.282
A53: 9.955
A54: 10.001
A55: 9.61
A56: 9.628
A57: 10.107
A58: 9.701
A59: 9.58
A60: 10.194
A61: 10.223
A62: 10.3
A63: 9.691
A64: 9.819
A65: 9.99
A66: 9.608
A67: 9.721
A68: 10.215
A69: 9.884
A70: 10.129
A71: 9.891
A72: 10.142
A73: 9.598
A74: 10.105
A75: 10.203
A76: 10.076
A77: 9.802
A78: 9.817
A79: 10.024
A80: 10.242
A81: 9.543
A82: 9.608
A83: 9.844
A84: 9.754
A85: 10.147
A86: =RANDBETWEEN(9500,10300)/1000 -> 10.05
A87: 10.091
A88: 9.531
A89: 9.875
A90: 9.622
A91: 9.933
A92: 9.803
A93: 10.125
A94: 10.025
A95: 9.965
A96: 9.839
A97: 9.591
A98: 10.085
A99: 9.909
A101: Chart Data:
A102: z | B102: X | C102: P(Exactly x) | D102: ="P("&ROUND(B8,3)&")" -> P(9.897) | E102: P(alpha)
A103: =(B103-B$4)/B$11 -> -35.32704347 | B103: 8 | C103: =NORMDIST(B103,B$4,B$5,0) -> 0.0002676604515 | D103: =IF(C103<=B$14/2,C103,0) -> 0.0002676604515 | E103: =IF(C103<=B$6/2,C103,0) -> 0.0002676604515
A104: -35.15040825 | B104: =B103+0.01 -> 8.01 | C104: 0.0002898951208 | D104: 0.0002898951208 | E104: 0.0002898951208
A105: -34.97377303 | B105: =B104+0.01 -> 8.02 | C105: 0.0003138512681 | D105: 0.0003138512681 | E105: 0.0003138512681
A106: -34.79713781 | B106: 8.03 | C106: 0.0003396511989 | D106: 0.0003396511989 | E106: 0.0003396511989
A107: -34.6205026 | B107: 8.04 | C107: 0.000367424996 | D107: 0.000367424996 | E107: 0.000367424996
A108: -34.44386738 | B108: 8.05 | C108: 0.0003973109428 | D108: 0.0003973109428 | E108: 0.0003973109428
A109: -34.26723216 | B109: 8.06 | C109: 0.000429455963 | D109: 0.000429455963 | E109: 0.000429455963
A110: -34.09059694 | B110: 8.07 | C110: 0.0004640160793 | D110: 0.0004640160793 | E110: 0.0004640160793
A111: -33.91396173 | B111: 8.08 | C111: 0.0005011568898 | D111: 0.0005011568898 | E111: 0.0005011568898
A112: -33.73732651 | B112: 8.09 | C112: 0.0005410540629 | D112: 0.0005410540629 | E112: 0.0005410540629
A113: -33.56069129 | B113: 8.1 | C113: 0.0005838938516 | D113: 0.0005838938516 | E113: 0.0005838938516
A114: -33.38405607 | B114: 8.11 | C114: 0.0006298736258 | D114: 0.0006298736258 | E114: 0.0006298736258
A115: -33.20742086 | B115: 8.12 | C115: 0.000679202425 | D115: 0.000679202425 | E115: 0.000679202425
A116: -33.03078564 | B116: 8.13 | C116: 0.0007321015291 | D116: 0.0007321015291 | E116: 0.0007321015291
A117: -32.85415042 | B117: 8.14 | C117: 0.0007888050499 | D117: 0.0007888050499 | E117: 0.0007888050499
A118: -32.67751521 | B118: 8.15 | C118: 0.0008495605411 | D118: 0.0008495605411 | E118: 0.0008495605411
A119: -32.50087999 | B119: 8.16 | C119: 0.0009146296281 | D119: 0.0009146296281 | E119: 0.0009146296281
A120: -32.32424477 | B120: 8.17 | C120: 0.0009842886577 | D120: 0.0009842886577 | E120: 0.0009842886577
A121: -32.14760955 | B121: 8.18 | C121: 0.001058829366 | D121: 0.001058829366 | E121: 0.001058829366
A122: -31.97097434 | B122: 8.19 | C122: 0.001138559568 | D122: 0.001138559568 | E122: 0.001138559568
A123: -31.79433912 | B123: 8.2 | C123: 0.00122380386 | D123: 0.00122380386 | E123: 0.00122380386
A124: -31.6177039 | B124: 8.21 | C124: 0.001314904351 | D124: 0.001314904351 | E124: 0.001314904351
A125: -31.44106868 | B125: 8.22 | C125: 0.001412221401 | D125: 0.001412221401 | E125: 0.001412221401
A126: -31.26443347 | B126: 8.23 | C126: 0.001516134383 | D126: 0.001516134383 | E126: 0.001516134383
A127: -31.08779825 | B127: 8.24 | C127: 0.001627042462 | D127: 0.001627042462 | E127: 0.001627042462
A128: -30.91116303 | B128: 8.25 | C128: 0.00174536539 | D128: 0.00174536539 | E128: 0.00174536539
A129: -30.73452781 | B129: 8.26 | C129: 0.001871544314 | D129: 0.001871544314 | E129: 0.001871544314
A130: -30.5578926 | B130: 8.27 | C130: 0.002006042601 | D130: 0.002006042601 | E130: 0.002006042601
A131: -30.38125738 | B131: 8.28 | C131: 0.00214934668 | D131: 0.00214934668 | E131: 0.00214934668
A132: -30.20462216 | B132: 8.29 | C132: 0.002301966888 | D132: 0.002301966888 | E132: 0.002301966888
A133: -30.02798695 | B133: 8.3 | C133: 0.002464438337 | D133: 0.002464438337 | E133: 0.002464438337
A134: -29.85135173 | B134: 8.31 | C134: 0.002637321784 | D134: 0.002637321784 | E134: 0.002637321784
A135: -29.67471651 | B135: 8.32 | C135: 0.002821204514 | D135: 0.002821204514 | E135: 0.002821204514
A136: -29.49808129 | B136: 8.33 | C136: 0.00301670123 | D136: 0.00301670123 | E136: 0.00301670123
A137: -29.32144608 | B137: 8.34 | C137: 0.003224454944 | D137: 0.003224454944 | E137: 0.003224454944
A138: -29.14481086 | B138: 8.35 | C138: 0.003445137878 | D138: 0.003445137878 | E138: 0.003445137878
A139: -28.96817564 | B139: 8.36 | C139: 0.003679452362 | D139: 0.003679452362 | E139: 0.003679452362
A140: -28.79154042 | B140: 8.37 | C140: 0.003928131731 | D140: 0.003928131731 | E140: 0.003928131731
A141: -28.61490521 | B141: 8.38 | C141: 0.004191941226 | D141: 0.004191941226 | E141: 0.004191941226
A142: -28.43826999 | B142: 8.39 | C142: 0.004471678879 | D142: 0.004471678879 | E142: 0.004471678879
A143: -28.26163477 | B143: 8.4 | C143: 0.004768176403 | D143: 0.004768176403 | E143: 0.004768176403
A144: -28.08499955 | B144: 8.41 | C144: 0.005082300057 | D144: 0.005082300057 | E144: 0.005082300057
A145: -27.90836434 | B145: 8.42 | C145: 0.005414951514 | D145: 0.005414951514 | E145: 0.005414951514
A146: -27.73172912 | B146: 8.43 | C146: 0.005767068695 | D146: 0.005767068695 | E146: 0.005767068695
A147: -27.5550939 | B147: 8.44 | C147: 0.006139626602 | D147: 0.006139626602 | E147: 0.006139626602
A148: -27.37845869 | B148: 8.45 | C148: 0.006533638112 | D148: 0.006533638112 | E148: 0.006533638112
A149: -27.20182347 | B149: 8.46 | C149: 0.006950154756 | D149: 0.006950154756 | E149: 0.006950154756
A150: -27.02518825 | B150: 8.47 | C150: 0.007390267459 | D150: 0.007390267459 | E150: 0.007390267459
A151: -26.84855303 | B151: 8.48 | C151: 0.007855107258 | D151: 0.007855107258 | E151: 0.007855107258
A152: -26.67191782 | B152: 8.49 | C152: 0.008345845969 | D152: 0.008345845969 | E152: 0.008345845969
A153: -26.4952826 | B153: 8.5 | C153: 0.008863696824 | D153: 0.008863696824 | E153: 0.008863696824
A154: -26.31864738 | B154: 8.51 | C154: 0.009409915054 | D154: 0.009409915054 | E154: 0.009409915054
A155: -26.14201216 | B155: 8.52 | C155: 0.009985798427 | D155: 0.009985798427 | E155: 0.009985798427
A156: -25.96537695 | B156: 8.53 | C156: 0.01059268773 | D156: 0.01059268773 | E156: 0.01059268773
A157: -25.78874173 | B157: 8.54 | C157: 0.01123196719 | D157: 0.01123196719 | E157: 0.01123196719
A158: -25.61210651 | B158: 8.55 | C158: 0.01190506484 | D158: 0.01190506484 | E158: 0.01190506484
A159: -25.4354713 | B159: 8.56 | C159: 0.01261345279 | D159: 0.01261345279 | E159: 0.01261345279
A160: -25.25883608 | B160: 8.57 | C160: 0.01335864748 | D160: 0.01335864748 | E160: 0.01335864748
A161: -25.08220086 | B161: 8.58 | C161: 0.01414220977 | D161: 0.01414220977 | E161: 0.01414220977
A162: -24.90556564 | B162: 8.59 | C162: 0.01496574505 | D162: 0.01496574505 | E162: 0.01496574505
A163: -24.72893043 | B163: 8.6 | C163: 0.01583090317 | D163: 0.01583090317 | E163: 0.01583090317
A164: -24.55229521 | B164: 8.61 | C164: 0.01673937831 | D164: 0.01673937831 | E164: 0.01673937831
A165: -24.37565999 | B165: 8.62 | C165: 0.0176929088 | D165: 0.0176929088 | E165: 0.0176929088
A166: -24.19902477 | B166: 8.63 | C166: 0.01869327674 | D166: 0.01869327674 | E166: 0.01869327674
A167: =(B167-B$4)/B$11 -> -24.02238956 | B167: 8.64 | C167: =NORMDIST(B167,B$4,B$5,0) -> 0.01974230759 | D167: =IF(C167<=B$14/2,C167,0) -> 0.01974230759 | E167: =IF(C167<=B$6/2,C167,0) -> 0.01974230759
A168: -23.84575434 | B168: 8.65 | C168: 0.02084186963 | D168: 0.02084186963 | E168: 0.02084186963
A169: -23.66911912 | B169: =B168+0.01 -> 8.66 | C169: 0.02199387326 | D169: 0.02199387326 | E169: 0.02199387326
A170: -23.4924839 | B170: 8.67 | C170: 0.02320027023 | D170: 0.02320027023 | E170: 0.02320027023
A171: -23.31584869 | B171: 8.68 | C171: 0.0244630527 | D171: 0.0244630527 | E171: 0.0244630527
A172: -23.13921347 | B172: 8.69 | C172: 0.02578425222 | D172: 0.02578425222 | E172: 0
A173: -22.96257825 | B173: 8.7 | C173: 0.02716593847 | D173: 0.02716593847 | E173: 0
A174: -22.78594304 | B174: 8.71 | C174: 0.02861021799 | D174: 0.02861021799 | E174: 0
A175: -22.60930782 | B175: 8.72 | C175: 0.03011923265 | D175: 0.03011923265 | E175: 0
A176: -22.4326726 | B176: 8.73 | C176: 0.03169515805 | D176: 0.03169515805 | E176: 0
A177: -22.25603738 | B177: 8.74 | C177: 0.03334020167 | D177: 0.03334020167 | E177: 0
A178: -22.07940217 | B178: 8.75 | C178: 0.03505660099 | D178: 0 | E178: 0
A179: -21.90276695 | B179: 8.76 | C179: 0.03684662129 | D179: 0 | E179: 0
A180: -21.72613173 | B180: 8.77 | C180: 0.03871255346 | D180: 0 | E180: 0
A181: -21.54949651 | B181: 8.78 | C181: 0.04065671148 | D181: 0 | E181: 0
A182: -21.3728613 | B182: 8.79 | C182: 0.0426814298 | D182: 0 | E182: 0
A183: -21.19622608 | B183: 8.8 | C183: 0.04478906059 | D183: 0 | E183: 0
A184: -21.01959086 | B184: 8.81 | C184: 0.04698197072 | D184: 0 | E184: 0
A185: -20.84295564 | B185: 8.82 | C185: 0.04926253861 | D185: 0 | E185: 0
A186: -20.66632043 | B186: 8.83 | C186: 0.05163315094 | D186: 0 | E186: 0
A187: -20.48968521 | B187: 8.84 | C187: 0.05409619909 | D187: 0 | E187: 0
A188: -20.31304999 | B188: 8.85 | C188: 0.05665407548 | D188: 0 | E188: 0
A189: -20.13641478 | B189: 8.86 | C189: 0.05930916969 | D189: 0 | E189: 0
A190: -19.95977956 | B190: 8.87 | C190: 0.06206386443 | D190: 0 | E190: 0
A191: -19.78314434 | B191: 8.88 | C191: 0.06492053129 | D191: 0 | E191: 0
A192: -19.60650912 | B192: 8.89 | C192: 0.06788152636 | D192: 0 | E192: 0
A193: -19.42987391 | B193: 8.9 | C193: 0.07094918569 | D193: 0 | E193: 0
A194: -19.25323869 | B194: 8.91 | C194: 0.0741258205 | D194: 0 | E194: 0
A195: -19.07660347 | B195: 8.92 | C195: 0.07741371229 | D195: 0 | E195: 0
A196: -18.89996825 | B196: 8.93 | C196: 0.08081510785 | D196: 0 | E196: 0
A197: -18.72333304 | B197: 8.94 | C197: 0.08433221392 | D197: 0 | E197: 0
A198: -18.54669782 | B198: 8.95 | C198: 0.08796719196 | D198: 0 | E198: 0
A199: -18.3700626 | B199: 8.96 | C199: 0.09172215254 | D199: 0 | E199: 0
A200: -18.19342738 | B200: 8.97 | C200: 0.09559914976 | D200: 0 | E200: 0
A201: -18.01679217 | B201: 8.98 | C201: 0.09960017547 | D201: 0 | E201: 0
A202: -17.84015695 | B202: 8.99 | C202: 0.1037271534 | D202: 0 | E202: 0
A203: -17.66352173 | B203: 9 | C203: 0.107981933 | D203: 0 | E203: 0
A204: -17.48688652 | B204: 9.01 | C204: 0.1123662838 | D204: 0 | E204: 0
A205: -17.3102513 | B205: 9.02 | C205: 0.1168818887 | D205: 0 | E205: 0
... 397 more rows
